{"text_format":"1","workbook":"xlsx","n_sheets":6,"sheets":["FicheJoueurs","Données","Poule de 6","Tours de jeu","Affiche_des_tours","Saisie FFB"],"not_rendered":{"charts":0,"images":2,"macros":1,"external_links":1,"defined_names":174,"comments":2,"pivot_tables":0},"unopened":[],"bounds":{"document_bytes":16777216,"sheet_cells":100000,"rows_first":2000,"rows_last":500,"rows_between":2000,"halvings":0,"cell_chars":16384,"cell_head_chars":4096},"cells_cut":0,"cells_raw":0,"read":"whole","date_system":"1900"}

{"sheet":"FicheJoueurs","index":0,"n_rows":614,"n_cols":5,"rows_kept":614,"cut":false,"hidden":true,"merged":[[0,1,1,4]]}
[null,"LISTING JOUEURS LICENCIES LMB 2025"]
[]
[null,"NC","NOM PRENOM","CLUB ","N° LICENCE"]
[]
[]
[null,"Non Classé","Nom joueur","Club","Licence"]
[null,null,"ABAD-YANNICK","19002--SPORT AMAT.DE BILLARD MARSEILLAIS","106287Z"]
[null,null,"ABELA-JOSEPH","19021-BILLARD CLUB CAVAILLONNAIS","159403P"]
[null,null,"AGNES-ALEXANDRE","19127-O CIGALON BILLARD CLUB","147448V"]
[null,null,"AGOPIAN-VICTOR","19050-BILLARD CLUB SAUSSETOIS","146637X"]
[null,null,"AKNIN-GABRIEL","19027-ACADEMIE DE BILLARD DE BOLLENE","021810W"]
[null,null,"AKTAS-JEAN","19112-NISSA BILLARD CLUB","147980Y"]
[null,null,"ALESSI-JEAN PIERRE","19023-BILLARD CLUB GARDEEN","149448T"]
[null,null,"ALIBERT-BRUNO","19056-BILLARD CLUB DE NICE","151459E"]
[null,null,"ALLAL-SOUHIL","19130-BLACK BALL CAVAILLONNAIS","132516U"]
[null,null,"ALLIGIER-GERARD","19019-BILLARD CLUB DE LA BAIE","157036R"]
[null,null,"ALLORGE-STEPHANE","19009-CLUB BILLARD ISTREEN","186296W"]
[null,null,"ALVAREZ-PHILIPPE","19056-BILLARD CLUB DE NICE","159130S"]
[null,null,"ALVISET-GUY","19050-BILLARD CLUB SAUSSETOIS","152035F"]
[null,null,"AMANS-HERVE","19009-CLUB BILLARD ISTREEN","177854V"]
[null,null,"AMMARI-ANAS","19002-SPORT AMAT.DE BILLARD MARSEILLAIS","186456V"]
[null,null,"AMOUROUX-JACQUES ANTOINE","19023-BILLARD CLUB GARDEEN","162879S"]
[null,null,"AMOUROUX-LUC","19023-BILLARD CLUB GARDEEN","155531F"]
[null,null,"ANGUE-PATRICK","19056-BILLARD CLUB DE NICE","021819F"]
[null,null,"ANNESTAY-JACQUES","19025-BILLARD CLUB SISTERONNAIS","021820G"]
[null,null,"ANTONIN-ALAIN","19021-BILLARD CLUB CAVAILLONNAIS","021821H"]
[null,null,"ARBAUD-STEPHANE","19112-NISSA BILLARD CLUB","021824K"]
[null,null,"ARENAS-ROLDAN","19055-ACADEMIE DE BILLARD DE MENTON","181505N"]
[null,null,"ARGENTIN-JEAN NOEL","19127-O CIGALON BILLARD CLUB","126179B"]
[null,null,"ARMENGAU-PHILIPPE","19056-BILLARD CLUB DE NICE","161785D"]
[null,null,"ARNAUD-PIERRE","19006-BILLARD CLUB CARPENTRASSIEN","122035R"]
[null,null,"ARNOUX-LAURENT","19058-ACADEMIE DE BILLARD DE BARBOSSI MANDELIEU","180272Y"]
[null,null,"AUBERT ROUECHE-LYDIA","19106-BILLARD CLUB VINONNAIS","148204R"]
[null,null,"AUDIBERT-JEAN PIERRE","19012-SALON BILLARD CLUB","106513R"]
[null,null,"AUTRAND-MICHEL","19001-S. S. A. B. D AIX EN PROVENCE","172643F"]
[null,null,"AZOULAY-ALAIN","19017-BILLARD CLUB PHOCEEN","021839Z"]
[null,null,"BACHERGIAN-MAXENCE","19002-SPORT AMAT.DE BILLARD MARSEILLAIS","174115F"]
[null,null,"BAILLON-JEAN","19058-ACADEMIE DE BILLARD DE BARBOSSI MANDELIEU","115304U"]
[null,null,"BAJEUX-JEAN LOUIS","19090-BILLARD AMATEUR ROGNAC","183850M"]
[null,null,"BALESTRI-MAURICE","19058-ACADEMIE DE BILLARD DE BARBOSSI MANDELIEU","153554G"]
[null,null,"BALLAIS-REMI","19017-BILLARD CLUB PHOCEEN","186655L"]
[null,null,"BALLIGAND-SERGE","19059-BILLARD CLUB ROQUEBRUNOIS","023184S"]
[null,null,"BANO-SERGE","19001-S. S. A. B. D AIX EN PROVENCE","149693K"]
[null,null,"BARBANNEAU-FREDERIC","19106-BILLARD CLUB VINONNAIS","109917P"]
[null,null,"BARBESANT-DIDIER","19058-ACADEMIE DE BILLARD DE BARBOSSI MANDELIEU","168289Y"]
[null,null,"BARNES-JEAN PIERRE","19009-CLUB BILLARD ISTREEN","177120X"]
[null,null,"BAROTH-DARIO","19127-O CIGALON BILLARD CLUB","174346G"]
[null,null,"BAROTH-LOEVA","19127-O CIGALON BILLARD CLUB","174347H"]
[null,null,"BARRALLON-JEAN PAUL","19023-BILLARD CLUB GARDEEN","122300W"]
[null,null,"BARTHE-CHANTAL","19090-BILLARD AMATEUR ROGNAC","179073V"]
[null,null,"BASELGA-PASCAL","19093-AMERICAN CLUB LOUIS XI","135538A"]
[null,null,"BASSOUL-JEAN MARIE","19006-BILLARD CLUB CARPENTRASSIEN","103568K"]
[null,null,"BAUDOUX-JEAN CLAUDE","19058-ACADEMIE DE BILLARD DE BARBOSSI MANDELIEU","164877P"]
[null,null,"BAYARD-JEAN CLAUDE","19021-BILLARD CLUB CAVAILLONNAIS","021860U"]
[null,null,"BAYLE-PASCAL","19090-BILLARD AMATEUR ROGNAC","021861V"]
[null,null,"BEAUCHANT-FABRICE","19131-BILLARD CLUB DE L ESTAGNOL","182453T"]
[null,null,"BECK-MICHEL","19061-ACAD.BILLARD ST RAPHAEL","011797T"]
[null,null,"BEDARIDE-NICOLAS","19002-SPORT AMAT.DE BILLARD MARSEILLAIS","170823C"]
[null,null,"BEDOC-JACQUES","19007-BILLARD CLUB BERROIS","021863X"]
[null,null,"BELAICH-EDOUARD","19017-BILLARD CLUB PHOCEEN","175776L"]
[null,null,"BELHASSEN-BENJAMIN","19112-NISSA BILLARD CLUB","021865Z"]
[null,null,"BELINGUIER-MAXIME","19002-SPORT AMAT.DE BILLARD MARSEILLAIS","182588Q"]
[null,null,"BELTRITTI-JEAN YVES","19106-BILLARD CLUB VINONNAIS","132789H"]
[null,null,"BENAVIDES-CLAUDE","19012-SALON BILLARD CLUB","021872G"]
[null,null,"BENAVIDES-GERARD","19012-SALON BILLARD CLUB","138275H"]
[null,null,"BENDAVID-KARINE","19112-NISSA BILLARD CLUB","124802C"]
[null,null,"BENHAMOU-ALEXIS","19001-S. S. A. B. D AIX EN PROVENCE","160341J"]
[null,null,"BENIER-PATRICK","19023-BILLARD CLUB GARDEEN","159238K"]
[null,null,"BENOIT-MICHEL","19027-ACADEMIE DE BILLARD DE BOLLENE","159790K"]
[null,null,"BENSAID-NOEL","19138-BILLARD CLUB FREJUSSIEN","160011A"]
[null,null,"BERLIOZ-PASCAL","19006-BILLARD CLUB CARPENTRASSIEN","151532J"]
[null,null,"BERNABEI-ROBERT","19093-AMERICAN CLUB LOUIS XI","153662Z"]
[null,null,"BERNAT-JEAN PIERRE","19023-BILLARD CLUB GARDEEN","125945B"]
[null,null,"BERNICHON-PASCAL","19127-O CIGALON BILLARD CLUB","115001D"]
[null,null,"BIARD-ANDRE","19009-CLUB BILLARD ISTREEN","159202W"]
[null,null,"BIARD-ARTHUR","19009-CLUB BILLARD ISTREEN","173584D"]
[null,null,"BIARD-NOAH","19009-CLUB BILLARD ISTREEN","173583C"]
[null,null,"BIDDAU-FRANCOIS","19009-CLUB BILLARD ISTREEN","125917Z"]
[null,null,"BIOT-ELODIE","19058-ACADEMIE DE BILLARD DE BARBOSSI MANDELIEU","183516Z"]
[null,null,"BLANC SANTELLI-ERIC","19009-CLUB BILLARD ISTREEN","179744Z"]
[null,null,"BLANCA-JOAQUIM","19131-BILLARD CLUB DE L ESTAGNOL","010403D"]
[null,null,"BLANCA-LEO","19131-BILLARD CLUB DE L ESTAGNOL","181218B"]
[null,null,"BOCCHETTA-ERIC","19093-AMERICAN CLUB LOUIS XI","169485Y"]
[null,null,"BOGGIO POLA-PIERRE","19007-BILLARD CLUB BERROIS","181202J"]
[null,null,"BOLLOTTE-BENIGNE","19023-BILLARD CLUB GARDEEN","175504Q"]
[null,null,"BONACCORSI-LORENZO","19002-SPORT AMAT.DE BILLARD MARSEILLAIS","186460Z"]
[null,null,"BONELLO-LUCIEN","19090-BILLARD AMATEUR ROGNAC","021894C"]
[null,null,"BONETTO-JEAN LOUIS","19050-BILLARD CLUB SAUSSETOIS","186374F"]
[null,null,"BONNEMAISON-DENIS","19009-CLUB BILLARD ISTREEN","150422C"]
[null,null,"BONNICI-ROGER","19017-BILLARD CLUB PHOCEEN","168593D"]
[null,null,"BONTOUX-MAX","19007-BILLARD CLUB BERROIS","021900I"]
[null,null,"BOPEA-CHRISTIAN","19127-O CIGALON BILLARD CLUB","125957N"]
[null,null,"BORDES-BERNARD","19061-ACAD.BILLARD ST RAPHAEL","149287T"]
[null,null,"BORDES-CATHERINE","19061-ACAD.BILLARD ST RAPHAEL","149288V"]
[null,null,"BORGNA-GUY","19001-S. S. A. B. D AIX EN PROVENCE","184114Z"]
[null,null,"BOSSOT-JEAN","19027-ACADEMIE DE BILLARD DE BOLLENE","160000N"]
[null,null,"BOUFFLET-THIERRY","19025-BILLARD CLUB SISTERONNAIS","182430T"]
[null,null,"BOULANT-CLAUDE","19019-BILLARD CLUB DE LA BAIE","155529D"]
[null,null,"BOURDELLES-LAURENT","19055-ACADEMIE DE BILLARD DE MENTON","021911T"]
[null,null,"BOUTILLE-NICOLAS","19027-ACADEMIE DE BILLARD DE BOLLENE","122662U"]
[null,null,"BOUTTIER-CAROLINE","19127-O CIGALON BILLARD CLUB","125921D"]
[null,null,"BOUTTIER-CHARLES","19056-BILLARD CLUB DE NICE","118665B"]
[null,null,"BRAYER-DENIS","19008-BRITISH BILLARD CLUB AVIGNON","016411F"]
[null,null,"BREDAT-RENE","19025-BILLARD CLUB SISTERONNAIS","021918A"]
[null,null,"BREGRE-SEBASTIEN","19002-SPORT AMAT.DE BILLARD MARSEILLAIS","159347D"]
[null,null,"BREPSON-MARTIAL","19058-ACADEMIE DE BILLARD DE BARBOSSI MANDELIEU","152345S"]
[null,null,"BRETON-LUC","19006-BILLARD CLUB CARPENTRASSIEN","172527E"]
[null,null,"BRIAND-ALAIN","19002-SPORT AMAT.DE BILLARD MARSEILLAIS","113104E"]
[null,null,"BRIOIT-DOMINIQUE","19055-ACADEMIE DE BILLARD DE MENTON","021920C"]
[null,null,"BRIOSNE-PASCAL","19001-S. S. A. B. D AIX EN PROVENCE","021922E"]
[null,null,"BROYER-PHILIPPE","19127-O CIGALON BILLARD CLUB","186325C"]
[null,null,"BRUN-ROGER","19017-BILLARD CLUB PHOCEEN","021929L"]
[null,null,"BURGANT-JEAN MARIE","19019-BILLARD CLUB DE LA BAIE","123684C"]
[null,null,"CACHAU HERREICCHT-LAURENT","19023-BILLARD CLUB GARDEEN","184127N"]
[null,null,"CAILLAUD-DANIEL","19023-BILLARD CLUB GARDEEN","144785R"]
[null,null,"CANDA-JEROME","19130-BLACK BALL CAVAILLONNAIS","163016R"]
[null,null,"CANUEL-LUC","19127-O CIGALON BILLARD CLUB","181817C"]
[null,null,"CAO-GAUTIER","19098-BILLARD CLUB LA FARE","173582B"]
[null,null,"CAO-HUU TUOI","19098-BILLARD CLUB LA FARE","021944A"]
[null,null,"CAO-MEGANE","19098-BILLARD CLUB LA FARE","173581A"]
[null,null,"CARAIL-MICHEL","19021-BILLARD CLUB CAVAILLONNAIS","146885L"]
[null,null,"CARDINALI-DENIS","19056-BILLARD CLUB DE NICE","021946C"]
[null,null,"CARRILLON-MICHEL","19001-S. S. A. B. D AIX EN PROVENCE","141066Q"]
[null,null,"CARRION-JEAN PHILIPPE","19058-ACADEMIE DE BILLARD DE BARBOSSI MANDELIEU","130701Z"]
[null,null,"CASTELLINO-GEORGES","19061-ACAD.BILLARD ST RAPHAEL","181424A"]
[null,null,"CATELAS-JEAN LOUIS","19001-S. S. A. B. D AIX EN PROVENCE","167180S"]
[null,null,"CAUDRY-ALAIN","19023-BILLARD CLUB GARDEEN","170688F"]
[null,null,"CESARO-JEAN CLAUDE","19007-BILLARD CLUB BERROIS","118684U"]
[null,null,"CESMAT BELLIARD-NICOLAS","19127-O CIGALON BILLARD CLUB","119681D"]
[null,null,"CHAIX-JOEL","19025-BILLARD CLUB SISTERONNAIS","021960Q"]
[null,null,"CHANTEUX-ALAIN","19025-BILLARD CLUB SISTERONNAIS","143166K"]
[null,null,"CHANU-ALICE","19025-BILLARD CLUB SISTERONNAIS","186206Y"]
[null,null,"CHAPUIS-ERIC","19056-BILLARD CLUB DE NICE","104469B"]
[null,null,"CHARBIT-JEAN MARC","19056-BILLARD CLUB DE NICE","021967X"]
[null,null,"CHARLES-CHRISTOPHE","19131-BILLARD CLUB DE L ESTAGNOL","103539H"]
[null,null,"CHARPENTIER-MARC","19017-BILLARD CLUB PHOCEEN","185636D"]
[null,null,"CHASTAN-GEORGES","19021-BILLARD CLUB CAVAILLONNAIS","012782Q"]
[null,null,"CHELUS-ALIN","19127-O CIGALON BILLARD CLUB","146376W"]
[null,null,"CHEVENIER-PASCAL","19017-BILLARD CLUB PHOCEEN","185638F"]
[null,null,"CHEVRIER-CAMILLE","19131-BILLARD CLUB DE L ESTAGNOL","152831W"]
[null,null,"CHICARD-ALAIN","19006-BILLARD CLUB CARPENTRASSIEN","160332Z"]
[null,null,"CHUZEVILLE-GILLES","19025-BILLARD CLUB SISTERONNAIS","108854S"]
[null,null,"CLAUDON-PHILIPPE","19056-BILLARD CLUB DE NICE","148126G"]
[null,null,"CLEMENT-GERARD","19050-BILLARD CLUB SAUSSETOIS","129497R"]
[null,null,"CLERGET-JEAN LOUIS","19127-O CIGALON BILLARD CLUB","101474W"]
[null,null,"CLOUD-TOM","19127-O CIGALON BILLARD CLUB","152107J"]
[null,null,"CLUS-SANDY","19138-BILLARD CLUB FREJUSSIEN","106896K"]
[null,null,"COHEN-RICHARD MANDELIEU","19058-ACADEMIE DE BILLARD DE BARBOSSI MANDELIEU","012827J"]
[null,null,"COHEN-RICHARD NICE","19056-BILLARD CLUB DE NICE","148796K"]
[null,null,"COHEN-STEPHANE","19058-ACADEMIE DE BILLARD DE BARBOSSI MANDELIEU","170613Z"]
[null,null,"COLOMBINI-ALAIN","19002-SPORT AMAT.DE BILLARD MARSEILLAIS","186457W"]
[null,null,"CONFAVREUX-KELIAN","19130-BLACK BALL CAVAILLONNAIS","178799X"]
[null,null,"CONTRAIN-JEROME","19012-SALON BILLARD CLUB","166177C"]
[null,null,"COPPIN-JEAN MICHEL","19027-ACADEMIE DE BILLARD DE BOLLENE","021985P"]
[null,null,"CORBET-LAURENT","19021-BILLARD CLUB CAVAILLONNAIS","021987R"]
[null,null,"CORBIN-LUC","19023-BILLARD CLUB GARDEEN","164007T"]
[null,null,"CORNET-MARIELLE","19059-BILLARD CLUB ROQUEBRUNOIS","185390L"]
[null,null,"COSTE-PHILIPPE","19061-ACAD.BILLARD ST RAPHAEL","125938U"]
[null,null,"COTARD-SANDRINE","19131-BILLARD CLUB DE L ESTAGNOL","101268Y"]
[null,null,"COTTET-JACQUES","19025-BILLARD CLUB SISTERONNAIS","139655J"]
[null,null,"COUPET-PHILIPPE","19023-BILLARD CLUB GARDEEN","119932U"]
[null,null,"COURBOT-LUDWIG","19001-S. S. A. B. D AIX EN PROVENCE","016838Q"]
[null,null,"COZETTE-SYLVIE","19023-BILLARD CLUB GARDEEN","168685D"]
[null,null,"CREUZOT-PATRICE","19017-BILLARD CLUB PHOCEEN","021996A"]
[null,null,"CROUZET-JEAN ANDRE","19027-ACADEMIE DE BILLARD DE BOLLENE","152067Q"]
[null,null,"CUADRADO-HECTOR","19021-BILLARD CLUB CAVAILLONNAIS","142586C"]
[null,null,"CUER-KILLIAN","19127-O CIGALON BILLARD CLUB","181819E"]
[null,null,"DAIFHALLA PUICHAULT-YANNIS","19025-BILLARD CLUB SISTERONNAIS","182676L"]
[null,null,"DALMASSO-EMMANUELLE","19025-BILLARD CLUB SISTERONNAIS","177204N"]
[null,null,"DAMIENS-ALEXANDRE","19127-O CIGALON BILLARD CLUB","167825T"]
[null,null,"DAMON-GERARD","19056-BILLARD CLUB DE NICE","022002G"]
[null,null,"DAMON-OLIVIER","19012-SALON BILLARD CLUB","022003H"]
[null,null,"DANCARVILLE-GUY","19009-CLUB BILLARD ISTREEN","144640C"]
[null,null,"DAUPHIN-MICHEL","19014-BILLARD CLUB AVIGNONNAIS","014828I"]
[null,null,"DAUPHIN-THYFFEN","19002-SPORT AMAT.DE BILLARD MARSEILLAIS","172573E"]
[null,null,"DAVID-THIERRY","19025-BILLARD CLUB SISTERONNAIS","155526A"]
[null,null,"DE CAMBOURG-HELION","19014-BILLARD CLUB AVIGNONNAIS","171181R"]
[null,null,"DE CAMPO-TEDDY","19068-BILLARD CLUB ARLESIEN","138202M"]
[null,null,"DE GRYSE-GERARD","19023-BILLARD CLUB GARDEEN","139487X"]
[null,null,"DE LOOSE-FELIX","19106-BILLARD CLUB VINONNAIS","163348C"]
[null,null,"DE OLIVEIRA GONCALVES-PAULO","19130-BLACK BALL CAVAILLONNAIS","177338J"]
[null,null,"DE RIGAL-DANIEL","19027-ACADEMIE DE BILLARD DE BOLLENE","127655V"]
[null,null,"DEBASC-GAD","19017-BILLARD CLUB PHOCEEN","158419V"]
[null,null,"DEBOSZ-RICHARD","19021-BILLARD CLUB CAVAILLONNAIS","140093F"]
[null,null,"DEBRUYNE-ANNE","19106-BILLARD CLUB VINONNAIS","184548W"]
[null,null,"DEBRUYNE-TRISTAN","19106-BILLARD CLUB VINONNAIS","113220Q"]
[null,null,"DEBUYSER-ANNE","19058-ACADEMIE DE BILLARD DE BARBOSSI MANDELIEU","178356Q"]
[null,null,"DEDON-DENISE","19007-BILLARD CLUB BERROIS","181198E"]
[null,null,"DEDON-RICHARD","19007-BILLARD CLUB BERROIS","177233V"]
[null,null,"DEFRETIN JOEL","19023--BILLARD CLUB GARDEEN","020635 R"]
[null,null,"DELAIRE-JEAN PIERRE","19021-BILLARD CLUB CAVAILLONNAIS","166003N"]
[null,null,"DELAPORTE-YVES","19006-BILLARD CLUB CARPENTRASSIEN","160334B"]
[null,null,"DELBEY-JULIEN","19012-SALON BILLARD CLUB","112719J"]
[null,null,"DELZORS-JEAN PIERRE","19056-BILLARD CLUB DE NICE","143883Z"]
[null,null,"DEMARCQ-JEAN FRANCOIS","19025-BILLARD CLUB SISTERONNAIS","168662D"]
[null,null,"DEMAY-ROMUALD","19127-O CIGALON BILLARD CLUB","159102M"]
[null,null,"DEMERLIAC-BRUNO","19007-BILLARD CLUB BERROIS","159076J"]
[null,null,"DENIS-GILLES","19009-CLUB BILLARD ISTREEN","186297X"]
[null,null,"DEROSSI-LORA","19002-SPORT AMAT.DE BILLARD MARSEILLAIS","185116N"]
[null,null,"DESMERO-RAYMOND","19007-BILLARD CLUB BERROIS","142358I"]
[null,null,"DESWAZIERE-MICHEL","19027-ACADEMIE DE BILLARD DE BOLLENE","115051B"]
[null,null,"DHENNIN-MICHEL","19059-BILLARD CLUB ROQUEBRUNOIS","176237M"]
[null,null,"DHERMY-BERTRAND","19127-O CIGALON BILLARD CLUB","156564D"]
[null,null,"DI BIN-JEAN MARIE","19027-ACADEMIE DE BILLARD DE BOLLENE","135014W"]
[null,null,"DI CRESCENZO-PIERRE","19017-BILLARD CLUB PHOCEEN","109528Q"]
[null,null,"DIDIER-DOMINIQUE","19090-BILLARD AMATEUR ROGNAC","186066W"]
[null,null,"DION-JEAN LOUIS","19006-BILLARD CLUB CARPENTRASSIEN","160331Y"]
[null,null,"DONABEDIAN-DANIEL","19019-BILLARD CLUB DE LA BAIE","142363N"]
[null,null,"DORIDANT-VINCENT","19127-O CIGALON BILLARD CLUB","134701V"]
[null,null,"DORNBUSH-MARTINE","19023-BILLARD CLUB GARDEEN","181974Y"]
[null,null,"DOS SANTOS-ADRIEN","19130-BLACK BALL CAVAILLONNAIS","133512C"]
[null,null,"DOS SANTOS-FRANCIS","19050-BILLARD CLUB SAUSSETOIS","022039R"]
[null,null,"DOUSSET-RENE","19023-BILLARD CLUB GARDEEN","174348J"]
[null,null,"DREMEAUX-JEAN PIERRE","19023-BILLARD CLUB GARDEEN","140803N"]
[null,null,"DUBREUIL-FRANCK","19061-ACAD.BILLARD ST RAPHAEL","013022W"]
[null,null,"DUPUY-MICHEL","19058-ACADEMIE DE BILLARD DE BARBOSSI MANDELIEU","011522E"]
[null,null,"DUSSAULE-PIERRE","19027-ACADEMIE DE BILLARD DE BOLLENE","102285B"]
[null,null,"DUSSEAUX-PATRICK","19021-BILLARD CLUB CAVAILLONNAIS","183248H"]
[null,null,"DUVAL-THIERRY","19061-ACAD.BILLARD ST RAPHAEL","175172E"]
[null,null,"ECK-MICHEL","19017-BILLARD CLUB PHOCEEN","146662W"]
[null,null,"EGEA-JEAN PIERRE","19130-BLACK BALL CAVAILLONNAIS","146142W"]
[null,null,"EGRETEAUD-CHRISTOPHE","19017-BILLARD CLUB PHOCEEN","155680S"]
[null,null,"EL KARMOUNI-DAVID","19002-SPORT AMAT.DE BILLARD MARSEILLAIS","186461A"]
[null,null,"ELEOUET-DANIEL","19006-BILLARD CLUB CARPENTRASSIEN","163467G"]
[null,null,"ESCOFFIER-ALAIN","19006-BILLARD CLUB CARPENTRASSIEN","167497M"]
[null,null,"ESTABLIER-PIERRE","19023-BILLARD CLUB GARDEEN","147622J"]
[null,null,"FABER-ERWIN","19021-BILLARD CLUB CAVAILLONNAIS","186621Z"]
[null,null,"FABRE-ALEXANDRE","19002-SPORT AMAT.DE BILLARD MARSEILLAIS","186571V"]
[null,null,"FAIVRE D ARCIER-PATRICK","19056-BILLARD CLUB DE NICE","022061N"]
[null,null,"FAVARIO-CHRISTIAN","19027-ACADEMIE DE BILLARD DE BOLLENE","022066S"]
[null,null,"FEBVRET-MELANIE","19130-BLACK BALL CAVAILLONNAIS","179557W"]
[null,null,"FERAUD-GERARD","19027-ACADEMIE DE BILLARD DE BOLLENE","022067T"]
[null,null,"FERAUD-LOUIS","19025-BILLARD CLUB SISTERONNAIS","182675K"]
[null,null,"FERHAT-ACHOUR","19106-BILLARD CLUB VINONNAIS","129036Y"]
[null,null,"FERNANDES GOMES-MARIO","19093-AMERICAN CLUB LOUIS XI","153669G"]
[null,null,"FERNANDEZ-MARC","19007-BILLARD CLUB BERROIS","013111H"]
[null,null,"FERRON-FREDERIC","19012-SALON BILLARD CLUB","172308R"]
[null,null,"FERRO-PHILIPPE","19009-CLUB BILLARD ISTREEN","122658Q"]
[null,null,"FONTAINE-DANY","19106-BILLARD CLUB VINONNAIS","101139Z"]
[null,null,"FOREL-PHILIPPE","19130-BLACK BALL CAVAILLONNAIS","127035Z"]
[null,null,"FOURNET-SEBASTIEN","19002-SPORT AMAT.DE BILLARD MARSEILLAIS","184732W"]
[null,null,"FRANCO-ALBERT","19019-BILLARD CLUB DE LA BAIE","022084K"]
[null,null,"FRANCO-HENRY","19055-ACADEMIE DE BILLARD DE MENTON","118688Y"]
[null,null,"FRIGANO-SEBASTIEN","19130-BLACK BALL CAVAILLONNAIS","123168G"]
[null,null,"FROMENT-REMI","19068-BILLARD CLUB ARLESIEN","182539M"]
[null,null,"FROMEYER-CORINNE","19058-ACADEMIE DE BILLARD DE BARBOSSI MANDELIEU","167290M"]
[null,null,"GABETTO-STEPHANE","19023-BILLARD CLUB GARDEEN","103216W"]
[null,null,"GABRIEL-MARTIAL","19127-O CIGALON BILLARD CLUB","120076I"]
[null,null,"GAILLET-PATRICK","19098-BILLARD CLUB LA FARE","176024F"]
[null,null,"GALARDINI-RICHARD","19050-BILLARD CLUB SAUSSETOIS","142316S"]
[null,null,"GALLEZ-DANIEL","19019-BILLARD CLUB DE LA BAIE","178728V"]
[null,null,"GALLUCCI-STEPHANE","19056-BILLARD CLUB DE NICE","022091R"]
[null,null,"GAMEN-ANDRE","19023-BILLARD CLUB GARDEEN","147288W"]
[null,null,"GARCIA-SEBASTIEN","19112-NISSA BILLARD CLUB","116525T"]
[null,null,"GATTINO-MARCO","19055-ACADEMIE DE BILLARD DE MENTON","147262S"]
[null,null,"GATTO-ANTOINE","19050-BILLARD CLUB SAUSSETOIS","022097X"]
[null,null,"GAUTIER-PATRICK","19027-ACADEMIE DE BILLARD DE BOLLENE","186342W"]
[null,null,"GAVALDA-PIERRE","19006-BILLARD CLUB CARPENTRASSIEN","116278G"]
[null,null,"GEDOR-FRANCIS","19061-ACAD.BILLARD ST RAPHAEL","186701L"]
[null,null,"GEFFROY-MEGGAN","19008-BRITISH BILLARD CLUB AVIGNON","183704D"]
[null,null,"GELAS-BERNARD","19098-BILLARD CLUB LA FARE","163279C"]
[null,null,"GENDRAUD-PHILIPPE","19138-BILLARD CLUB FREJUSSIEN","150065P"]
[null,null,"GERARD-PASCAL","19056-BILLARD CLUB DE NICE","022103D"]
[null,null,"GERARD-SANDRINE","19090-BILLARD AMATEUR ROGNAC","179077Z"]
[null,null,"GERARD-THOMAS","19056-BILLARD CLUB DE NICE","167330F"]
[null,null,"GERVAIS-GUILLAUME","19021-BILLARD CLUB CAVAILLONNAIS","022104E"]
[null,null,"GIANNATTASIO-LUCIEN","19009-CLUB BILLARD ISTREEN","022108I"]
[null,null,"GIAVELLI-GAETAN","19068-BILLARD CLUB ARLESIEN","129044G"]
[null,null,"GIBARROUX-CHRISTOPHE","19001-S. S. A. B. D AIX EN PROVENCE","118661X"]
[null,null,"GILLET-PHILIPPE","19058-ACADEMIE DE BILLARD DE BARBOSSI MANDELIEU","180514L"]
[null,null,"GILLODTS-CHRISTIAN","19017-BILLARD CLUB PHOCEEN","149471T"]
[null,null,"GIMENEZ-SERGE","19056-BILLARD CLUB DE NICE","022113N"]
[null,null,"GIRARD-JACQUES","19058-ACADEMIE DE BILLARD DE BARBOSSI MANDELIEU","129718E"]
[null,null,"GOAILLARD-JEAN MARC","19017-BILLARD CLUB PHOCEEN","181920P"]
[null,null,"GODARD-PASCAL","19006-BILLARD CLUB CARPENTRASSIEN","157852D"]
[null,null,"GODOY-CYRILLE","19127-O CIGALON BILLARD CLUB","101478A"]
[null,null,"GOMES-VITOR","19001-S. S. A. B. D AIX EN PROVENCE","120100G"]
[null,null,"GORGET-MIKAEL","19002-SPORT AMAT.DE BILLARD MARSEILLAIS","174487K"]
[null,null,"GOTTRAU-MARION","19002-SPORT AMAT.DE BILLARD MARSEILLAIS","186570T"]
[null,null,"GOUILLON-MATTHIEU","19056-BILLARD CLUB DE NICE","174010R"]
[null,null,"GOUIRAN-GEORGES","19050-BILLARD CLUB SAUSSETOIS","022129D"]
[null,null,"GOUZIEN-MILENE","19131-BILLARD CLUB DE L ESTAGNOL","175026W"]
[null,null,"GOUZIEN-RENAUD","19131-BILLARD CLUB DE L ESTAGNOL","101259P"]
[null,null,"GOUZIEN-YANN","19131-BILLARD CLUB DE L ESTAGNOL","166216V"]
[null,null,"GOUZOUGUEN-CHRISTIAN","19006-BILLARD CLUB CARPENTRASSIEN","144636Y"]
[null,null,"GOYAUD-YVES","19002-SPORT AMAT.DE BILLARD MARSEILLAIS","135555R"]
[null,null,"GRANDBOUCHE-FRANCOIS","19002-SPORT AMAT.DE BILLARD MARSEILLAIS","180247W"]
[null,null,"GRANIER-JEAN MARC","19130-BLACK BALL CAVAILLONNAIS","156807S"]
[null,null,"GRAVELLE-JULIEN","19006-BILLARD CLUB CARPENTRASSIEN","157851C"]
[null,null,"GREBLO-EDI","19093-AMERICAN CLUB LOUIS XI","170379V"]
[null,null,"GREGEOIS-MAEL","19002-SPORT AMAT.DE BILLARD MARSEILLAIS","183595K"]
[null,null,"GROS-MARIE PAULE","19068-BILLARD CLUB ARLESIEN","107059R"]
[null,null,"GROS-ROLAND","19068-BILLARD CLUB ARLESIEN","101403D"]
[null,null,"GROUSSON-ROBERT","19009-CLUB BILLARD ISTREEN","172011T"]
[null,null,"GUERINEAU-BRUNO","19021-BILLARD CLUB CAVAILLONNAIS","144796C"]
[null,null,"GUERINEAU-THIERRY","19021-BILLARD CLUB CAVAILLONNAIS","022135J"]
[null,null,"GUERIN-RAYMOND","19017-BILLARD CLUB PHOCEEN","103615F"]
[null,null,"GUERI-ROBERT","19027-ACADEMIE DE BILLARD DE BOLLENE","135013V"]
[null,null,"GUEUG-PIERRE","19056-BILLARD CLUB DE NICE","104475H"]
[null,null,"GUIZELIN-PASCAL","19106-BILLARD CLUB VINONNAIS","154530S"]
[null,null,"HADDAD-JEAN PIERRE","19014-BILLARD CLUB AVIGNONNAIS","184013P"]
[null,null,"HADDOUCHE-JONATHAN","19002-SPORT AMAT.DE BILLARD MARSEILLAIS","147316B"]
[null,null,"HAHN-DANIEL","19017-BILLARD CLUB PHOCEEN","011966G"]
[null,null,"HAMALIAN-CYRIL","19002-SPORT AMAT.DE BILLARD MARSEILLAIS","166068J"]
[null,null,"HARTENSTEIN-BRUNO","19006-BILLARD CLUB CARPENTRASSIEN","166328R"]
[null,null,"HATEM-MARC","19131-BILLARD CLUB DE L ESTAGNOL","183291E"]
[null,null,"HAZE-PATRICK","19021-BILLARD CLUB CAVAILLONNAIS","137523J"]
[null,null,"HEBRAL-LUDOVIC","19112-NISSA BILLARD CLUB","101323B"]
[null,null,"HEINRICH-CHRISTIAN","19009-CLUB BILLARD ISTREEN","186298Y"]
[null,null,"HERREMAN-SERGE","19023-BILLARD CLUB GARDEEN","119933V"]
[null,null,"HEURTAULT-JACKY","19012-SALON BILLARD CLUB","137004K"]
[null,null,"HEYDON-CHRISTOPHER","19127-O CIGALON BILLARD CLUB","169219J"]
[null,null,"HEYDON-SABINE","19127-O CIGALON BILLARD CLUB","169259C"]
[null,null,"HOLUIGUE-ROGER","19023-BILLARD CLUB GARDEEN","177454K"]
[null,null,"HUGUET-PATRICK","19017-BILLARD CLUB PHOCEEN","172086A"]
[null,null,"IDJERI-GILBERT","19050-BILLARD CLUB SAUSSETOIS","172214P"]
[null,null,"INGA-FABRIZIO","19112-NISSA BILLARD CLUB","181447A"]
[null,null,"ISRAEL-ELIE","19017-BILLARD CLUB PHOCEEN","184059P"]
[null,null,"IVACHEFF-HELENE","19106-BILLARD CLUB VINONNAIS","184667A"]
[null,null,"IVACHEFF-MICHEL","19106-BILLARD CLUB VINONNAIS","181239Z"]
[null,null,"JABBOUR-HAMZA","19002-SPORT AMAT.DE BILLARD MARSEILLAIS","182210E"]
[null,null,"JALLIFFIER ARDENT-MARIE","19056-BILLARD CLUB DE NICE","179363K"]
[null,null,"JALOUAJ-AMINE","19127-O CIGALON BILLARD CLUB","167227T"]
[null,null,"JANNOT-FREDERIC","19019-BILLARD CLUB DE LA BAIE","183489V"]
[null,null,"JONNARD-FREDERIC","19023-BILLARD CLUB GARDEEN","120814S"]
[null,null,"JUIGNET-CHRISTIAN","19138-BILLARD CLUB FREJUSSIEN","109412E"]
[null,null,"JUMEL-RENE","19027-ACADEMIE DE BILLARD DE BOLLENE","162905W"]
[null,null,"KERNINON-PATRICE","19130-BLACK BALL CAVAILLONNAIS","101100M"]
[null,null,"KUNTZ-ADRIEN","19055-ACADEMIE DE BILLARD DE MENTON","022175X"]
[null,null,"LABATUT-FRANCOIS","19059-BILLARD CLUB ROQUEBRUNOIS","186947D"]
[null,null,"LACOSSE-JEAN PAUL","19019-BILLARD CLUB DE LA BAIE","109977X"]
[null,null,"LACOUR-DAVID","19127-O CIGALON BILLARD CLUB","116529X"]
[null,null,"LAFDJIAN-GILBERT","19007-BILLARD CLUB BERROIS","177232T"]
[null,null,"LAGIER-ALBAN","19131-BILLARD CLUB DE L ESTAGNOL","101267X"]
[null,null,"LAM-MINH TRUNG DENIS","19056-BILLARD CLUB DE NICE","181038F"]
[null,null,"LANAIA-MICKAEL","19130-BLACK BALL CAVAILLONNAIS","167062P"]
[null,null,"LANARI-PIERRE","19056-BILLARD CLUB DE NICE","175999D"]
[null,null,"LANDE-GERARD","19014-BILLARD CLUB AVIGNONNAIS","016084Q"]
[null,null,"LANDERECTHE-PASCAL","19007-BILLARD CLUB BERROIS","181199F"]
[null,null,"LANDERECTHE-RUDY","19007-BILLARD CLUB BERROIS","181200G"]
[null,null,"LANDOIS-DOMINIQUE","19055-ACADEMIE DE BILLARD DE MENTON","179135M"]
[null,null,"LANG-CHRISTIAN","19009-CLUB BILLARD ISTREEN","022186I"]
[null,null,"LANNURIEN-THIERRY","19023-BILLARD CLUB GARDEEN","168288X"]
[null,null,"LANNY-ALAIN","19050-BILLARD CLUB SAUSSETOIS","186266N"]
[null,null,"LAUNAY-MICHEL","19058-ACADEMIE DE BILLARD DE BARBOSSI MANDELIEU","178352L"]
[null,null,"LAVAUD-JOHN","19130-BLACK BALL CAVAILLONNAIS","122601L"]
[null,null,"LE FAUCHEUR-LAURENT","19098-BILLARD CLUB LA FARE","163278B"]
[null,null,"LE GOC-MICKAEL","19136-BLACK BALL CONCEPT","148064P"]
[null,null,"LE GUENNEC-CHRISTIAN","19061-ACAD.BILLARD ST RAPHAEL","125949F"]
[null,null,"LE TROCQUER-HUGO","19002-SPORT AMAT.DE BILLARD MARSEILLAIS","186459Y"]
[null,null,"LEBARBENCHON-JEAN","19055-ACADEMIE DE BILLARD DE MENTON","177122Z"]
[null,null,"LECLERC-SYLVAIN","19130-BLACK BALL CAVAILLONNAIS","160245E"]
[null,null,"LECOQ-ARNAUD","19012-SALON BILLARD CLUB","141504M"]
[null,null,"LECUILLIER-ARNAUD","19127-O CIGALON BILLARD CLUB","128719T"]
[null,null,"LEDUCQ-MORGAN","19014-BILLARD CLUB AVIGNONNAIS","105373V"]
[null,null,"LEFAUX-JEAN JACQUES","19025-BILLARD CLUB SISTERONNAIS","117411V"]
[null,null,"LEMARTINET-ROBERT","19019-BILLARD CLUB DE LA BAIE","110379J"]
[null,null,"LEMESLE-FABRICE","19017-BILLARD CLUB PHOCEEN","022205B"]
[null,null,"LEMIERE-JEAN NOEL","19023-BILLARD CLUB GARDEEN","104233Z"]
[null,null,"LEON-ALFRED","19021-BILLARD CLUB CAVAILLONNAIS","186622A"]
[null,null,"LESPRIT-CLAUDE","19019-BILLARD CLUB DE LA BAIE","179358E"]
[null,null,"LETELLIER-ALAIN","19090-BILLARD AMATEUR ROGNAC","176350K"]
[null,null,"LIEGEOIS-DOMINIQUE","19027-ACADEMIE DE BILLARD DE BOLLENE","022209F"]
[null,null,"LIENS-MICHEL","19021-BILLARD CLUB CAVAILLONNAIS","118678O"]
[null,null,"LIMA-STEPHANE","19130-BLACK BALL CAVAILLONNAIS","161477T"]
[null,null,"LIONNE-GEORGES","19027-ACADEMIE DE BILLARD DE BOLLENE","178650K"]
[null,null,"LISI-ROGER","19007-BILLARD CLUB BERROIS","146375V"]
[null,null,"LISSAJOUX-JEAN CLAUDE","19009-CLUB BILLARD ISTREEN","168722T"]
[null,null,"LLOBELL-ALAIN","19017-BILLARD CLUB PHOCEEN","170266X"]
[null,null,"LLOBELL-CLAIRE","19017-BILLARD CLUB PHOCEEN","170267Y"]
[null,null,"LOMBARDO-STEPHANE","19127-O CIGALON BILLARD CLUB","101339R"]
[null,null,"LORKOVIC-JOSEPH","19009-CLUB BILLARD ISTREEN","022217N"]
[null,null,"LOSTAO-DOMINIQUE","19058-ACADEMIE DE BILLARD DE BARBOSSI MANDELIEU","168030R"]
[null,null,"LUCENET-PAUL","19009-CLUB BILLARD ISTREEN","162076V"]
[null,null,"LUNEAU-JEAN CLAUDE","19023-BILLARD CLUB GARDEEN","186880F"]
[null,null,"LUVISON-JEAN","19012-SALON BILLARD CLUB","022221R"]
[null,null,"MACQUET-PATRICK","19056-BILLARD CLUB DE NICE","022223T"]
[null,null,"MALLEVAL-GERARD","19023-BILLARD CLUB GARDEEN","100910E"]
[null,null,"MANZO-PIERRE JEAN","19002-SPORT AMAT.DE BILLARD MARSEILLAIS","186458X"]
[null,null,"MARCEAUX-JOSE","19059-BILLARD CLUB ROQUEBRUNOIS","020447L"]
[null,null,"MARCHANDISE MORAND-JACQUELINE","19025-BILLARD CLUB SISTERONNAIS","177467Z"]
[null,null,"MARCHAND-PHILIPPE","19001-S. S. A. B. D AIX EN PROVENCE","164047M"]
[null,null,"MARIE-MICHEL","19021-BILLARD CLUB CAVAILLONNAIS","175846M"]
[null,null,"MARIOTTI-JEAN MICHEL","19131-BILLARD CLUB DE L ESTAGNOL","101260Q"]
[null,null,"MARME-HANS","19127-O CIGALON BILLARD CLUB","159950J"]
[null,null,"MARTIN-CLAUDE","19021-BILLARD CLUB CAVAILLONNAIS","175391S"]
[null,null,"MARTINEZ-BENOIT","19008-BRITISH BILLARD CLUB AVIGNON","180741H"]
[null,null,"MASSERAN-PHILIPPE","19058-ACADEMIE DE BILLARD DE BARBOSSI MANDELIEU","103581X"]
[null,null,"MASSIAS-GUY","19001-S. S. A. B. D AIX EN PROVENCE","172680W"]
[null,null,"MASSOT-SEBASTIEN","19025-BILLARD CLUB SISTERONNAIS","159674J"]
[null,null,"MATHIEU-MICHEL","19006-BILLARD CLUB CARPENTRASSIEN","183687K"]
[null,null,"MATILLON-CLAUDE","19001-S. S. A. B. D AIX EN PROVENCE","160344M"]
[null,null,"MAUDUIT-DIDIER","19009-CLUB BILLARD ISTREEN","017615N"]
[null,null,"MAURON-BERNARD","19023-BILLARD CLUB GARDEEN","149391G"]
[null,null,"MAURY-HENRI","19058-ACADEMIE DE BILLARD DE BARBOSSI MANDELIEU","163825W"]
[null,null,"MAYNARD-ALEXANDRE","19056-BILLARD CLUB DE NICE","112015H"]
[null,null,"MEGUIN-ERIC","19021-BILLARD CLUB CAVAILLONNAIS","128466A"]
[null,null,"MELLET-PIERRE","19027-ACADEMIE DE BILLARD DE BOLLENE","144802I"]
[null,null,"METAIS-ALBAN","19006-BILLARD CLUB CARPENTRASSIEN","152604Z"]
[null,null,"MEYER-LUC","19023-BILLARD CLUB GARDEEN","022260E"]
[null,null,"MICHEL-JACQUES","19006-BILLARD CLUB CARPENTRASSIEN","183513W"]
[null,null,"MILLOT-ANITA","19023-BILLARD CLUB GARDEEN","180677N"]
[null,null,"MILLOT-BENOIT","19023-BILLARD CLUB GARDEEN","180676M"]
[null,null,"MILLOT-ROBERT","19025-BILLARD CLUB SISTERONNAIS","172218T"]
[null,null,"MISRAKI-ROMAIN","19002-SPORT AMAT.DE BILLARD MARSEILLAIS","144792Y"]
[null,null,"MOGLIA-EMILE","19014-BILLARD CLUB AVIGNONNAIS","022266K"]
[null,null,"MOINON-FRANCOIS","19002-SPORT AMAT.DE BILLARD MARSEILLAIS","184069A"]
[null,null,"MOLAND-PHILIPPE","19059-BILLARD CLUB ROQUEBRUNOIS","022268M"]
[null,null,"MOLINAS-ROBERT","19021-BILLARD CLUB CAVAILLONNAIS","022270O"]
[null,null,"MONNET-JEAN CLAUDE","19021-BILLARD CLUB CAVAILLONNAIS","022271P"]
[null,null,"MONTALTI-PIERRE","19002-SPORT AMAT.DE BILLARD MARSEILLAIS","116557Z"]
[null,null,"MONTERO-JEAN MANUEL","19068-BILLARD CLUB ARLESIEN","147134D"]
[null,null,"MONTESINOS-GILLES","19012-SALON BILLARD CLUB","136279N"]
[null,null,"MOREELS-BERNARD","19023-BILLARD CLUB GARDEEN","147624L"]
[null,null,"MORERE-JEAN PIERRE","19059-BILLARD CLUB ROQUEBRUNOIS","176019A"]
[null,null,"MOUMENE-AMINE","19002-SPORT AMAT.DE BILLARD MARSEILLAIS","182204Y"]
[null,null,"MOUSSIER-PATRICK","19056-BILLARD CLUB DE NICE","151456B"]
[null,null,"MOUTON-VINCENT","19112-NISSA BILLARD CLUB","153604L"]
[null,null,"MUNOS-JEAN","19050-BILLARD CLUB SAUSSETOIS","109063T"]
[null,null,"MUNOS-VINCENT","19007-BILLARD CLUB BERROIS","109708O"]
[null,null,"MUNOZ-CHRISTIAN","19021-BILLARD CLUB CAVAILLONNAIS","022284C"]
[null,null,"MURAILLE-ALAIN","19017-BILLARD CLUB PHOCEEN","168135F"]
[null,null,"MUSATO-LAETITIA","19127-O CIGALON BILLARD CLUB","117647X"]
[null,null,"N GUYEN VAN DUC-MAX","19007-BILLARD CLUB BERROIS","141788K"]
[null,null,"NABHANE-EMILE","19006-BILLARD CLUB CARPENTRASSIEN","166329S"]
[null,null,"NAPOLI-SALVATORE","19006-BILLARD CLUB CARPENTRASSIEN","107150E"]
[null,null,"NARBONI-PATRICK","19056-BILLARD CLUB DE NICE","013816K"]
[null,null,"NASICA-PATRICK","19014-BILLARD CLUB AVIGNONNAIS","107263N"]
[null,null,"NATALI-MICHEL","19131-BILLARD CLUB DE L ESTAGNOL","101269Z"]
[null,null,"NATELLA-IDA","19056-BILLARD CLUB DE NICE","154573P"]
[null,null,"NATELLA-ROGER","19056-BILLARD CLUB DE NICE","154572N"]
[null,null,"NAUDIN-DIDIER","19027-ACADEMIE DE BILLARD DE BOLLENE","186341V"]
[null,null,"NEGOZIO-JACKY","19059-BILLARD CLUB ROQUEBRUNOIS","185108E"]
[null,null,"NGUYEN-AHN TUAN","19006-BILLARD CLUB CARPENTRASSIEN","164318G"]
[null,null,"NOE-HUGO","19068-BILLARD CLUB ARLESIEN","182538L"]
[null,null,"NOLASQUE-LYDIE","19127-O CIGALON BILLARD CLUB","125919B"]
[null,null,"NOSSIN-MARC","19058-ACADEMIE DE BILLARD DE BARBOSSI MANDELIEU","182190H"]
[null,null,"OLLIVIER-DANIEL","19009-CLUB BILLARD ISTREEN","020258E"]
[null,null,"OUDOUX-GERARD","19023-BILLARD CLUB GARDEEN","128468C"]
[null,null,"PACZESNY-FABRICE","19098-BILLARD CLUB LA FARE","150400D"]
[null,null,"PANAGET-KEVIN","19127-O CIGALON BILLARD CLUB","186539K"]
[null,null,"PAN-JEROME","19127-O CIGALON BILLARD CLUB","164512S"]
[null,null,"PANTALONE-CLAUDE","19017-BILLARD CLUB PHOCEEN","185639G"]
[null,null,"PAU-CHRISTINE","19025-BILLARD CLUB SISTERONNAIS","177193B"]
[null,null,"PAUL-ANTOINE","19002-SPORT AMAT.DE BILLARD MARSEILLAIS","183593H"]
[null,null,"PELLAT-FRANCIS","19025-BILLARD CLUB SISTERONNAIS","141673Z"]
[null,null,"PEREY-ELEONORE","19008-BRITISH BILLARD CLUB AVIGNON","182269T"]
[null,null,"PEREZ-CHRISTIAN","19009-CLUB BILLARD ISTREEN","130773T"]
[null,null,"PERIS-MICHEL","19056-BILLARD CLUB DE NICE","022321N"]
[null,null,"PERRIER-GILLES","19021-BILLARD CLUB CAVAILLONNAIS","021540M"]
[null,null,"PERRIN-GILLES","19068-BILLARD CLUB ARLESIEN","101398Y"]
[null,null,"PERRIN-LIONEL","19023-BILLARD CLUB GARDEEN","181624S"]
[null,null,"PERSONNE-MARTINE","19008-BRITISH BILLARD CLUB AVIGNON","170701V"]
[null,null,"PERTUZON-NOLAN","19009-CLUB BILLARD ISTREEN","179786V"]
[null,null,"PIALLA-VALERIE","19009-CLUB BILLARD ISTREEN","182685W"]
[null,null,"PICCHI-GERARD","19009-CLUB BILLARD ISTREEN","135135N"]
[null,null,"PIELIN-PASCAL","19012-SALON BILLARD CLUB","022330W"]
[null,null,"PIGNATEL-FLORENT","19021-BILLARD CLUB CAVAILLONNAIS","112316W"]
[null,null,"PILAVDJIAN-JACQUES","19017-BILLARD CLUB PHOCEEN","165118B"]
[null,null,"PINARD-PATRICE","19012-SALON BILLARD CLUB","105404A"]
[null,null,"PINNA-ALAIN","19017-BILLARD CLUB PHOCEEN","022332Y"]
[null,null,"PINNA-VINCENT","19017-BILLARD CLUB PHOCEEN","148229T"]
[null,null,"PIRO COUDERC-MARIE LAURE","19025-BILLARD CLUB SISTERONNAIS","177205P"]
[null,null,"PLE-CYRIL","19025-BILLARD CLUB SISTERONNAIS","177189X"]
[null,null,"POIRIER-DOMINIQUE","19061-ACAD.BILLARD ST RAPHAEL","108010G"]
[null,null,"PONT-CEDRIC","19002-SPORT AMAT.DE BILLARD MARSEILLAIS","183247G"]
[null,null,"PORA-JEAN PAUL","19009-CLUB BILLARD ISTREEN","170697Q"]
[null,null,"PORTET-PATRICK","19059-BILLARD CLUB ROQUEBRUNOIS","181316H"]
[null,null,"POUGIN-JEAN FRANCOIS","19059-BILLARD CLUB ROQUEBRUNOIS","022346M"]
[null,null,"POZNANSKI-JEAN MICHEL","19012-SALON BILLARD CLUB","022349P"]
[null,null,"PROFIT-GILBERT","19056-BILLARD CLUB DE NICE","143885B"]
[null,null,"PTSIAMITAS-PANAGIOTIS","19090-BILLARD AMATEUR ROGNAC","180317X"]
[null,null,"PUICHAULT-REMY","19025-BILLARD CLUB SISTERONNAIS","172219V"]
[null,null,"QUANTINET-ROBERT","19058-ACADEMIE DE BILLARD DE BARBOSSI MANDELIEU","143151V"]
[null,null,"QUARTO-LARA","19056-BILLARD CLUB DE NICE","174009Q"]
[null,null,"QUILLET-LORIS","19130-BLACK BALL CAVAILLONNAIS","174571B"]
[null,null,"QUILLET-YANN","19130-BLACK BALL CAVAILLONNAIS","186763D"]
[null,null,"RAMAROSON-HERIZO","19002-SPORT AMAT.DE BILLARD MARSEILLAIS","182722L"]
[null,null,"RAMIREZ-ALAIN","19001-S. S. A. B. D AIX EN PROVENCE","176234J"]
[null,null,"RAMOND-JEAN MARC","19058-ACADEMIE DE BILLARD DE BARBOSSI MANDELIEU","022357X"]
[null,null,"RANC-ALAIN","19027-ACADEMIE DE BILLARD DE BOLLENE","136205R"]
[null,null,"RANIERI-JEAN ANDRE","19136-BLACK BALL CONCEPT","101290U"]
[null,null,"RAVENET-FRANCIS","19059-BILLARD CLUB ROQUEBRUNOIS","157788J"]
[null,null,"REMIRO-CANDIDO","19130-BLACK BALL CAVAILLONNAIS","156535X"]
[null,null,"RENAUD-JEAN PAUL","19009-CLUB BILLARD ISTREEN","133622I"]
[null,null,"RENAUD-MARTINE","19127-O CIGALON BILLARD CLUB","153346F"]
[null,null,"RENAUD-THIERRY","19127-O CIGALON BILLARD CLUB","153347G"]
[null,null,"REVALOR-MICHEL","19050-BILLARD CLUB SAUSSETOIS","119696S"]
[null,null,"RIBOLLA-PATRICE","19056-BILLARD CLUB DE NICE","022366G"]
[null,null,"RICARD-AUDREY","19127-O CIGALON BILLARD CLUB","147449W"]
[null,null,"RICHAUD-PIERRE","19017-BILLARD CLUB PHOCEEN","107093Z"]
[null,null,"RIGNOLS-PHILIPPE","19021-BILLARD CLUB CAVAILLONNAIS","022372M"]
[null,null,"RIGOLLET-PIERRE","19025-BILLARD CLUB SISTERONNAIS","023064C"]
[null,null,"RIVARD-MICHEL","19093-AMERICAN CLUB LOUIS XI","156515A"]
[null,null,"RIVIER-PATRICE","19017-BILLARD CLUB PHOCEEN","170733E"]
[null,null,"ROBERT-DOMINIQUE","19056-BILLARD CLUB DE NICE","022376Q"]
[null,null,"ROBIN-JEAN FRANCOIS","19056-BILLARD CLUB DE NICE","143938C"]
[null,null,"ROCCA-JEAN","19017-BILLARD CLUB PHOCEEN","182388Y"]
[null,null,"RODRIGUES-STEVE","19090-BILLARD AMATEUR ROGNAC","171160T"]
[null,null,"ROGER-GERARD","19021-BILLARD CLUB CAVAILLONNAIS","134843H"]
[null,null,"RONSAIN-JEAN JACQUES","19012-SALON BILLARD CLUB","166175A"]
[null,null,"ROUANET-CLAUDE","19025-BILLARD CLUB SISTERONNAIS","163166E"]
[null,null,"ROUGON-ROBERT","19007-BILLARD CLUB BERROIS","101518O"]
[null,null,"ROUSSEL-PATRICE","19068-BILLARD CLUB ARLESIEN","172468Q"]
[null,null,"RYCKELYNCK-LAURENT","19006-BILLARD CLUB CARPENTRASSIEN","121397D"]
[null,null,"SABAH-YVES","19001-S. S. A. B. D AIX EN PROVENCE","153753Y"]
[null,null,"SAJ-PATRICK","19017-BILLARD CLUB PHOCEEN","185637E"]
[null,null,"SALAMA-ALAIN","19021-BILLARD CLUB CAVAILLONNAIS","136546U"]
[null,null,"SALES-THIERRY","19061-ACAD.BILLARD ST RAPHAEL","175174G"]
[null,null,"SANDEAUX-JEAN CLEMENT","19001-S. S. A. B. D AIX EN PROVENCE","182824X"]
[null,null,"SANTIAGO-EMMANUEL","19021-BILLARD CLUB CAVAILLONNAIS","118693D"]
[null,null,"SANTIAGO-JEAN JOSEPH","19050-BILLARD CLUB SAUSSETOIS","022391F"]
[null,null,"SANTORO-JENNIFER","19127-O CIGALON BILLARD CLUB","122933F"]
[null,null,"SARRALDE-LOUIS","19021-BILLARD CLUB CAVAILLONNAIS","014138U"]
[null,null,"SAUVAN-HENRY","19023-BILLARD CLUB GARDEEN","164008V"]
[null,null,"SAVARY-PHILIPPE","19059-BILLARD CLUB ROQUEBRUNOIS","174856L"]
[null,null,"SAVI-OLIVIER","19050-BILLARD CLUB SAUSSETOIS","186195L"]
[null,null,"SAVOIA-PATRICK","19050-BILLARD CLUB SAUSSETOIS","113222S"]
[null,null,"SAVOIE-ISABELLE","19130-BLACK BALL CAVAILLONNAIS","119929R"]
[null,null,"SCHAEFER-ERNEST ROBERT","19006-BILLARD CLUB CARPENTRASSIEN","149694L"]
[null,null,"SCHENK-ROBERT","19056-BILLARD CLUB DE NICE","136540O"]
[null,null,"SCHOU-MICHEL","19023-BILLARD CLUB GARDEEN","183292F"]
[null,null,"SEBAH-JEAN PAUL","19017-BILLARD CLUB PHOCEEN","175481Q"]
[null,null,"SEDANO-JEAN LUC","19130-BLACK BALL CAVAILLONNAIS","014712W"]
[null,null,"SEDRATI-ONIS","19002-SPORT AMAT.DE BILLARD MARSEILLAIS","182207B"]
[null,null,"SEEBORUTH-NIKHIL","19002-SPORT AMAT.DE BILLARD MARSEILLAIS","186463C"]
[null,null,"SEEMANN-MICHAEL","19025-BILLARD CLUB SISTERONNAIS","182883L"]
[null,null,"SELLIER-MICHEL","19056-BILLARD CLUB DE NICE","022406U"]
[null,null,"SERMON-FABIO","19130-BLACK BALL CAVAILLONNAIS","149899J"]
[null,null,"SICARD-GEORGES","19025-BILLARD CLUB SISTERONNAIS","163238H"]
[null,null,"SIDGUI-OUSSAMA","19002-SPORT AMAT.DE BILLARD MARSEILLAIS","182206A"]
[null,null,"SIEGLER-JEAN PIERRE","19006-BILLARD CLUB CARPENTRASSIEN","168834Q"]
[null,null,"SIMIAN-FABIENNE","19130-BLACK BALL CAVAILLONNAIS","156378B"]
[null,null,"SIMON-GERARD","19014-BILLARD CLUB AVIGNONNAIS","010203L"]
[null,null,"SIMON-PASCAL","19127-O CIGALON BILLARD CLUB","114485H"]
[null,null,"SINANIAN-JEAN PAUL","19017-BILLARD CLUB PHOCEEN","022412A"]
[null,null,"SKAF-JOSEPH","19002-SPORT AMAT.DE BILLARD MARSEILLAIS","134702W"]
[null,null,"SOLARI-ANNICK","19098-BILLARD CLUB LA FARE","151274D"]
[null,null,"SOLTANI-OMAR","19106-BILLARD CLUB VINONNAIS","103578U"]
[null,null,"SOULIER-JENNIFER","19068-BILLARD CLUB ARLESIEN","178610R"]
[null,null,"SPINNLER-JEAN LUC","19027-ACADEMIE DE BILLARD DE BOLLENE","165931K"]
[null,null,"STEINMANN-SEBASTIEN","19061-ACAD.BILLARD ST RAPHAEL","020790Q"]
[null,null,"STEPHAN-OLIVIER","19025-BILLARD CLUB SISTERONNAIS","125931N"]
[null,null,"STRAUDO-JEAN PIERRE","19090-BILLARD AMATEUR ROGNAC","179072T"]
[null,null,"STRAUDO-MICHEL","19090-BILLARD AMATEUR ROGNAC","156278S"]
[null,null,"SUMILE-JODERICK","19112-NISSA BILLARD CLUB","186725M"]
[null,null,"SURATEAU-BERNARD","19061-ACAD.BILLARD ST RAPHAEL","165925D"]
[null,null,"TAN-BUN HO","19068-BILLARD CLUB ARLESIEN","182372F"]
[null,null,"TARDIEUX-LUC","19098-BILLARD CLUB LA FARE","022429R"]
[null,null,"TARDY-JEAN CLAUDE","19014-BILLARD CLUB AVIGNONNAIS","133907H"]
[null,null,"TARDY-PIERRE YVES","19058-ACADEMIE DE BILLARD DE BARBOSSI MANDELIEU","143024Y"]
[null,null,"TARTING-BERNARD","19001-S. S. A. B. D AIX EN PROVENCE","160345N"]
[null,null,"TEYSSIER-SERGE","19007-BILLARD CLUB BERROIS","132938A"]
[null,null,"THEVENET-JEAN CLAUDE","19025-BILLARD CLUB SISTERONNAIS","014232K"]
[null,null,"THIBAULT-LUCETTE","19106-BILLARD CLUB VINONNAIS","184678M"]
[null,null,"THIBOUT-HERVE","19017-BILLARD CLUB PHOCEEN","186654K"]
[null,null,"THIERY-PATRICE","19068-BILLARD CLUB ARLESIEN","173938N"]
[null,null,"THOMAS-MICHEL","19061-ACAD.BILLARD ST RAPHAEL","125937T"]
[null,null,"THOMAS-PHILIPPE","19023-BILLARD CLUB GARDEEN","168687F"]
[null,null,"TIBERT-THIERRY","19055-ACADEMIE DE BILLARD DE MENTON","113231B"]
[null,null,"TICHADOU-SAMY","19002-SPORT AMAT.DE BILLARD MARSEILLAIS","186465E"]
[null,null,"TOMASINI-ALEXANDRE","19055-ACADEMIE DE BILLARD DE MENTON","105800G"]
[null,null,"TONINI BOSSI-LAURENT","19002-SPORT AMAT.DE BILLARD MARSEILLAIS","131820A"]
[null,null,"TONOLI-PASCAL","19059-BILLARD CLUB ROQUEBRUNOIS","022438A"]
[null,null,"TORES-JEAN LUC","19009-CLUB BILLARD ISTREEN","135554Q"]
[null,null,"TORRE-BENOIT","19068-BILLARD CLUB ARLESIEN","180537L"]
[null,null,"TOUATI-WILLIAM","19002-SPORT AMAT.DE BILLARD MARSEILLAIS","186455T"]
[null,null,"TOULLEC-DANIEL","19059-BILLARD CLUB ROQUEBRUNOIS","177643Q"]
[null,null,"TOUREILLE-ALAIN","19025-BILLARD CLUB SISTERONNAIS","139062O"]
[null,null,"TOURE-MADOU","19002-SPORT AMAT.DE BILLARD MARSEILLAIS","014256I"]
[null,null,"TRAN-KEVIN","19002-SPORT AMAT.DE BILLARD MARSEILLAIS","022443F"]
[null,null,"TURPIN-JEAN","19001-S. S. A. B. D AIX EN PROVENCE","172679V"]
[null,null,"VAHE-GUILLAUME","19112-NISSA BILLARD CLUB","107282G"]
[null,null,"VALENSI-GERARD","19017-BILLARD CLUB PHOCEEN","022453P"]
[null,null,"VALET-JEAN MICHEL","19023-BILLARD CLUB GARDEEN","177653B"]
[null,null,"VALETTE-SYLVAIN","19023-BILLARD CLUB GARDEEN","177654C"]
[null,null,"VALLETTE-PHILIPPE","19027-ACADEMIE DE BILLARD DE BOLLENE","171874V"]
[null,null,"VALMAGGIA-CHRISTIAN","19009-CLUB BILLARD ISTREEN","141274Q"]
[null,null,"VALVERDE-JEAN YVES","19023-BILLARD CLUB GARDEEN","153163G"]
[null,null,"VAN GOOL-FRANS","19058-ACADEMIE DE BILLARD DE BARBOSSI MANDELIEU","170621H"]
[null,null,"VAN OVERSTRAETEN-JULIEN","19002-SPORT AMAT.DE BILLARD MARSEILLAIS","186462B"]
[null,null,"VAN WIJNGAARDEN-HANS","19058-ACADEMIE DE BILLARD DE BARBOSSI MANDELIEU","143155Z"]
[null,null,"VAUTRIN-JEAN","19056-BILLARD CLUB DE NICE","022459V"]
[null,null,"VIAL-HUGO","19112-NISSA BILLARD CLUB","159948G"]
[null,null,"VICTOR-DANIEL","19019-BILLARD CLUB DE LA BAIE","147412F"]
[null,null,"VIDAL-RENE BERNARD","19106-BILLARD CLUB VINONNAIS","181240A"]
[null,null,"VIERA MAIA-ARLINDO","19061-ACAD.BILLARD ST RAPHAEL","148051A"]
[null,null,"VIGNE-PHILIPPE","19014-BILLARD CLUB AVIGNONNAIS","014327B"]
[null,null,"VILLAR-FRANCOIS","19112-NISSA BILLARD CLUB","149606Q"]
[null,null,"VILLAR-LOUP","19112-NISSA BILLARD CLUB","176924J"]
[null,null,"VILLASEVIL-ANTONIO","19007-BILLARD CLUB BERROIS","101485H"]
[null,null,"VILLEMAIN-SYLVAIN","19130-BLACK BALL CAVAILLONNAIS","153007M"]
[null,null,"VILLENAVE-REGIS","19068-BILLARD CLUB ARLESIEN","172469R"]
[null,null,"VILLENEUVE-THEO","19127-O CIGALON BILLARD CLUB","186540L"]
[null,null,"VISCONTI-JEAN","19090-BILLARD AMATEUR ROGNAC","138731V"]
[null,null,"VIVALDI-ANDRE","19106-BILLARD CLUB VINONNAIS","022476M"]
[null,null,"VUILLAUME-JEAN CLAUDE","19056-BILLARD CLUB DE NICE","154571M"]
[null,null,"VULTAGGIO-PIERRE","19058-ACADEMIE DE BILLARD DE BARBOSSI MANDELIEU","022480Q"]
[null,null,"WALLON-PATRICK","19027-ACADEMIE DE BILLARD DE BOLLENE","176943E"]
[null,null,"WARLET-JEAN CLAUDE","19061-ACAD.BILLARD ST RAPHAEL","117872O"]
[null,null,"WILLAME-PHILIPPE","19001-S. S. A. B. D AIX EN PROVENCE","152534Y"]
[null,null,"WIRTH-HUGO","19002-SPORT AMAT.DE BILLARD MARSEILLAIS","186649E"]
[null,null,"WOLFF-MAXIME","19002-SPORT AMAT.DE BILLARD MARSEILLAIS","182608M"]
[null,null,"WYNIGER-ERIC","19014-BILLARD CLUB AVIGNONNAIS","172921H"]
[null,null,"WYNIGER-MARC","19014-BILLARD CLUB AVIGNONNAIS","172922J"]
[null,null,"XUEREF-JEAN MARIE","19019-BILLARD CLUB DE LA BAIE","152049W"]
[null,null,"YORAC-ARNOLF","19138-BILLARD CLUB FREJUSSIEN","143308W"]
[null,null,"YUNG-NADEGE","19130-BLACK BALL CAVAILLONNAIS","166159H"]
[null,null,"YVOZ-ALAIN","19006-BILLARD CLUB CARPENTRASSIEN","184288N"]
[null,null,"ZANDRINO-ALAIN","19007-BILLARD CLUB BERROIS","134311V"]
[null,null,"ZATTERA-GIOVANNI","19002-SPORT AMAT.DE BILLARD MARSEILLAIS","186520P"]
[null,null,"ZOPPI-AIME","19106-BILLARD CLUB VINONNAIS","144788U"]
[null,null,"ZOPPI-CEDRIC","19106-BILLARD CLUB VINONNAIS","125457H"]
[null,null,"ZOUARI-SAMY","19002-SPORT AMAT.DE BILLARD MARSEILLAIS","184338S"]

{"sheet":"Données","index":1,"n_rows":616,"n_cols":13,"rows_kept":616,"cut":false,"hidden":true,"merged":[]}
["Compétition","Mode de jeu","Catégorie",null,"LMB","Licence",null,null,null,"Clubs (sans espaces)"]
["Finale Dept","Libre","Masters",null,"Nom joueur","Club","Licence",null,"19061--ACAD.BILLARD ST RAPHAEL",{"$f":"TRIM(I2)","v":"19061--ACAD.BILLARD ST RAPHAEL"},"PROMENADE RENE COTY",null,"83700 ST RAPHAEL"]
["Finale District","Cadre","Nationale 1",null,"Joueur blanc","Sans","Sans",null,"19027--ACADEMIE DE BILLARD DE BOLLENE",{"$f":"TRIM(I3)","v":"19027--ACADEMIE DE BILLARD DE BOLLENE"},"GROUPE SCOLAIRE PIERRE MARIE CURIE",null,"84500 BOLLENE"]
["FinaleLigue","1 Bande","Nationale 2",null,"ABAD-YANNICK","19002--SPORT AMAT.DE BILLARD MARSEILLAIS","106287Z",null,"19055--ACADEMIE DE BILLARD DE MENTON","19055--ACADEMIE DE BILLARD DE MENTON","Académie municipale de billard","Allée du Louvre Salon du Louvre","06500 MENTON"]
[null,"3 Bandes","Nationale 3",null,"ABELA-JOSEPH","19021-BILLARD CLUB CAVAILLONNAIS","159403P",null,"19001--S. S. A. B. D AIX EN PROVENCE","19001--S. S. A. B. D AIX EN PROVENCE","RUE PIERRE DE COUBERTIN",null,"13100 AIX EN PROVENCE"]
[null,"Autres","Régionale 1",null,"AGNES-ALEXANDRE","19127-O CIGALON BILLARD CLUB","147448V",null,"19090--BILLARD AMATEUR ROGNAC","19090--BILLARD AMATEUR ROGNAC","60 BOULEVARD JEAN JAURES",null,"13340 ROGNAC"]
[null,null,"Régionale 2",null,"AGOPIAN-VICTOR","19050-BILLARD CLUB SAUSSETOIS","146637X",null,"19014--BILLARD CLUB AVIGNONNAIS","19014--BILLARD CLUB AVIGNONNAIS","12 RUE BONAPARTE","MAISON DU COMBATTANT","84000 AVIGNON"]
["Format billard",null,"Régionale 3",null,"AKNIN-GABRIEL","19027-ACADEMIE DE BILLARD DE BOLLENE","021810W",null,"19007--BILLARD CLUB BERROIS","19007--BILLARD CLUB BERROIS","RUE MARCEL PAGNOL",null,"13130 BERRE L'ETANG"]
["2,80m ",null,"Régionale 4",null,"AKTAS-JEAN","19112-NISSA BILLARD CLUB","147980Y",null,"19006--BILLARD CLUB CARPENTRASSIEN","19006--BILLARD CLUB CARPENTRASSIEN","264 BOULEVARD ALBIN DURAND",null,"84200 CARPENTRAS"]
["2,80m ",null,"Dame",null,"ALESSI-JEAN PIERRE","19023-BILLARD CLUB GARDEEN","149448T",null,"19021--BILLARD CLUB CAVAILLONNAIS","19021--BILLARD CLUB CAVAILLONNAIS","CERCLE DE L INDEPENDANCE","97 COURS VICTOR HUGO","84300 CAVAILLON"]
["3,10m",null,"Juniors",null,"ALIBERT-BRUNO","19056-BILLARD CLUB DE NICE","151459E",null,"19008--BRITISH BILLARD CLUB AVIGNON","19008--BRITISH BILLARD CLUB AVIGNON","2 Boulevard de Metz",null,"84000 AVIGNON"]
["42/2",null,"Cadet",null,"ALLAL-SOUHIL","19130-BLACK BALL CAVAILLONNAIS","132516U",null,"19019--BILLARD CLUB DE LA BAIE","19019--BILLARD CLUB DE LA BAIE","SALLE OTTAVI","AVENUE DES ALLIES","83240 CAVALAIRE SUR MER"]
["47/2",null,null,null,"ALLIGIER-GERARD","19019-BILLARD CLUB DE LA BAIE","157036R",null,"19058--ACADEMIE DE BILLARD DE BARBOSSI MANDELIEU","19058--ACADEMIE DE BILLARD DE BARBOSSI MANDELIEU","23 Chemin de Maures-Viel","Domaine de Barbossi","06210 MANDELIEU LA NAPOULE"]
["2,80m PC","Forfaits","Distances",null,"ALLORGE-STEPHANE","19009-CLUB BILLARD ISTREEN","186296W",null,"19056--BILLARD CLUB DE NICE","19056--BILLARD CLUB DE NICE","SALLE MALATESTA","64 AVENUE CYRILLE BESSET","06100 NICE"]
["2,80m GC","Excusé","10 pts",null,"ALVAREZ-PHILIPPE","19056-BILLARD CLUB DE NICE","159130S",null,"19098--BILLARD CLUB LA FARE","19098--BILLARD CLUB LA FARE","36 BIS AVENUE PASTEUR",null,"13580 LA FARE LES OLIVIERS"]
[null,"Non excusé","20 pts",null,"ALVISET-GUY","19050-BILLARD CLUB SAUSSETOIS","152035F",null,"19023--BILLARD CLUB GARDEEN","19023--BILLARD CLUB GARDEEN","LE MAS QUARTIER SAINTE MARGUERITE","293 AVENUE PIERRE LOTI","83130 LA GARDE"]
[null,"Reprises","30 pts",null,"AMANS-HERVE","19009-CLUB BILLARD ISTREEN","177854V",null,"19016--BILLARD CLUB ORANGEOIS","19016--BILLARD CLUB ORANGEOIS","MAISON DES ASSOCIATIONS","ROUTE DE CADEROUSSE","84100 ORANGE"]
[null,"10 rep","35 pts",null,"AMMARI-ANAS","19002-SPORT AMAT.DE BILLARD MARSEILLAIS","186456V",null,"19017--BILLARD CLUB PHOCEEN","19017--BILLARD CLUB PHOCEEN","12 rue du docteur ACQUAVIVA",null,"13004 MARSEILLE"]
["Points","15 rep","40 pts",null,"AMOUROUX-JACQUES ANTOINE","19023-BILLARD CLUB GARDEEN","162879S",null,"19059--BILLARD CLUB ROQUEBRUNOIS","19059--BILLARD CLUB ROQUEBRUNOIS","44 avenue Gabriel Péri",null,"83520 ROQUEBRUNE SUR ARGENS"]
[2,"20 rep","50 pts",null,"AMOUROUX-LUC","19023-BILLARD CLUB GARDEEN","155531F",null,"19012--SALON BILLARD CLUB","19012--SALON BILLARD CLUB","CERCLE DES ARTS","RUE DES FILEUSES DE SOIE","13300 SALON DE PROVENCE"]
[1,"25 rep","60 pts",null,"ANGUE-PATRICK","19056-BILLARD CLUB DE NICE","021819F",null,"19050--BILLARD CLUB SAUSSETOIS","19050--BILLARD CLUB SAUSSETOIS","PARC MUNICIPAL DES LOISIRS","31 AVENUE DE LA COTE BLEUE","13960 SAUSSET LES PINS"]
[0,"30 rep","70 pts",null,"ANNESTAY-JACQUES","19025-BILLARD CLUB SISTERONNAIS","021820G",null,"19025--BILLARD CLUB SISTERONNAIS","19025--BILLARD CLUB SISTERONNAIS","73 AVENUE DE LA DURANCE","SALLE OMNISPORT DANIEL MAFFREN","04200 SISTERON"]
[null,"35 rep","80 pts",null,"ANTONIN-ALAIN","19021-BILLARD CLUB CAVAILLONNAIS","021821H",null,"19106--BILLARD CLUB VINONNAIS","19106--BILLARD CLUB VINONNAIS","480 RUE DES ENTREPRENEURS","ZA DU PAS DE MENC","83560 VINON SUR VERDON"]
[null,"40 rep","100 pts",null,"ARBAUD-STEPHANE","19112-NISSA BILLARD CLUB","021824K",null,"19009--CLUB BILLARD ISTREEN","19009--CLUB BILLARD ISTREEN","HALLE POLYVALENTE PLACE RAOUX","ALLEE DES ECHOPPES","13800 ISTRES"]
[null,"50 rep","120 pts",null,"ARENAS-ROLDAN","19055-ACADEMIE DE BILLARD DE MENTON","181505N",null,"19002--SPORT AMAT.DE BILLARD MARSEILLAIS","19002--SPORT AMAT.DE BILLARD MARSEILLAIS","26 RUE PAVILLON",null,"13001 MARSEILLE"]
[null,"60 rep","150 pts",null,"ARGENTIN-JEAN NOEL","19127-O CIGALON BILLARD CLUB","126179B"]
[null,null,"180 pts",null,"ARMENGAU-PHILIPPE","19056-BILLARD CLUB DE NICE","161785D"]
[null,null,"200 pts",null,"ARNAUD-PIERRE","19006-BILLARD CLUB CARPENTRASSIEN","122035R"]
[null,null,"250 pts",null,"ARNOUX-LAURENT","19058-ACADEMIE DE BILLARD DE BARBOSSI MANDELIEU","180272Y"]
[null,null,"300 pts",null,"AUBERT ROUECHE-LYDIA","19106-BILLARD CLUB VINONNAIS","148204R"]
[null,null,"400 pts",null,"AUDIBERT-JEAN PIERRE","19012-SALON BILLARD CLUB","106513R"]
[null,null,null,null,"AUTRAND-MICHEL","19001-S. S. A. B. D AIX EN PROVENCE","172643F"]
[null,null,null,null,"AZOULAY-ALAIN","19017-BILLARD CLUB PHOCEEN","021839Z"]
[null,null,null,null,"BACHERGIAN-MAXENCE","19002-SPORT AMAT.DE BILLARD MARSEILLAIS","174115F"]
[null,null,null,null,"BADINIER MARC","19058-ACADEMIE DE BILLARD DE BARBOSSI MANDELIEU","189187N"]
[null,null,null,null,"BAILLON-JEAN","19058-ACADEMIE DE BILLARD DE BARBOSSI MANDELIEU","115304U"]
[null,null,null,null,"BAJEUX-JEAN LOUIS","19090-BILLARD AMATEUR ROGNAC","183850M"]
[null,null,null,null,"BALESTRI-MAURICE","19058-ACADEMIE DE BILLARD DE BARBOSSI MANDELIEU","153554G"]
[null,null,null,null,"BALLAIS-REMI","19017-BILLARD CLUB PHOCEEN","186655L"]
[null,null,null,null,"BALLIGAND-SERGE","19059-BILLARD CLUB ROQUEBRUNOIS","023184S"]
[null,null,null,null,"BANO-SERGE","19001-S. S. A. B. D AIX EN PROVENCE","149693K"]
[null,null,null,null,"BARBANNEAU-FREDERIC","19106-BILLARD CLUB VINONNAIS","109917P"]
[null,null,null,null,"BARBESANT-DIDIER","19058-ACADEMIE DE BILLARD DE BARBOSSI MANDELIEU","168289Y"]
[null,null,null,null,"BARNES-JEAN PIERRE","19009-CLUB BILLARD ISTREEN","177120X"]
[null,null,null,null,"BAROTH-DARIO","19127-O CIGALON BILLARD CLUB","174346G"]
[null,null,null,null,"BAROTH-LOEVA","19127-O CIGALON BILLARD CLUB","174347H"]
[null,null,null,null,"BARRALLON-JEAN PAUL","19023-BILLARD CLUB GARDEEN","122300W"]
[null,null,null,null,"BARTHE-CHANTAL","19090-BILLARD AMATEUR ROGNAC","179073V"]
[null,null,null,null,"BASELGA-PASCAL","19093-AMERICAN CLUB LOUIS XI","135538A"]
[null,null,null,null,"BASSOUL-JEAN MARIE","19006-BILLARD CLUB CARPENTRASSIEN","103568K"]
[null,null,null,null,"BAUDOUX-JEAN CLAUDE","19058-ACADEMIE DE BILLARD DE BARBOSSI MANDELIEU","164877P"]
[null,null,null,null,"BAYARD-JEAN CLAUDE","19021-BILLARD CLUB CAVAILLONNAIS","021860U"]
[null,null,null,null,"BAYLE-PASCAL","19090-BILLARD AMATEUR ROGNAC","021861V"]
[null,null,null,null,"BEAUCHANT-FABRICE","19131-BILLARD CLUB DE L ESTAGNOL","182453T"]
[null,null,null,null,"BECK-MICHEL","19061-ACAD.BILLARD ST RAPHAEL","011797T"]
[null,null,null,null,"BEDARIDE-NICOLAS","19002-SPORT AMAT.DE BILLARD MARSEILLAIS","170823C"]
[null,null,null,null,"BEDOC-JACQUES","19007-BILLARD CLUB BERROIS","021863X"]
[null,null,null,null,"BELAICH-EDOUARD","19017-BILLARD CLUB PHOCEEN","175776L"]
[null,null,null,null,"BELHASSEN-BENJAMIN","19112-NISSA BILLARD CLUB","021865Z"]
[null,null,null,null,"BELINGUIER-MAXIME","19002-SPORT AMAT.DE BILLARD MARSEILLAIS","182588Q"]
[null,null,null,null,"BELTRITTI-JEAN YVES","19106-BILLARD CLUB VINONNAIS","132789H"]
[null,null,null,null,"BENAVIDES-CLAUDE","19012-SALON BILLARD CLUB","021872G"]
[null,null,null,null,"BENAVIDES-GERARD","19012-SALON BILLARD CLUB","138275H"]
[null,null,null,null,"BENDAVID-KARINE","19112-NISSA BILLARD CLUB","124802C"]
[null,null,null,null,"BENHAMOU-ALEXIS","19001-S. S. A. B. D AIX EN PROVENCE","160341J"]
[null,null,null,null,"BENIER-PATRICK","19023-BILLARD CLUB GARDEEN","159238K"]
[null,null,null,null,"BENOIT-MICHEL","19027-ACADEMIE DE BILLARD DE BOLLENE","159790K"]
[null,null,null,null,"BENSAID-NOEL","19138-BILLARD CLUB FREJUSSIEN","160011A"]
[null,null,null,null,"BERLIOZ-PASCAL","19006-BILLARD CLUB CARPENTRASSIEN","151532J"]
[null,null,null,null,"BERNABEI-ROBERT","19093-AMERICAN CLUB LOUIS XI","153662Z"]
[null,null,null,null,"BERNAT-JEAN PIERRE","19023-BILLARD CLUB GARDEEN","125945B"]
[null,null,null,null,"BERNICHON-PASCAL","19127-O CIGALON BILLARD CLUB","115001D"]
[null,null,null,null,"BIARD-ANDRE","19009-CLUB BILLARD ISTREEN","159202W"]
[null,null,null,null,"BIARD-ARTHUR","19009-CLUB BILLARD ISTREEN","173584D"]
[null,null,null,null,"BIARD-NOAH","19009-CLUB BILLARD ISTREEN","173583C"]
[null,null,null,null,"BIDDAU-FRANCOIS","19009-CLUB BILLARD ISTREEN","125917Z"]
[null,null,null,null,"BIOT-ELODIE","19058-ACADEMIE DE BILLARD DE BARBOSSI MANDELIEU","183516Z"]
[null,null,null,null,"BLANC SANTELLI-ERIC","19009-CLUB BILLARD ISTREEN","179744Z"]
[null,null,null,null,"BLANCA-JOAQUIM","19131-BILLARD CLUB DE L ESTAGNOL","010403D"]
[null,null,null,null,"BLANCA-LEO","19131-BILLARD CLUB DE L ESTAGNOL","181218B"]
[null,null,null,null,"BOCCHETTA-ERIC","19093-AMERICAN CLUB LOUIS XI","169485Y"]
[null,null,null,null,"BOGGIO POLA-PIERRE","19007-BILLARD CLUB BERROIS","181202J"]
[null,null,null,null,"BOLLOTTE-BENIGNE","19023-BILLARD CLUB GARDEEN","175504Q"]
[null,null,null,null,"BONACCORSI-LORENZO","19002-SPORT AMAT.DE BILLARD MARSEILLAIS","186460Z"]
[null,null,null,null,"BONELLO-LUCIEN","19090-BILLARD AMATEUR ROGNAC","021894C"]
[null,null,null,null,"BONETTO-JEAN LOUIS","19050-BILLARD CLUB SAUSSETOIS","186374F"]
[null,null,null,null,"BONNEMAISON-DENIS","19009-CLUB BILLARD ISTREEN","150422C"]
[null,null,null,null,"BONNICI-ROGER","19017-BILLARD CLUB PHOCEEN","168593D"]
[null,null,null,null,"BONTOUX-MAX","19007-BILLARD CLUB BERROIS","021900I"]
[null,null,null,null,"BOPEA-CHRISTIAN","19127-O CIGALON BILLARD CLUB","125957N"]
[null,null,null,null,"BORDES-BERNARD","19061-ACAD.BILLARD ST RAPHAEL","149287T"]
[null,null,null,null,"BORDES-CATHERINE","19061-ACAD.BILLARD ST RAPHAEL","149288V"]
[null,null,null,null,"BORGNA-GUY","19001-S. S. A. B. D AIX EN PROVENCE","184114Z"]
[null,null,null,null,"BOSSOT-JEAN","19027-ACADEMIE DE BILLARD DE BOLLENE","160000N"]
[null,null,null,null,"BOUFFLET-THIERRY","19025-BILLARD CLUB SISTERONNAIS","182430T"]
[null,null,null,null,"BOULANT-CLAUDE","19019-BILLARD CLUB DE LA BAIE","155529D"]
[null,null,null,null,"BOURDELLES-LAURENT","19055-ACADEMIE DE BILLARD DE MENTON","021911T"]
[null,null,null,null,"BOUTILLE-NICOLAS","19027-ACADEMIE DE BILLARD DE BOLLENE","122662U"]
[null,null,null,null,"BOUTTIER-CAROLINE","19127-O CIGALON BILLARD CLUB","125921D"]
[null,null,null,null,"BOUTTIER-CHARLES","19056-BILLARD CLUB DE NICE","118665B"]
[null,null,null,null,"BRAYER-DENIS","19008-BRITISH BILLARD CLUB AVIGNON","016411F"]
[null,null,null,null,"BREDAT-RENE","19025-BILLARD CLUB SISTERONNAIS","021918A"]
[null,null,null,null,"BREGRE-SEBASTIEN","19002-SPORT AMAT.DE BILLARD MARSEILLAIS","159347D"]
[null,null,null,null,"BREPSON-MARTIAL","19058-ACADEMIE DE BILLARD DE BARBOSSI MANDELIEU","152345S"]
[null,null,null,null,"BRETON-LUC","19006-BILLARD CLUB CARPENTRASSIEN","172527E"]
[null,null,null,null,"BRIAND-ALAIN","19002-SPORT AMAT.DE BILLARD MARSEILLAIS","113104E"]
[null,null,null,null,"BRIOIT-DOMINIQUE","19055-ACADEMIE DE BILLARD DE MENTON","021920C"]
[null,null,null,null,"BRIOSNE-PASCAL","19001-S. S. A. B. D AIX EN PROVENCE","021922E"]
[null,null,null,null,"BROYER-PHILIPPE","19127-O CIGALON BILLARD CLUB","186325C"]
[null,null,null,null,"BRUN-ROGER","19017-BILLARD CLUB PHOCEEN","021929L"]
[null,null,null,null,"BURGANT-JEAN MARIE","19019-BILLARD CLUB DE LA BAIE","123684C"]
[null,null,null,null,"CACHAU HERREICCHT-LAURENT","19023-BILLARD CLUB GARDEEN","184127N"]
[null,null,null,null,"CAILLAUD-DANIEL","19023-BILLARD CLUB GARDEEN","144785R"]
[null,null,null,null,"CANDA-JEROME","19130-BLACK BALL CAVAILLONNAIS","163016R"]
[null,null,null,null,"CANUEL-LUC","19127-O CIGALON BILLARD CLUB","181817C"]
[null,null,null,null,"CAO-GAUTIER","19098-BILLARD CLUB LA FARE","173582B"]
[null,null,null,null,"CAO-HUU TUOI","19098-BILLARD CLUB LA FARE","021944A"]
[null,null,null,null,"CAO-MEGANE","19098-BILLARD CLUB LA FARE","173581A"]
[null,null,null,null,"CARAIL-MICHEL","19021-BILLARD CLUB CAVAILLONNAIS","146885L"]
[null,null,null,null,"CARDINALI-DENIS","19056-BILLARD CLUB DE NICE","021946C"]
[null,null,null,null,"CARRILLON-MICHEL","19001-S. S. A. B. D AIX EN PROVENCE","141066Q"]
[null,null,null,null,"CARRION-JEAN PHILIPPE","19058-ACADEMIE DE BILLARD DE BARBOSSI MANDELIEU","130701Z"]
[null,null,null,null,"CASTELLINO-GEORGES","19061-ACAD.BILLARD ST RAPHAEL","181424A"]
[null,null,null,null,"CATELAS-JEAN LOUIS","19001-S. S. A. B. D AIX EN PROVENCE","167180S"]
[null,null,null,null,"CAUDRY-ALAIN","19023-BILLARD CLUB GARDEEN","170688F"]
[null,null,null,null,"CESARO-JEAN CLAUDE","19007-BILLARD CLUB BERROIS","118684U"]
[null,null,null,null,"CESMAT BELLIARD-NICOLAS","19127-O CIGALON BILLARD CLUB","119681D"]
[null,null,null,null,"CHAIX-JOEL","19025-BILLARD CLUB SISTERONNAIS","021960Q"]
[null,null,null,null,"CHANTEUX-ALAIN","19025-BILLARD CLUB SISTERONNAIS","143166K"]
[null,null,null,null,"CHANU-ALICE","19025-BILLARD CLUB SISTERONNAIS","186206Y"]
[null,null,null,null,"CHAPUIS-ERIC","19056-BILLARD CLUB DE NICE","104469B"]
[null,null,null,null,"CHARBIT-JEAN MARC","19056-BILLARD CLUB DE NICE","021967X"]
[null,null,null,null,"CHARLES-CHRISTOPHE","19131-BILLARD CLUB DE L ESTAGNOL","103539H"]
[null,null,null,null,"CHARPENTIER-MARC","19017-BILLARD CLUB PHOCEEN","185636D"]
[null,null,null,null,"CHASTAN-GEORGES","19021-BILLARD CLUB CAVAILLONNAIS","012782Q"]
[null,null,null,null,"CHELUS-ALIN","19127-O CIGALON BILLARD CLUB","146376W"]
[null,null,null,null,"CHEVENIER-PASCAL","19017-BILLARD CLUB PHOCEEN","185638F"]
[null,null,null,null,"CHEVRIER-CAMILLE","19131-BILLARD CLUB DE L ESTAGNOL","152831W"]
[null,null,null,null,"CHICARD-ALAIN","19006-BILLARD CLUB CARPENTRASSIEN","160332Z"]
[null,null,null,null,"CHUZEVILLE-GILLES","19025-BILLARD CLUB SISTERONNAIS","108854S"]
[null,null,null,null,"CLAUDON-PHILIPPE","19056-BILLARD CLUB DE NICE","148126G"]
[null,null,null,null,"CLEMENT-GERARD","19050-BILLARD CLUB SAUSSETOIS","129497R"]
[null,null,null,null,"CLERGET-JEAN LOUIS","19127-O CIGALON BILLARD CLUB","101474W"]
[null,null,null,null,"CLOUD-TOM","19127-O CIGALON BILLARD CLUB","152107J"]
[null,null,null,null,"CLUS-SANDY","19138-BILLARD CLUB FREJUSSIEN","106896K"]
[null,null,null,null,"COHEN-RICHARD MANDELIEU","19058-ACADEMIE DE BILLARD DE BARBOSSI MANDELIEU","012827J"]
[null,null,null,null,"COHEN-RICHARD NICE","19056-BILLARD CLUB DE NICE","148796K"]
[null,null,null,null,"COHEN-STEPHANE","19058-ACADEMIE DE BILLARD DE BARBOSSI MANDELIEU","170613Z"]
[null,null,null,null,"COLOMBINI-ALAIN","19002-SPORT AMAT.DE BILLARD MARSEILLAIS","186457W"]
[null,null,null,null,"CONFAVREUX-KELIAN","19130-BLACK BALL CAVAILLONNAIS","178799X"]
[null,null,null,null,"CONTRAIN-JEROME","19012-SALON BILLARD CLUB","166177C"]
[null,null,null,null,"COPPIN-JEAN MICHEL","19027-ACADEMIE DE BILLARD DE BOLLENE","021985P"]
[null,null,null,null,"CORBET-LAURENT","19021-BILLARD CLUB CAVAILLONNAIS","021987R"]
[null,null,null,null,"CORBIN-LUC","19023-BILLARD CLUB GARDEEN","164007T"]
[null,null,null,null,"CORNET-MARIELLE","19059-BILLARD CLUB ROQUEBRUNOIS","185390L"]
[null,null,null,null,"COSTE-PHILIPPE","19061-ACAD.BILLARD ST RAPHAEL","125938U"]
[null,null,null,null,"COTARD-SANDRINE","19131-BILLARD CLUB DE L ESTAGNOL","101268Y"]
[null,null,null,null,"COTTET-JACQUES","19025-BILLARD CLUB SISTERONNAIS","139655J"]
[null,null,null,null,"COUPET-PHILIPPE","19023-BILLARD CLUB GARDEEN","119932U"]
[null,null,null,null,"COURBOT-LUDWIG","19001-S. S. A. B. D AIX EN PROVENCE","016838Q"]
[null,null,null,null,"COZETTE-SYLVIE","19023-BILLARD CLUB GARDEEN","168685D"]
[null,null,null,null,"CREUZOT-PATRICE","19017-BILLARD CLUB PHOCEEN","021996A"]
[null,null,null,null,"CROUZET-JEAN ANDRE","19027-ACADEMIE DE BILLARD DE BOLLENE","152067Q"]
[null,null,null,null,"CUADRADO-HECTOR","19021-BILLARD CLUB CAVAILLONNAIS","142586C"]
[null,null,null,null,"CUER-KILLIAN","19127-O CIGALON BILLARD CLUB","181819E"]
[null,null,null,null,"DAIFHALLA PUICHAULT-YANNIS","19025-BILLARD CLUB SISTERONNAIS","182676L"]
[null,null,null,null,"DALMASSO-EMMANUELLE","19025-BILLARD CLUB SISTERONNAIS","177204N"]
[null,null,null,null,"DAMIENS-ALEXANDRE","19127-O CIGALON BILLARD CLUB","167825T"]
[null,null,null,null,"DAMON-GERARD","19056-BILLARD CLUB DE NICE","022002G"]
[null,null,null,null,"DAMON-OLIVIER","19012-SALON BILLARD CLUB","022003H"]
[null,null,null,null,"DANCARVILLE-GUY","19009-CLUB BILLARD ISTREEN","144640C"]
[null,null,null,null,"DAUPHIN-MICHEL","19014-BILLARD CLUB AVIGNONNAIS","014828I"]
[null,null,null,null,"DAUPHIN-THYFFEN","19002-SPORT AMAT.DE BILLARD MARSEILLAIS","172573E"]
[null,null,null,null,"DAVID-THIERRY","19025-BILLARD CLUB SISTERONNAIS","155526A"]
[null,null,null,null,"DE CAMBOURG-HELION","19014-BILLARD CLUB AVIGNONNAIS","171181R"]
[null,null,null,null,"DE CAMPO-TEDDY","19068-BILLARD CLUB ARLESIEN","138202M"]
[null,null,null,null,"DE GRYSE-GERARD","19023-BILLARD CLUB GARDEEN","139487X"]
[null,null,null,null,"DE LOOSE-FELIX","19106-BILLARD CLUB VINONNAIS","163348C"]
[null,null,null,null,"DE OLIVEIRA GONCALVES-PAULO","19130-BLACK BALL CAVAILLONNAIS","177338J"]
[null,null,null,null,"DE RIGAL-DANIEL","19027-ACADEMIE DE BILLARD DE BOLLENE","127655V"]
[null,null,null,null,"DEBASC-GAD","19017-BILLARD CLUB PHOCEEN","158419V"]
[null,null,null,null,"DEBOSZ-RICHARD","19021-BILLARD CLUB CAVAILLONNAIS","140093F"]
[null,null,null,null,"DEBRUYNE-ANNE","19106-BILLARD CLUB VINONNAIS","184548W"]
[null,null,null,null,"DEBRUYNE-TRISTAN","19106-BILLARD CLUB VINONNAIS","113220Q"]
[null,null,null,null,"DEBUYSER-ANNE","19058-ACADEMIE DE BILLARD DE BARBOSSI MANDELIEU","178356Q"]
[null,null,null,null,"DEDON-DENISE","19007-BILLARD CLUB BERROIS","181198E"]
[null,null,null,null,"DEDON-RICHARD","19007-BILLARD CLUB BERROIS","177233V"]
[null,null,null,null,"DEFRETIN JOEL","19023--BILLARD CLUB GARDEEN","020635 R"]
[null,null,null,null,"DELAIRE-JEAN PIERRE","19021-BILLARD CLUB CAVAILLONNAIS","166003N"]
[null,null,null,null,"DELAPORTE-YVES","19006-BILLARD CLUB CARPENTRASSIEN","160334B"]
[null,null,null,null,"DELBEY-JULIEN","19012-SALON BILLARD CLUB","112719J"]
[null,null,null,null,"DELZORS-JEAN PIERRE","19056-BILLARD CLUB DE NICE","143883Z"]
[null,null,null,null,"DEMARCQ-JEAN FRANCOIS","19025-BILLARD CLUB SISTERONNAIS","168662D"]
[null,null,null,null,"DEMAY-ROMUALD","19127-O CIGALON BILLARD CLUB","159102M"]
[null,null,null,null,"DEMERLIAC-BRUNO","19007-BILLARD CLUB BERROIS","159076J"]
[null,null,null,null,"DENIS-GILLES","19009-CLUB BILLARD ISTREEN","186297X"]
[null,null,null,null,"DEROSSI-LORA","19002-SPORT AMAT.DE BILLARD MARSEILLAIS","185116N"]
[null,null,null,null,"DESMERO-RAYMOND","19007-BILLARD CLUB BERROIS","142358I"]
[null,null,null,null,"DESWAZIERE-MICHEL","19027-ACADEMIE DE BILLARD DE BOLLENE","115051B"]
[null,null,null,null,"DHENNIN-MICHEL","19059-BILLARD CLUB ROQUEBRUNOIS","176237M"]
[null,null,null,null,"DHERMY-BERTRAND","19127-O CIGALON BILLARD CLUB","156564D"]
[null,null,null,null,"DI BIN-JEAN MARIE","19027-ACADEMIE DE BILLARD DE BOLLENE","135014W"]
[null,null,null,null,"DI CRESCENZO-PIERRE","19017-BILLARD CLUB PHOCEEN","109528Q"]
[null,null,null,null,"DIDIER-DOMINIQUE","19090-BILLARD AMATEUR ROGNAC","186066W"]
[null,null,null,null,"DION-JEAN LOUIS","19006-BILLARD CLUB CARPENTRASSIEN","160331Y"]
[null,null,null,null,"DONABEDIAN-DANIEL","19019-BILLARD CLUB DE LA BAIE","142363N"]
[null,null,null,null,"DORIDANT-VINCENT","19127-O CIGALON BILLARD CLUB","134701V"]
[null,null,null,null,"DORNBUSH-MARTINE","19023-BILLARD CLUB GARDEEN","181974Y"]
[null,null,null,null,"DOS SANTOS-ADRIEN","19130-BLACK BALL CAVAILLONNAIS","133512C"]
[null,null,null,null,"DOS SANTOS-FRANCIS","19050-BILLARD CLUB SAUSSETOIS","022039R"]
[null,null,null,null,"DOUSSET-RENE","19023-BILLARD CLUB GARDEEN","174348J"]
[null,null,null,null,"DREMEAUX-JEAN PIERRE","19023-BILLARD CLUB GARDEEN","140803N"]
[null,null,null,null,"DUBREUIL-FRANCK","19061-ACAD.BILLARD ST RAPHAEL","013022W"]
[null,null,null,null,"DUPUY-MICHEL","19058-ACADEMIE DE BILLARD DE BARBOSSI MANDELIEU","011522E"]
[null,null,null,null,"DUSSAULE-PIERRE","19027-ACADEMIE DE BILLARD DE BOLLENE","102285B"]
[null,null,null,null,"DUSSEAUX-PATRICK","19021-BILLARD CLUB CAVAILLONNAIS","183248H"]
[null,null,null,null,"DUVAL-THIERRY","19061-ACAD.BILLARD ST RAPHAEL","175172E"]
[null,null,null,null,"ECK-MICHEL","19017-BILLARD CLUB PHOCEEN","146662W"]
[null,null,null,null,"EGEA-JEAN PIERRE","19130-BLACK BALL CAVAILLONNAIS","146142W"]
[null,null,null,null,"EGRETEAUD-CHRISTOPHE","19017-BILLARD CLUB PHOCEEN","155680S"]
[null,null,null,null,"EL KARMOUNI-DAVID","19002-SPORT AMAT.DE BILLARD MARSEILLAIS","186461A"]
[null,null,null,null,"ELEOUET-DANIEL","19006-BILLARD CLUB CARPENTRASSIEN","163467G"]
[null,null,null,null,"ESCOFFIER-ALAIN","19006-BILLARD CLUB CARPENTRASSIEN","167497M"]
[null,null,null,null,"ESTABLIER-PIERRE","19023-BILLARD CLUB GARDEEN","147622J"]
[null,null,null,null,"FABER-ERWIN","19021-BILLARD CLUB CAVAILLONNAIS","186621Z"]
[null,null,null,null,"FABRE-ALEXANDRE","19002-SPORT AMAT.DE BILLARD MARSEILLAIS","186571V"]
[null,null,null,null,"FAIVRE D ARCIER-PATRICK","19056-BILLARD CLUB DE NICE","022061N"]
[null,null,null,null,"FAVARIO-CHRISTIAN","19027-ACADEMIE DE BILLARD DE BOLLENE","022066S"]
[null,null,null,null,"FEBVRET-MELANIE","19130-BLACK BALL CAVAILLONNAIS","179557W"]
[null,null,null,null,"FERAUD-GERARD","19027-ACADEMIE DE BILLARD DE BOLLENE","022067T"]
[null,null,null,null,"FERAUD-LOUIS","19025-BILLARD CLUB SISTERONNAIS","182675K"]
[null,null,null,null,"FERHAT-ACHOUR","19023-BILLARD CLUB GARDEEN","129036Y"]
[null,null,null,null,"FERNANDES GOMES-MARIO","19093-AMERICAN CLUB LOUIS XI","153669G"]
[null,null,null,null,"FERNANDEZ-MARC","19007-BILLARD CLUB BERROIS","013111H"]
[null,null,null,null,"FERRON-FREDERIC","19012-SALON BILLARD CLUB","172308R"]
[null,null,null,null,"FERRO-PHILIPPE","19009-CLUB BILLARD ISTREEN","122658Q"]
[null,null,null,null,"FONTAINE-DANY","19023-BILLARD CLUB GARDEEN","101139Z"]
[null,null,null,null,"FOREL-PHILIPPE","19130-BLACK BALL CAVAILLONNAIS","127035Z"]
[null,null,null,null,"FOURNET-SEBASTIEN","19002-SPORT AMAT.DE BILLARD MARSEILLAIS","184732W"]
[null,null,null,null,"FRANCO-ALBERT","19019-BILLARD CLUB DE LA BAIE","022084K"]
[null,null,null,null,"FRANCO-HENRY","19055-ACADEMIE DE BILLARD DE MENTON","118688Y"]
[null,null,null,null,"FRIGANO-SEBASTIEN","19130-BLACK BALL CAVAILLONNAIS","123168G"]
[null,null,null,null,"FROMENT-REMI","19068-BILLARD CLUB ARLESIEN","182539M"]
[null,null,null,null,"FROMEYER-CORINNE","19058-ACADEMIE DE BILLARD DE BARBOSSI MANDELIEU","167290M"]
[null,null,null,null,"GABETTO-STEPHANE","19023-BILLARD CLUB GARDEEN","103216W"]
[null,null,null,null,"GABRIEL-MARTIAL","19127-O CIGALON BILLARD CLUB","120076I"]
[null,null,null,null,"GAILLET-PATRICK","19098-BILLARD CLUB LA FARE","176024F"]
[null,null,null,null,"GALARDINI-RICHARD","19050-BILLARD CLUB SAUSSETOIS","142316S"]
[null,null,null,null,"GALLEZ-DANIEL","19019-BILLARD CLUB DE LA BAIE","178728V"]
[null,null,null,null,"GALLUCCI-STEPHANE","19056-BILLARD CLUB DE NICE","022091R"]
[null,null,null,null,"GAMEN-ANDRE","19023-BILLARD CLUB GARDEEN","147288W"]
[null,null,null,null,"GANTOIS-GILLES","19016 - BILLARD CLUB ORANGE","022092S"]
[null,null,null,null,"GARCIA-SEBASTIEN","19112-NISSA BILLARD CLUB","116525T"]
[null,null,null,null,"GATTINO-MARCO","19055-ACADEMIE DE BILLARD DE MENTON","147262S"]
[null,null,null,null,"GATTO-ANTOINE","19050-BILLARD CLUB SAUSSETOIS","022097X"]
[null,null,null,null,"GAUTIER-PATRICK","19027-ACADEMIE DE BILLARD DE BOLLENE","186342W"]
[null,null,null,null,"GAVALDA-PIERRE","19006-BILLARD CLUB CARPENTRASSIEN","116278G"]
[null,null,null,null,"GEDOR-FRANCIS","19061-ACAD.BILLARD ST RAPHAEL","186701L"]
[null,null,null,null,"GEFFROY-MEGGAN","19008-BRITISH BILLARD CLUB AVIGNON","183704D"]
[null,null,null,null,"GELAS-BERNARD","19098-BILLARD CLUB LA FARE","163279C"]
[null,null,null,null,"GENDRAUD-PHILIPPE","19138-BILLARD CLUB FREJUSSIEN","150065P"]
[null,null,null,null,"GERARD-PASCAL","19056-BILLARD CLUB DE NICE","022103D"]
[null,null,null,null,"GERARD-SANDRINE","19090-BILLARD AMATEUR ROGNAC","179077Z"]
[null,null,null,null,"GERARD-THOMAS","19056-BILLARD CLUB DE NICE","167330F"]
[null,null,null,null,"GERVAIS-GUILLAUME","19021-BILLARD CLUB CAVAILLONNAIS","022104E"]
[null,null,null,null,"GIANNATTASIO-LUCIEN","19009-CLUB BILLARD ISTREEN","022108I"]
[null,null,null,null,"GIAVELLI-GAETAN","19068-BILLARD CLUB ARLESIEN","129044G"]
[null,null,null,null,"GIBARROUX-CHRISTOPHE","19001-S. S. A. B. D AIX EN PROVENCE","118661X"]
[null,null,null,null,"GILLET-PHILIPPE","19058-ACADEMIE DE BILLARD DE BARBOSSI MANDELIEU","180514L"]
[null,null,null,null,"GILLODTS-CHRISTIAN","19017-BILLARD CLUB PHOCEEN","149471T"]
[null,null,null,null,"GIMENEZ-SERGE","19056-BILLARD CLUB DE NICE","022113N"]
[null,null,null,null,"GIRARD-JACQUES","19058-ACADEMIE DE BILLARD DE BARBOSSI MANDELIEU","129718E"]
[null,null,null,null,"GOAILLARD-JEAN MARC","19017-BILLARD CLUB PHOCEEN","181920P"]
[null,null,null,null,"GODARD-PASCAL","19006-BILLARD CLUB CARPENTRASSIEN","157852D"]
[null,null,null,null,"GODOY-CYRILLE","19127-O CIGALON BILLARD CLUB","101478A"]
[null,null,null,null,"GOMES-VITOR","19001-S. S. A. B. D AIX EN PROVENCE","120100G"]
[null,null,null,null,"GORGET-MIKAEL","19002-SPORT AMAT.DE BILLARD MARSEILLAIS","174487K"]
[null,null,null,null,"GOTTRAU-MARION","19002-SPORT AMAT.DE BILLARD MARSEILLAIS","186570T"]
[null,null,null,null,"GOUILLON-MATTHIEU","19056-BILLARD CLUB DE NICE","174010R"]
[null,null,null,null,"GOUIRAN-GEORGES","19050-BILLARD CLUB SAUSSETOIS","022129D"]
[null,null,null,null,"GOUZIEN-MILENE","19131-BILLARD CLUB DE L ESTAGNOL","175026W"]
[null,null,null,null,"GOUZIEN-RENAUD","19131-BILLARD CLUB DE L ESTAGNOL","101259P"]
[null,null,null,null,"GOUZIEN-YANN","19131-BILLARD CLUB DE L ESTAGNOL","166216V"]
[null,null,null,null,"GOUZOUGUEN-CHRISTIAN","19006-BILLARD CLUB CARPENTRASSIEN","144636Y"]
[null,null,null,null,"GOYAUD-YVES","19002-SPORT AMAT.DE BILLARD MARSEILLAIS","135555R"]
[null,null,null,null,"GRANDBOUCHE-FRANCOIS","19002-SPORT AMAT.DE BILLARD MARSEILLAIS","180247W"]
[null,null,null,null,"GRANIER-JEAN MARC","19130-BLACK BALL CAVAILLONNAIS","156807S"]
[null,null,null,null,"GRAVELLE-JULIEN","19006-BILLARD CLUB CARPENTRASSIEN","157851C"]
[null,null,null,null,"GREBLO-EDI","19093-AMERICAN CLUB LOUIS XI","170379V"]
[null,null,null,null,"GREGEOIS-MAEL","19002-SPORT AMAT.DE BILLARD MARSEILLAIS","183595K"]
[null,null,null,null,"GROS-MARIE PAULE","19068-BILLARD CLUB ARLESIEN","107059R"]
[null,null,null,null,"GROS-ROLAND","19068-BILLARD CLUB ARLESIEN","101403D"]
[null,null,null,null,"GROUSSON-ROBERT","19009-CLUB BILLARD ISTREEN","172011T"]
[null,null,null,null,"GUERINEAU-BRUNO","19021-BILLARD CLUB CAVAILLONNAIS","144796C"]
[null,null,null,null,"GUERINEAU-THIERRY","19021-BILLARD CLUB CAVAILLONNAIS","022135J"]
[null,null,null,null,"GUERIN-RAYMOND","19017-BILLARD CLUB PHOCEEN","103615F"]
[null,null,null,null,"GUERI-ROBERT","19027-ACADEMIE DE BILLARD DE BOLLENE","135013V"]
[null,null,null,null,"GUEUG-PIERRE","19056-BILLARD CLUB DE NICE","104475H"]
[null,null,null,null,"GUIZELIN-PASCAL","19106-BILLARD CLUB VINONNAIS","154530S"]
[null,null,null,null,"HADDAD-JEAN PIERRE","19014-BILLARD CLUB AVIGNONNAIS","184013P"]
[null,null,null,null,"HADDOUCHE-JONATHAN","19002-SPORT AMAT.DE BILLARD MARSEILLAIS","147316B"]
[null,null,null,null,"HAHN-DANIEL","19017-BILLARD CLUB PHOCEEN","011966G"]
[null,null,null,null,"HAMALIAN-CYRIL","19002-SPORT AMAT.DE BILLARD MARSEILLAIS","166068J"]
[null,null,null,null,"HARTENSTEIN-BRUNO","19006-BILLARD CLUB CARPENTRASSIEN","166328R"]
[null,null,null,null,"HATEM-MARC","19131-BILLARD CLUB DE L ESTAGNOL","183291E"]
[null,null,null,null,"HAZE-PATRICK","19021-BILLARD CLUB CAVAILLONNAIS","137523J"]
[null,null,null,null,"HEBRAL-LUDOVIC","19112-NISSA BILLARD CLUB","101323B"]
[null,null,null,null,"HEINRICH-CHRISTIAN","19009-CLUB BILLARD ISTREEN","186298Y"]
[null,null,null,null,"HERREMAN-SERGE","19023-BILLARD CLUB GARDEEN","119933V"]
[null,null,null,null,"HEURTAULT-JACKY","19012-SALON BILLARD CLUB","137004K"]
[null,null,null,null,"HEYDON-CHRISTOPHER","19127-O CIGALON BILLARD CLUB","169219J"]
[null,null,null,null,"HEYDON-SABINE","19127-O CIGALON BILLARD CLUB","169259C"]
[null,null,null,null,"HOLUIGUE-ROGER","19023-BILLARD CLUB GARDEEN","177454K"]
[null,null,null,null,"HUGUET-PATRICK","19017-BILLARD CLUB PHOCEEN","172086A"]
[null,null,null,null,"IDJERI-GILBERT","19050-BILLARD CLUB SAUSSETOIS","172214P"]
[null,null,null,null,"INGA-FABRIZIO","19112-NISSA BILLARD CLUB","181447A"]
[null,null,null,null,"ISRAEL-ELIE","19017-BILLARD CLUB PHOCEEN","184059P"]
[null,null,null,null,"IVACHEFF-HELENE","19106-BILLARD CLUB VINONNAIS","184667A"]
[null,null,null,null,"IVACHEFF-MICHEL","19106-BILLARD CLUB VINONNAIS","181239Z"]
[null,null,null,null,"JABBOUR-HAMZA","19002-SPORT AMAT.DE BILLARD MARSEILLAIS","182210E"]
[null,null,null,null,"JALLIFFIER ARDENT-MARIE","19056-BILLARD CLUB DE NICE","179363K"]
[null,null,null,null,"JALOUAJ-AMINE","19127-O CIGALON BILLARD CLUB","167227T"]
[null,null,null,null,"JANNOT-FREDERIC","19019-BILLARD CLUB DE LA BAIE","183489V"]
[null,null,null,null,"JONNARD-FREDERIC","19023-BILLARD CLUB GARDEEN","120814S"]
[null,null,null,null,"JUDALET-FRANCOIS","19019-BILLARD CLUB DE LA BAIE","190344W"]
[null,null,null,null,"JUIGNET-CHRISTIAN","19138-BILLARD CLUB FREJUSSIEN","109412E"]
[null,null,null,null,"JUMEL-RENE","19027-ACADEMIE DE BILLARD DE BOLLENE","162905W"]
[null,null,null,null,"KERNINON-PATRICE","19130-BLACK BALL CAVAILLONNAIS","101100M"]
[null,null,null,null,"KUNTZ-ADRIEN","19055-ACADEMIE DE BILLARD DE MENTON","022175X"]
[null,null,null,null,"LABATUT-FRANCOIS","19059-BILLARD CLUB ROQUEBRUNOIS","186947D"]
[null,null,null,null,"LACOSSE-JEAN PAUL","19019-BILLARD CLUB DE LA BAIE","109977X"]
[null,null,null,null,"LACOUR-DAVID","19127-O CIGALON BILLARD CLUB","116529X"]
[null,null,null,null,"LAFDJIAN-GILBERT","19007-BILLARD CLUB BERROIS","177232T"]
[null,null,null,null,"LAGIER-ALBAN","19131-BILLARD CLUB DE L ESTAGNOL","101267X"]
[null,null,null,null,"LAM-MINH TRUNG DENIS","19056-BILLARD CLUB DE NICE","181038F"]
[null,null,null,null,"LANAIA-MICKAEL","19130-BLACK BALL CAVAILLONNAIS","167062P"]
[null,null,null,null,"LANARI-PIERRE","19056-BILLARD CLUB DE NICE","175999D"]
[null,null,null,null,"LANDE-GERARD","19014-BILLARD CLUB AVIGNONNAIS","016084Q"]
[null,null,null,null,"LANDERECTHE-PASCAL","19007-BILLARD CLUB BERROIS","181199F"]
[null,null,null,null,"LANDERECTHE-RUDY","19007-BILLARD CLUB BERROIS","181200G"]
[null,null,null,null,"LANDOIS-DOMINIQUE","19055-ACADEMIE DE BILLARD DE MENTON","179135M"]
[null,null,null,null,"LANG-CHRISTIAN","19009-CLUB BILLARD ISTREEN","022186I"]
[null,null,null,null,"LANNURIEN-THIERRY","19023-BILLARD CLUB GARDEEN","168288X"]
[null,null,null,null,"LANNY-ALAIN","19050-BILLARD CLUB SAUSSETOIS","186266N"]
[null,null,null,null,"LAUNAY-MICHEL","19058-ACADEMIE DE BILLARD DE BARBOSSI MANDELIEU","178352L"]
[null,null,null,null,"LAVAUD-JOHN","19130-BLACK BALL CAVAILLONNAIS","122601L"]
[null,null,null,null,"LE FAUCHEUR-LAURENT","19098-BILLARD CLUB LA FARE","163278B"]
[null,null,null,null,"LE GOC-MICKAEL","19136-BLACK BALL CONCEPT","148064P"]
[null,null,null,null,"LE GUENNEC-CHRISTIAN","19061-ACAD.BILLARD ST RAPHAEL","125949F"]
[null,null,null,null,"LE TROCQUER-HUGO","19002-SPORT AMAT.DE BILLARD MARSEILLAIS","186459Y"]
[null,null,null,null,"LEBARBENCHON-JEAN","19055-ACADEMIE DE BILLARD DE MENTON","177122Z"]
[null,null,null,null,"LECLERC-SYLVAIN","19130-BLACK BALL CAVAILLONNAIS","160245E"]
[null,null,null,null,"LECOQ-ARNAUD","19012-SALON BILLARD CLUB","141504M"]
[null,null,null,null,"LECUILLIER-ARNAUD","19127-O CIGALON BILLARD CLUB","128719T"]
[null,null,null,null,"LEDUCQ-MORGAN","19014-BILLARD CLUB AVIGNONNAIS","105373V"]
[null,null,null,null,"LEFAUX-JEAN JACQUES","19025-BILLARD CLUB SISTERONNAIS","117411V"]
[null,null,null,null,"LEMARTINET-ROBERT","19019-BILLARD CLUB DE LA BAIE","110379J"]
[null,null,null,null,"LEMESLE-FABRICE","19017-BILLARD CLUB PHOCEEN","022205B"]
[null,null,null,null,"LEMIERE-JEAN NOEL","19023-BILLARD CLUB GARDEEN","104233Z"]
[null,null,null,null,"LEON-ALFRED","19021-BILLARD CLUB CAVAILLONNAIS","186622A"]
[null,null,null,null,"LESPRIT-CLAUDE","19019-BILLARD CLUB DE LA BAIE","179358E"]
[null,null,null,null,"LETELLIER-ALAIN","19090-BILLARD AMATEUR ROGNAC","176350K"]
[null,null,null,null,"LIEGEOIS-DOMINIQUE","19027-ACADEMIE DE BILLARD DE BOLLENE","022209F"]
[null,null,null,null,"LIENS-MICHEL","19021-BILLARD CLUB CAVAILLONNAIS","118678O"]
[null,null,null,null,"LIMA-STEPHANE","19130-BLACK BALL CAVAILLONNAIS","161477T"]
[null,null,null,null,"LIONNE-GEORGES","19027-ACADEMIE DE BILLARD DE BOLLENE","178650K"]
[null,null,null,null,"LISI-ROGER","19007-BILLARD CLUB BERROIS","146375V"]
[null,null,null,null,"LISSAJOUX-JEAN CLAUDE","19009-CLUB BILLARD ISTREEN","168722T"]
[null,null,null,null,"LLOBELL-ALAIN","19017-BILLARD CLUB PHOCEEN","170266X"]
[null,null,null,null,"LLOBELL-CLAIRE","19017-BILLARD CLUB PHOCEEN","170267Y"]
[null,null,null,null,"LOMBARDO-STEPHANE","19127-O CIGALON BILLARD CLUB","101339R"]
[null,null,null,null,"LORKOVIC-JOSEPH","19009-CLUB BILLARD ISTREEN","022217N"]
[null,null,null,null,"LOSTAO-DOMINIQUE","19058-ACADEMIE DE BILLARD DE BARBOSSI MANDELIEU","168030R"]
[null,null,null,null,"LUCENET-PAUL","19009-CLUB BILLARD ISTREEN","162076V"]
[null,null,null,null,"LUNEAU-JEAN CLAUDE","19023-BILLARD CLUB GARDEEN","186880F"]
[null,null,null,null,"LUVISON-JEAN","19012-SALON BILLARD CLUB","022221R"]
[null,null,null,null,"MACQUET-PATRICK","19056-BILLARD CLUB DE NICE","022223T"]
[null,null,null,null,"MALLEVAL-GERARD","19023-BILLARD CLUB GARDEEN","100910E"]
[null,null,null,null,"MANZO-PIERRE JEAN","19002-SPORT AMAT.DE BILLARD MARSEILLAIS","186458X"]
[null,null,null,null,"MARCEAUX-JOSE","19059-BILLARD CLUB ROQUEBRUNOIS","020447L"]
[null,null,null,null,"MARCHANDISE MORAND-JACQUELINE","19025-BILLARD CLUB SISTERONNAIS","177467Z"]
[null,null,null,null,"MARCHAND-PHILIPPE","19001-S. S. A. B. D AIX EN PROVENCE","164047M"]
[null,null,null,null,"MARIE-MICHEL","19021-BILLARD CLUB CAVAILLONNAIS","175846M"]
[null,null,null,null,"MARIOTTI-JEAN MICHEL","19131-BILLARD CLUB DE L ESTAGNOL","101260Q"]
[null,null,null,null,"MARME-HANS","19127-O CIGALON BILLARD CLUB","159950J"]
[null,null,null,null,"MARTIN-CLAUDE","19021-BILLARD CLUB CAVAILLONNAIS","175391S"]
[null,null,null,null,"MARTINEZ-BENOIT","19008-BRITISH BILLARD CLUB AVIGNON","180741H"]
[null,null,null,null,"MASSERAN-PHILIPPE","19058-ACADEMIE DE BILLARD DE BARBOSSI MANDELIEU","103581X"]
[null,null,null,null,"MASSIAS-GUY","19001-S. S. A. B. D AIX EN PROVENCE","172680W"]
[null,null,null,null,"MASSOT-SEBASTIEN","19025-BILLARD CLUB SISTERONNAIS","159674J"]
[null,null,null,null,"MATHIEU-MICHEL","19006-BILLARD CLUB CARPENTRASSIEN","183687K"]
[null,null,null,null,"MATILLON-CLAUDE","19001-S. S. A. B. D AIX EN PROVENCE","160344M"]
[null,null,null,null,"MAUDUIT-DIDIER","19009-CLUB BILLARD ISTREEN","017615N"]
[null,null,null,null,"MAURON-BERNARD","19023-BILLARD CLUB GARDEEN","149391G"]
[null,null,null,null,"MAURY-HENRI","19058-ACADEMIE DE BILLARD DE BARBOSSI MANDELIEU","163825W"]
[null,null,null,null,"MAYNARD-ALEXANDRE","19056-BILLARD CLUB DE NICE","112015H"]
[null,null,null,null,"MEGUIN-ERIC","19021-BILLARD CLUB CAVAILLONNAIS","128466A"]
[null,null,null,null,"MELLET-PIERRE","19027-ACADEMIE DE BILLARD DE BOLLENE","144802I"]
[null,null,null,null,"METAIS-ALBAN","19006-BILLARD CLUB CARPENTRASSIEN","152604Z"]
[null,null,null,null,"MEYER-LUC","19023-BILLARD CLUB GARDEEN","022260E"]
[null,null,null,null,"MICHEL-JACQUES","19006-BILLARD CLUB CARPENTRASSIEN","183513W"]
[null,null,null,null,"MILLOT-ANITA","19023-BILLARD CLUB GARDEEN","180677N"]
[null,null,null,null,"MILLOT-BENOIT","19023-BILLARD CLUB GARDEEN","180676M"]
[null,null,null,null,"MILLOT-ROBERT","19025-BILLARD CLUB SISTERONNAIS","172218T"]
[null,null,null,null,"MISRAKI-ROMAIN","19002-SPORT AMAT.DE BILLARD MARSEILLAIS","144792Y"]
[null,null,null,null,"MOGLIA-EMILE","19014-BILLARD CLUB AVIGNONNAIS","022266K"]
[null,null,null,null,"MOINON-FRANCOIS","19002-SPORT AMAT.DE BILLARD MARSEILLAIS","184069A"]
[null,null,null,null,"MOLAND-PHILIPPE","19059-BILLARD CLUB ROQUEBRUNOIS","022268M"]
[null,null,null,null,"MOLINAS-ROBERT","19021-BILLARD CLUB CAVAILLONNAIS","022270O"]
[null,null,null,null,"MONNET-JEAN CLAUDE","19021-BILLARD CLUB CAVAILLONNAIS","022271P"]
[null,null,null,null,"MONTALTI-PIERRE","19002-SPORT AMAT.DE BILLARD MARSEILLAIS","116557Z"]
[null,null,null,null,"MONTERO-JEAN MANUEL","19068-BILLARD CLUB ARLESIEN","147134D"]
[null,null,null,null,"MONTESINOS-GILLES","19012-SALON BILLARD CLUB","136279N"]
[null,null,null,null,"MOREELS-BERNARD","19023-BILLARD CLUB GARDEEN","147624L"]
[null,null,null,null,"MORERE-JEAN PIERRE","19059-BILLARD CLUB ROQUEBRUNOIS","176019A"]
[null,null,null,null,"MOUMENE-AMINE","19002-SPORT AMAT.DE BILLARD MARSEILLAIS","182204Y"]
[null,null,null,null,"MOUSSIER-PATRICK","19056-BILLARD CLUB DE NICE","151456B"]
[null,null,null,null,"MOUTON-VINCENT","19112-NISSA BILLARD CLUB","153604L"]
[null,null,null,null,"MUNOS-JEAN","19050-BILLARD CLUB SAUSSETOIS","109063T"]
[null,null,null,null,"MUNOS-VINCENT","19007-BILLARD CLUB BERROIS","109708O"]
[null,null,null,null,"MUNOZ-CHRISTIAN","19021-BILLARD CLUB CAVAILLONNAIS","022284C"]
[null,null,null,null,"MURAILLE-ALAIN","19017-BILLARD CLUB PHOCEEN","168135F"]
[null,null,null,null,"MUSATO-LAETITIA","19127-O CIGALON BILLARD CLUB","117647X"]
[null,null,null,null,"N GUYEN VAN DUC-MAX","19007-BILLARD CLUB BERROIS","141788K"]
[null,null,null,null,"NABHANE-EMILE","19006-BILLARD CLUB CARPENTRASSIEN","166329S"]
[null,null,null,null,"NAPOLI-SALVATORE","19006-BILLARD CLUB CARPENTRASSIEN","107150E"]
[null,null,null,null,"NARBONI-PATRICK","19056-BILLARD CLUB DE NICE","013816K"]
[null,null,null,null,"NASICA-PATRICK","19014-BILLARD CLUB AVIGNONNAIS","107263N"]
[null,null,null,null,"NATALI-MICHEL","19131-BILLARD CLUB DE L ESTAGNOL","101269Z"]
[null,null,null,null,"NATELLA-IDA","19056-BILLARD CLUB DE NICE","154573P"]
[null,null,null,null,"NATELLA-ROGER","19056-BILLARD CLUB DE NICE","154572N"]
[null,null,null,null,"NAUDIN-DIDIER","19027-ACADEMIE DE BILLARD DE BOLLENE","186341V"]
[null,null,null,null,"NEGOZIO-JACKY","19059-BILLARD CLUB ROQUEBRUNOIS","185108E"]
[null,null,null,null,"NGUYEN-AHN TUAN","19006-BILLARD CLUB CARPENTRASSIEN","164318G"]
[null,null,null,null,"NOE-HUGO","19068-BILLARD CLUB ARLESIEN","182538L"]
[null,null,null,null,"NOLASQUE-LYDIE","19127-O CIGALON BILLARD CLUB","125919B"]
[null,null,null,null,"NOSSIN-MARC","19058-ACADEMIE DE BILLARD DE BARBOSSI MANDELIEU","182190H"]
[null,null,null,null,"OLLIVIER-DANIEL","19009-CLUB BILLARD ISTREEN","020258E"]
[null,null,null,null,"OUDOUX-GERARD","19023-BILLARD CLUB GARDEEN","128468C"]
[null,null,null,null,"PACZESNY-FABRICE","19098-BILLARD CLUB LA FARE","150400D"]
[null,null,null,null,"PANAGET-KEVIN","19127-O CIGALON BILLARD CLUB","186539K"]
[null,null,null,null,"PAN-JEROME","19127-O CIGALON BILLARD CLUB","164512S"]
[null,null,null,null,"PANTALONE-CLAUDE","19017-BILLARD CLUB PHOCEEN","185639G"]
[null,null,null,null,"PAU-CHRISTINE","19025-BILLARD CLUB SISTERONNAIS","177193B"]
[null,null,null,null,"PAUL-ANTOINE","19002-SPORT AMAT.DE BILLARD MARSEILLAIS","183593H"]
[null,null,null,null,"PELLAT-FRANCIS","19025-BILLARD CLUB SISTERONNAIS","141673Z"]
[null,null,null,null,"PEREY-ELEONORE","19008-BRITISH BILLARD CLUB AVIGNON","182269T"]
[null,null,null,null,"PEREZ-CHRISTIAN","19009-CLUB BILLARD ISTREEN","130773T"]
[null,null,null,null,"PERIS-MICHEL","19056-BILLARD CLUB DE NICE","022321N"]
[null,null,null,null,"PERRIER-GILLES","19021-BILLARD CLUB CAVAILLONNAIS","021540M"]
[null,null,null,null,"PERRIN-GILLES","19068-BILLARD CLUB ARLESIEN","101398Y"]
[null,null,null,null,"PERRIN-LIONEL","19023-BILLARD CLUB GARDEEN","181624S"]
[null,null,null,null,"PERSONNE-MARTINE","19008-BRITISH BILLARD CLUB AVIGNON","170701V"]
[null,null,null,null,"PERTUZON-NOLAN","19009-CLUB BILLARD ISTREEN","179786V"]
[null,null,null,null,"PIALLA-VALERIE","19009-CLUB BILLARD ISTREEN","182685W"]
[null,null,null,null,"PICCHI-GERARD","19009-CLUB BILLARD ISTREEN","135135N"]
[null,null,null,null,"PIELIN-PASCAL","19012-SALON BILLARD CLUB","022330W"]
[null,null,null,null,"PIGNATEL-FLORENT","19021-BILLARD CLUB CAVAILLONNAIS","112316W"]
[null,null,null,null,"PILAVDJIAN-JACQUES","19017-BILLARD CLUB PHOCEEN","165118B"]
[null,null,null,null,"PINARD-PATRICE","19012-SALON BILLARD CLUB","105404A"]
[null,null,null,null,"PINNA-ALAIN","19017-BILLARD CLUB PHOCEEN","022332Y"]
[null,null,null,null,"PINNA-VINCENT","19017-BILLARD CLUB PHOCEEN","148229T"]
[null,null,null,null,"PIRO COUDERC-MARIE LAURE","19025-BILLARD CLUB SISTERONNAIS","177205P"]
[null,null,null,null,"PLE-CYRIL","19025-BILLARD CLUB SISTERONNAIS","177189X"]
[null,null,null,null,"POIRIER-DOMINIQUE","19061-ACAD.BILLARD ST RAPHAEL","108010G"]
[null,null,null,null,"PONT-CEDRIC","19002-SPORT AMAT.DE BILLARD MARSEILLAIS","183247G"]
[null,null,null,null,"PORA-JEAN PAUL","19009-CLUB BILLARD ISTREEN","170697Q"]
[null,null,null,null,"PORTET-PATRICK","19059-BILLARD CLUB ROQUEBRUNOIS","181316H"]
[null,null,null,null,"POUGIN-JEAN FRANCOIS","19059-BILLARD CLUB ROQUEBRUNOIS","022346M"]
[null,null,null,null,"POZNANSKI-JEAN MICHEL","19012-SALON BILLARD CLUB","022349P"]
[null,null,null,null,"PROFIT-GILBERT","19056-BILLARD CLUB DE NICE","143885B"]
[null,null,null,null,"PTSIAMITAS-PANAGIOTIS","19090-BILLARD AMATEUR ROGNAC","180317X"]
[null,null,null,null,"PUICHAULT-REMY","19025-BILLARD CLUB SISTERONNAIS","172219V"]
[null,null,null,null,"QUANTINET-ROBERT","19058-ACADEMIE DE BILLARD DE BARBOSSI MANDELIEU","143151V"]
[null,null,null,null,"QUARTO-LARA","19056-BILLARD CLUB DE NICE","174009Q"]
[null,null,null,null,"QUILLET-LORIS","19130-BLACK BALL CAVAILLONNAIS","174571B"]
[null,null,null,null,"QUILLET-YANN","19130-BLACK BALL CAVAILLONNAIS","186763D"]
[null,null,null,null,"RAMAROSON-HERIZO","19002-SPORT AMAT.DE BILLARD MARSEILLAIS","182722L"]
[null,null,null,null,"RAMIREZ-ALAIN","19001-S. S. A. B. D AIX EN PROVENCE","176234J"]
[null,null,null,null,"RAMOND-JEAN MARC","19058-ACADEMIE DE BILLARD DE BARBOSSI MANDELIEU","022357X"]
[null,null,null,null,"RANC-ALAIN","19027-ACADEMIE DE BILLARD DE BOLLENE","136205R"]
[null,null,null,null,"RANIERI-JEAN ANDRE","19136-BLACK BALL CONCEPT","101290U"]
[null,null,null,null,"RAVENET-FRANCIS","19059-BILLARD CLUB ROQUEBRUNOIS","157788J"]
[null,null,null,null,"REMIRO-CANDIDO","19130-BLACK BALL CAVAILLONNAIS","156535X"]
[null,null,null,null,"RENAUD-JEAN PAUL","19009-CLUB BILLARD ISTREEN","133622I"]
[null,null,null,null,"RENAUD-MARTINE","19127-O CIGALON BILLARD CLUB","153346F"]
[null,null,null,null,"RENAUD-THIERRY","19127-O CIGALON BILLARD CLUB","153347G"]
[null,null,null,null,"REVALOR-MICHEL","19050-BILLARD CLUB SAUSSETOIS","119696S"]
[null,null,null,null,"RIBOLLA-PATRICE","19056-BILLARD CLUB DE NICE","022366G"]
[null,null,null,null,"RICARD-AUDREY","19127-O CIGALON BILLARD CLUB","147449W"]
[null,null,null,null,"RICHAUD-PIERRE","19017-BILLARD CLUB PHOCEEN","107093Z"]
[null,null,null,null,"RIGNOLS-PHILIPPE","19021-BILLARD CLUB CAVAILLONNAIS","022372M"]
[null,null,null,null,"RIGOLLET-PIERRE","19025-BILLARD CLUB SISTERONNAIS","023064C"]
[null,null,null,null,"RIVARD-MICHEL","19093-AMERICAN CLUB LOUIS XI","156515A"]
[null,null,null,null,"RIVIER-PATRICE","19017-BILLARD CLUB PHOCEEN","170733E"]
[null,null,null,null,"ROBERT-DOMINIQUE","19056-BILLARD CLUB DE NICE","022376Q"]
[null,null,null,null,"ROBIN-JEAN FRANCOIS","19056-BILLARD CLUB DE NICE","143938C"]
[null,null,null,null,"ROCCA-JEAN","19017-BILLARD CLUB PHOCEEN","182388Y"]
[null,null,null,null,"RODRIGUES-STEVE","19090-BILLARD AMATEUR ROGNAC","171160T"]
[null,null,null,null,"ROGER-GERARD","19021-BILLARD CLUB CAVAILLONNAIS","134843H"]
[null,null,null,null,"RONSAIN-JEAN JACQUES","19012-SALON BILLARD CLUB","166175A"]
[null,null,null,null,"ROUANET-CLAUDE","19025-BILLARD CLUB SISTERONNAIS","163166E"]
[null,null,null,null,"ROUGON-ROBERT","19007-BILLARD CLUB BERROIS","101518O"]
[null,null,null,null,"ROUSSEL-PATRICE","19068-BILLARD CLUB ARLESIEN","172468Q"]
[null,null,null,null,"RYCKELYNCK-LAURENT","19006-BILLARD CLUB CARPENTRASSIEN","121397D"]
[null,null,null,null,"SABAH-YVES","19001-S. S. A. B. D AIX EN PROVENCE","153753Y"]
[null,null,null,null,"SAJ-PATRICK","19017-BILLARD CLUB PHOCEEN","185637E"]
[null,null,null,null,"SALAMA-ALAIN","19021-BILLARD CLUB CAVAILLONNAIS","136546U"]
[null,null,null,null,"SALES-THIERRY","19061-ACAD.BILLARD ST RAPHAEL","175174G"]
[null,null,null,null,"SANDEAUX-JEAN CLEMENT","19001-S. S. A. B. D AIX EN PROVENCE","182824X"]
[null,null,null,null,"SANTIAGO-EMMANUEL","19021-BILLARD CLUB CAVAILLONNAIS","118693D"]
[null,null,null,null,"SANTIAGO-JEAN JOSEPH","19050-BILLARD CLUB SAUSSETOIS","022391F"]
[null,null,null,null,"SANTORO-JENNIFER","19127-O CIGALON BILLARD CLUB","122933F"]
[null,null,null,null,"SARRALDE-LOUIS","19021-BILLARD CLUB CAVAILLONNAIS","014138U"]
[null,null,null,null,"SAUVAN-HENRY","19023-BILLARD CLUB GARDEEN","164008V"]
[null,null,null,null,"SAVARY-PHILIPPE","19059-BILLARD CLUB ROQUEBRUNOIS","174856L"]
[null,null,null,null,"SAVI-OLIVIER","19050-BILLARD CLUB SAUSSETOIS","186195L"]
[null,null,null,null,"SAVOIA-PATRICK","19050-BILLARD CLUB SAUSSETOIS","113222S"]
[null,null,null,null,"SAVOIE-ISABELLE","19130-BLACK BALL CAVAILLONNAIS","119929R"]
[null,null,null,null,"SCHAEFER-ERNEST ROBERT","19006-BILLARD CLUB CARPENTRASSIEN","149694L"]
[null,null,null,null,"SCHENK-ROBERT","19056-BILLARD CLUB DE NICE","136540O"]
[null,null,null,null,"SCHOU-MICHEL","19023-BILLARD CLUB GARDEEN","183292F"]
[null,null,null,null,"SEBAH-JEAN PAUL","19017-BILLARD CLUB PHOCEEN","175481Q"]
[null,null,null,null,"SEDANO-JEAN LUC","19130-BLACK BALL CAVAILLONNAIS","014712W"]
[null,null,null,null,"SEDRATI-ONIS","19002-SPORT AMAT.DE BILLARD MARSEILLAIS","182207B"]
[null,null,null,null,"SEEBORUTH-NIKHIL","19002-SPORT AMAT.DE BILLARD MARSEILLAIS","186463C"]
[null,null,null,null,"SEEMANN-MICHAEL","19025-BILLARD CLUB SISTERONNAIS","182883L"]
[null,null,null,null,"SELLIER-MICHEL","19056-BILLARD CLUB DE NICE","022406U"]
[null,null,null,null,"SERMON-FABIO","19130-BLACK BALL CAVAILLONNAIS","149899J"]
[null,null,null,null,"SICARD-GEORGES","19025-BILLARD CLUB SISTERONNAIS","163238H"]
[null,null,null,null,"SIDGUI-OUSSAMA","19002-SPORT AMAT.DE BILLARD MARSEILLAIS","182206A"]
[null,null,null,null,"SIEGLER-JEAN PIERRE","19006-BILLARD CLUB CARPENTRASSIEN","168834Q"]
[null,null,null,null,"SIMIAN-FABIENNE","19130-BLACK BALL CAVAILLONNAIS","156378B"]
[null,null,null,null,"SIMON-GERARD","19014-BILLARD CLUB AVIGNONNAIS","010203L"]
[null,null,null,null,"SIMON-PASCAL","19127-O CIGALON BILLARD CLUB","114485H"]
[null,null,null,null,"SINANIAN-JEAN PAUL","19017-BILLARD CLUB PHOCEEN","022412A"]
[null,null,null,null,"SKAF-JOSEPH","19002-SPORT AMAT.DE BILLARD MARSEILLAIS","134702W"]
[null,null,null,null,"SOLARI-ANNICK","19098-BILLARD CLUB LA FARE","151274D"]
[null,null,null,null,"SOLTANI-OMAR","19106-BILLARD CLUB VINONNAIS","103578U"]
[null,null,null,null,"SOULIER-JENNIFER","19068-BILLARD CLUB ARLESIEN","178610R"]
[null,null,null,null,"SPINNLER-JEAN LUC","19027-ACADEMIE DE BILLARD DE BOLLENE","165931K"]
[null,null,null,null,"STEINMANN-SEBASTIEN","19061-ACAD.BILLARD ST RAPHAEL","020790Q"]
[null,null,null,null,"STEPHAN-OLIVIER","19025-BILLARD CLUB SISTERONNAIS","125931N"]
[null,null,null,null,"STRAUDO-JEAN PIERRE","19090-BILLARD AMATEUR ROGNAC","179072T"]
[null,null,null,null,"STRAUDO-MICHEL","19090-BILLARD AMATEUR ROGNAC","156278S"]
[null,null,null,null,"SUEUR PASCAL","19058-ACADEMIE DE BILLARD DE BARBOSSI MANDELIEU","165039Q"]
[null,null,null,null,"SUMILE-JODERICK","19112-NISSA BILLARD CLUB","186725M"]
[null,null,null,null,"SURATEAU-BERNARD","19061-ACAD.BILLARD ST RAPHAEL","165925D"]
[null,null,null,null,"TAN-BUN HO","19068-BILLARD CLUB ARLESIEN","182372F"]
[null,null,null,null,"TARDIEUX-LUC","19098-BILLARD CLUB LA FARE","022429R"]
[null,null,null,null,"TARDY-JEAN CLAUDE","19014-BILLARD CLUB AVIGNONNAIS","133907H"]
[null,null,null,null,"TARDY-PIERRE YVES","19058-ACADEMIE DE BILLARD DE BARBOSSI MANDELIEU","143024Y"]
[null,null,null,null,"TARTING-BERNARD","19001-S. S. A. B. D AIX EN PROVENCE","160345N"]
[null,null,null,null,"TEYSSIER-SERGE","19007-BILLARD CLUB BERROIS","132938A"]
[null,null,null,null,"THEVENET-JEAN CLAUDE","19025-BILLARD CLUB SISTERONNAIS","014232K"]
[null,null,null,null,"THIBAULT-LUCETTE","19106-BILLARD CLUB VINONNAIS","184678M"]
[null,null,null,null,"THIBOUT-HERVE","19017-BILLARD CLUB PHOCEEN","186654K"]
[null,null,null,null,"THIERY-PATRICE","19068-BILLARD CLUB ARLESIEN","173938N"]
[null,null,null,null,"THOMAS-MICHEL","19061-ACAD.BILLARD ST RAPHAEL","125937T"]
[null,null,null,null,"THOMAS-PHILIPPE","19023-BILLARD CLUB GARDEEN","168687F"]
[null,null,null,null,"TIBERT-THIERRY","19055-ACADEMIE DE BILLARD DE MENTON","113231B"]
[null,null,null,null,"TICHADOU-SAMY","19002-SPORT AMAT.DE BILLARD MARSEILLAIS","186465E"]
[null,null,null,null,"TOMASINI-ALEXANDRE","19055-ACADEMIE DE BILLARD DE MENTON","105800G"]
[null,null,null,null,"TONINI BOSSI-LAURENT","19002-SPORT AMAT.DE BILLARD MARSEILLAIS","131820A"]
[null,null,null,null,"TONOLI-PASCAL","19059-BILLARD CLUB ROQUEBRUNOIS","022438A"]
[null,null,null,null,"TORES-JEAN LUC","19009-CLUB BILLARD ISTREEN","135554Q"]
[null,null,null,null,"TORRE-BENOIT","19068-BILLARD CLUB ARLESIEN","180537L"]
[null,null,null,null,"TOUATI-WILLIAM","19002-SPORT AMAT.DE BILLARD MARSEILLAIS","186455T"]
[null,null,null,null,"TOULLEC-DANIEL","19059-BILLARD CLUB ROQUEBRUNOIS","177643Q"]
[null,null,null,null,"TOUREILLE-ALAIN","19025-BILLARD CLUB SISTERONNAIS","139062O"]
[null,null,null,null,"TOURE-MADOU","19002-SPORT AMAT.DE BILLARD MARSEILLAIS","014256I"]
[null,null,null,null,"TRAN-KEVIN","19002-SPORT AMAT.DE BILLARD MARSEILLAIS","022443F"]
[null,null,null,null,"TURPIN-JEAN","19001-S. S. A. B. D AIX EN PROVENCE","172679V"]
[null,null,null,null,"VAHE-GUILLAUME","19112-NISSA BILLARD CLUB","107282G"]
[null,null,null,null,"VALENSI-GERARD","19017-BILLARD CLUB PHOCEEN","022453P"]
[null,null,null,null,"VALET-JEAN MICHEL","19023-BILLARD CLUB GARDEEN","177653B"]
[null,null,null,null,"VALETTE-SYLVAIN","19023-BILLARD CLUB GARDEEN","177654C"]
[null,null,null,null,"VALLETTE-PHILIPPE","19027-ACADEMIE DE BILLARD DE BOLLENE","171874V"]
[null,null,null,null,"VALMAGGIA-CHRISTIAN","19009-CLUB BILLARD ISTREEN","141274Q"]
[null,null,null,null,"VALVERDE-JEAN YVES","19023-BILLARD CLUB GARDEEN","153163G"]
[null,null,null,null,"VAN GOOL-FRANS","19058-ACADEMIE DE BILLARD DE BARBOSSI MANDELIEU","170621H"]
[null,null,null,null,"VAN OVERSTRAETEN-JULIEN","19002-SPORT AMAT.DE BILLARD MARSEILLAIS","186462B"]
[null,null,null,null,"VAN WIJNGAARDEN-HANS","19058-ACADEMIE DE BILLARD DE BARBOSSI MANDELIEU","143155Z"]
[null,null,null,null,"VAUTRIN-JEAN","19056-BILLARD CLUB DE NICE","022459V"]
[null,null,null,null,"VIAL-HUGO","19112-NISSA BILLARD CLUB","159948G"]
[null,null,null,null,"VICTOR-DANIEL","19019-BILLARD CLUB DE LA BAIE","147412F"]
[null,null,null,null,"VIDAL-RENE BERNARD","19106-BILLARD CLUB VINONNAIS","181240A"]
[null,null,null,null,"VIERA MAIA-ARLINDO","19061-ACAD.BILLARD ST RAPHAEL","148051A"]
[null,null,null,null,"VIGNE-PHILIPPE","19014-BILLARD CLUB AVIGNONNAIS","014327B"]
[null,null,null,null,"VILLAR-FRANCOIS","19112-NISSA BILLARD CLUB","149606Q"]
[null,null,null,null,"VILLAR-LOUP","19112-NISSA BILLARD CLUB","176924J"]
[null,null,null,null,"VILLASEVIL-ANTONIO","19007-BILLARD CLUB BERROIS","101485H"]
[null,null,null,null,"VILLEMAIN-SYLVAIN","19130-BLACK BALL CAVAILLONNAIS","153007M"]
[null,null,null,null,"VILLENAVE-REGIS","19068-BILLARD CLUB ARLESIEN","172469R"]
[null,null,null,null,"VILLENEUVE-THEO","19127-O CIGALON BILLARD CLUB","186540L"]
[null,null,null,null,"VISCONTI-JEAN","19090-BILLARD AMATEUR ROGNAC","138731V"]
[null,null,null,null,"VIVALDI-ANDRE","19106-BILLARD CLUB VINONNAIS","022476M"]
[null,null,null,null,"VO-DANG-HUY","19056-BILLARD CLUB DE NICE","132515T"]
[null,null,null,null,"VUILLAUME-JEAN CLAUDE","19056-BILLARD CLUB DE NICE","154571M"]
[null,null,null,null,"VULTAGGIO-PIERRE","19058-ACADEMIE DE BILLARD DE BARBOSSI MANDELIEU","022480Q"]
[null,null,null,null,"WALLON-PATRICK","19027-ACADEMIE DE BILLARD DE BOLLENE","176943E"]
[null,null,null,null,"WARLET-JEAN CLAUDE","19061-ACAD.BILLARD ST RAPHAEL","117872O"]
[null,null,null,null,"WILLAME-PHILIPPE","19001-S. S. A. B. D AIX EN PROVENCE","152534Y"]
[null,null,null,null,"WIRTH-HUGO","19002-SPORT AMAT.DE BILLARD MARSEILLAIS","186649E"]
[null,null,null,null,"WOLFF-MAXIME","19002-SPORT AMAT.DE BILLARD MARSEILLAIS","182608M"]
[null,null,null,null,"WYNIGER-ERIC","19014-BILLARD CLUB AVIGNONNAIS","172921H"]
[null,null,null,null,"WYNIGER-MARC","19014-BILLARD CLUB AVIGNONNAIS","172922J"]
[null,null,null,null,"XUEREF-JEAN MARIE","19019-BILLARD CLUB DE LA BAIE","152049W"]
[null,null,null,null,"YORAC-ARNOLF","19138-BILLARD CLUB FREJUSSIEN","143308W"]
[null,null,null,null,"YUNG-NADEGE","19130-BLACK BALL CAVAILLONNAIS","166159H"]
[null,null,null,null,"YVOZ-ALAIN","19006-BILLARD CLUB CARPENTRASSIEN","184288N"]
[null,null,null,null,"ZANDRINO-ALAIN","19007-BILLARD CLUB BERROIS","134311V"]
[null,null,null,null,"ZATTERA-GIOVANNI","19002-SPORT AMAT.DE BILLARD MARSEILLAIS","186520P"]
[null,null,null,null,"ZOPPI-AIME","19023-BILLARD CLUB GARDEEN","144788U"]
[null,null,null,null,"ZOPPI-CEDRIC","19023-BILLARD CLUB GARDEEN","125457H"]
[null,null,null,null,"ZOUARI-SAMY","19002-SPORT AMAT.DE BILLARD MARSEILLAIS","184338S"]

{"sheet":"Poule de 6","index":2,"n_rows":40,"n_cols":46,"rows_kept":40,"cut":false,"hidden":false,"merged":[[29,8,31,10],[29,11,31,13],[29,1,31,1],[7,22,7,23],[4,2,5,6],[6,2,6,6],[32,2,32,26],[11,0,13,0],[14,0,16,0],[17,0,19,0],[20,0,22,0],[23,0,25,0],[26,0,28,0],[9,2,9,4],[9,5,9,7],[9,8,9,10],[2,1,9,1],[23,14,25,16],[23,25,25,25],[14,26,16,26],[17,26,19,26],[20,26,22,26],[29,23,29,29],[30,22,31,29],[30,20,31,21],[29,2,31,4],[29,5,31,7],[20,22,22,22],[11,20,13,20],[20,11,22,13],[11,26,13,26],[0,1,0,29],[8,2,8,6],[8,7,8,10],[8,14,8,17],[3,22,3,23],[3,19,3,21],[4,19,4,21],[9,11,9,13],[9,14,9,16],[9,17,9,19],[3,2,3,6],[5,7,5,17],[3,7,3,17],[4,7,4,17],[2,2,2,17],[11,21,13,21],[11,22,13,22],[4,22,4,23],[6,22,6,23],[7,19,7,21],[14,25,16,25],[6,7,6,17],[11,23,13,23],[20,25,22,25],[17,24,19,24],[10,39,10,40],[20,20,22,20],[20,21,22,21],[5,19,5,21],[5,22,5,23],[20,23,22,23],[11,2,13,4],[17,8,19,10],[6,19,6,21],[14,5,16,7],[11,24,13,24],[17,23,19,23],[11,25,13,25],[14,23,16,23],[14,24,16,24],[8,11,8,13],[17,20,19,20],[17,22,19,22],[14,22,16,22],[17,21,19,21],[14,21,16,21],[14,20,16,20],[17,25,19,25],[10,41,10,42],[14,42,16,42],[11,40,13,40],[14,27,16,27],[17,28,19,28],[17,42,19,42],[17,40,19,40],[11,42,13,42],[11,41,13,41],[10,37,10,38],[11,31,11,35],[11,39,13,39],[14,39,16,39],[17,37,19,37],[11,27,13,27],[11,38,13,38],[14,38,16,38],[17,38,19,38],[17,27,19,27],[17,39,19,39],[14,37,16,37],[14,28,16,28],[23,24,25,24],[23,28,25,28],[26,28,28,28],[23,29,25,29],[23,38,25,38],[23,41,25,41],[11,29,13,29],[14,29,16,29],[17,29,19,29],[26,38,28,38],[26,39,28,39],[26,37,28,37],[23,37,25,37],[20,28,22,28],[20,38,22,38],[20,39,22,39],[11,28,13,28],[17,41,19,41],[20,41,22,41],[20,24,22,24],[11,37,13,37],[14,40,16,40],[20,42,22,42],[20,29,22,29],[26,29,28,29],[23,39,25,39],[20,40,22,40],[29,14,31,16],[29,17,31,19],[20,37,22,37],[26,27,28,27],[20,27,22,27],[23,27,25,27],[26,26,28,26],[26,23,28,23],[26,17,28,19],[26,20,28,20],[26,21,28,21],[26,22,28,22],[26,24,28,24],[26,25,28,25],[23,26,25,26],[23,20,25,20],[23,21,25,21],[23,22,25,22],[23,23,25,23],[26,45,28,45],[17,43,19,43],[26,44,28,44],[26,40,28,40],[26,43,28,43],[11,44,13,44],[14,44,16,44],[17,44,19,44],[20,44,22,44],[23,44,25,44],[20,43,22,43],[23,43,25,43],[11,43,13,43],[14,43,16,43],[11,45,13,45],[14,45,16,45],[17,45,19,45],[20,45,22,45],[23,45,25,45],[26,41,28,41],[14,41,16,41],[26,42,28,42],[23,42,25,42],[23,40,25,40]]}
[null,"FINALE de 3 A 6 JOUEURS"]
[]
[null,{"$error":"#VALUE!"},"Lieu de la compétition"]
[null,null,"Nom du club",null,null,null,null,null,null,null,null,null,null,null,null,null,null,null,null,"Mode de jeu"]
[null,null,"Numéro et rue",null,null,null,null,{"$f":"IF(H4<>\"\",VLOOKUP(H4,coordonnees_clubs,3,FALSE),\"\")","v":""},null,null,null,null,null,null,null,null,null,null,null,"Distance"]
[null,null,null,null,null,null,null,{"$f":"IF(H4<>\"\",VLOOKUP(H4,coordonnees_clubs,4,FALSE),\"\")","v":""},null,null,null,null,null,null,null,null,null,null,null,"Nombre Reprises"]
[null,null,"Code postal et commune",null,null,null,null,{"$f":"IF(H4<>\"\",VLOOKUP(H4,coordonnees_clubs,5,FALSE),\"\")","v":""},null,null,null,null,null,null,null,null,null,null,null,"Catégorie"]
[null,null,null,null,null,null,null,null,null,null,null,null,null,null,null,null,null,null,null,"Format Billard"]
[null,null,"Compétition",null,null,null,null,null,null,null,null,"Date",null,null,{"$f":"TODAY()","v":"2026-03-22"}]
[null,null,1,null,null,2,null,null,3,null,null,4,null,null,5,null,null,6]
[null,"Nom  Prénom\nClub\nLicence",{"$f":"IF(B12<>\"\",B12,\"\")","v":""},{"$f":"IF(B13<>\"\",B13,\"\")","v":""},{"$f":"IF(B14<>\"\",B14,\"\")","v":""},{"$f":"IF(B15<>\"\",B15,\"\")","v":""},{"$f":"IF(B16<>\"\",B16,\"\")","v":""},{"$f":"IF(B17<>\"\",B17,\"\")","v":""},{"$f":"IF(B18<>\"\",B18,\"\")","v":""},{"$f":"IF(B19<>\"\",B19,\"\")","v":""},{"$f":"IF(B20<>\"\",B20,\"\")","v":""},{"$f":"IF(B21<>\"\",B21,\"\")","v":""},{"$f":"IF(B22<>\"\",B22,\"\")","v":""},{"$f":"IF(B23<>\"\",B23,\"\")","v":""},{"$f":"IF(B24<>\"\",B24,\"\")","v":""},{"$f":"IF(B25<>\"\",B25,\"\")","v":""},{"$f":"IF(B26<>\"\",B26,\"\")","v":""},{"$f":"IF(B27<>\"\",B27,\"\")","v":""},{"$f":"IF(B28<>\"\",B28,\"\")","v":""},{"$f":"IF(B29<>\"\",B29,\"\")","v":""},"Points","Reprises","Série","Moyenne Générale","Moyenne particulière","Points de match","Classement","Points  classement acquis","Pts ranking obtenus","Total pts classement",null,null,null,null,null,null,null,"Points",null,"MG",null,"MP",null,"Cumul"]
[1,null,"l",null,null,null,null,null,null,null,null,null,null,null,null,null,null,null,null,null,{"$f":"SUM(F12+I12+L12+O12+R12)","v":0},{"$f":"SUM(H12+K12+N12+Q12+T12)","v":0},{"$f":"MAX(F14,I14,L14,O14,R14)","v":0},{"$f":"IF(V12>0,U12/V12,0)","v":0},{"$f":"MAX(AF14:AJ14)","v":0},{"$f":"SUM(G13+J13+M13+P13+S13)","v":0},{"$f":"IF(B12<>\"\",AT12,\"\")","v":""},null,{"$f":"IFERROR(VLOOKUP(AA12,points_ranking,2,FALSE),0)","v":0},{"$f":"Z12+AB12+AC12","v":0},null,"Moyennes particulières",null,null,null,null,null,{"$f":"Z12","v":0},{"$f":"RANK(AL12,$Z$12:$Z$29,0)","v":1},{"$f":"X12","v":0},{"$f":"RANK(AN12,X12:X29)","v":1},{"$f":"Y12","v":0},{"$f":"RANK(AP12,Y12:Y29)","v":1},{"$f":"(AM12*100)+(AO12*10)+(AQ12*1)","v":111},{"$f":"AR12","v":111},{"$f":"RANK(AS12,$AR$12:$AR$29,1)","v":1}]
[null,{"$f":"IF(B12<>\"\",VLOOKUP(B12,ClubduJoueur,2,FALSE),\"\")","v":""}]
[null,{"$f":"IF(B12<>\"\",VLOOKUP(B12,ClubduJoueur,3,FALSE),\"\")","v":""},null,null,null,null,null,{"$f":"IF(H12>0,F12/H12,\"\")","v":""},null,null,{"$f":"IF(K12>0,I12/K12,\"\")","v":""},null,null,{"$f":"IF(N12>0,L12/N12,\"\")","v":""},null,null,{"$f":"IF(Q12>0,O12/Q12,\"\")","v":""},null,null,{"$f":"IF(T12>0,R12/T12,\"\")","v":""},null,null,null,null,null,null,null,null,null,null,null,{"$f":"IF(G13>1,H14,0)","v":0},{"$f":"IF(J13>1,K14,0)","v":0},{"$f":"IF(M13>1,N14,0)","v":0},{"$f":"IF(P13>1,Q14,0)","v":0},{"$f":"IF(S13>1,T14,0)","v":0}]
[2,null,null,null,{"$f":"H12","v":0},"l",null,null,null,null,null,null,null,null,null,null,null,null,null,null,{"$f":"SUM(C15+I15+L15+O15+R15)","v":0},{"$f":"SUM(E15+K15+N15+Q15+T15)","v":0},{"$f":"MAX(C17,I17,L17,O17,R17)","v":0},{"$f":"IF(V15>0,U15/V15,0)","v":0},{"$f":"MAX(AF17:AJ17)","v":0},{"$f":"SUM(D16+J16+M16+P16+S16)","v":0},{"$f":"IF(B15<>\"\",AT15,\"\")","v":""},null,{"$f":"IFERROR(VLOOKUP(AA15,points_ranking,2,FALSE),0)","v":0},{"$f":"Z15+AB15+AC15","v":0},null,null,null,null,null,null,null,{"$f":"Z15","v":0},{"$f":"RANK(AL15,$Z$12:$Z$29,0)","v":1},{"$f":"X15","v":0},{"$f":"RANK(X15,$X$12:$X$29)","v":1},{"$f":"Y15","v":0},{"$f":"RANK(AP15,Y15:Y32)","v":1},{"$f":"(AM15*100)+(AO15*10)+(AQ15*1)","v":111},{"$f":"AR15","v":111},{"$f":"RANK(AS15,$AR$12:$AR$29,1)","v":1}]
[null,{"$f":"IF(B15<>\"\",VLOOKUP(B15,ClubduJoueur,2,FALSE),\"\")","v":""}]
[null,{"$f":"IF(B15<>\"\",VLOOKUP(B15,ClubduJoueur,3,FALSE),\"\")","v":""},null,null,{"$f":"IF(E15>0,C15/E15,\"\")","v":""},null,null,null,null,null,{"$f":"IF(K15>0,I15/K15,\"\")","v":""},null,null,{"$f":"IF(N15>0,L15/N15,\"\")","v":""},null,null,{"$f":"IF(Q15>0,O15/Q15,\"\")","v":""},null,null,{"$f":"IF(T15>0,R15/T15,\"\")","v":""},null,null,null,null,null,null,null,null,null,null,null,{"$f":"IF(D16>1,E17,0)","v":0},{"$f":"IF(J16>1,K17,0)","v":0},{"$f":"IF(M16>1,N17,0)","v":0},{"$f":"IF(P16>1,Q17,0)","v":0},{"$f":"IF(S16>1,T17,0)","v":0}]
[3,null,null,null,{"$f":"K12","v":0},null,null,{"$f":"K15","v":0},"l",null,null,null,null,null,null,null,null,null,null,null,{"$f":"SUM(C18+F18+L18+O18+R18)","v":0},{"$f":"SUM(E18+H18+N18+Q18+T18)","v":0},{"$f":"MAX(C20,F20,L20,O20,R20)","v":0},{"$f":"IF(V18>0,U18/V18,0)","v":0},{"$f":"MAX(AF20:AJ20)","v":0},{"$f":"SUM(D19+G19+M19+P19+S19)","v":0},{"$f":"IF(B18<>\"\",AT18,\"\")","v":""},null,{"$f":"IFERROR(VLOOKUP(AA18,points_ranking,2,FALSE),0)","v":0},{"$f":"Z18+AB18+AC18","v":0},null,null,null,null,null,null,null,{"$f":"Z18","v":0},{"$f":"RANK(AL18,$Z$12:$Z$29,0)","v":1},{"$f":"X18","v":0},{"$f":"RANK(X18,$X$12:$X$29)","v":1},{"$f":"Y18","v":0},{"$f":"RANK(AP18,Y18:Y35)","v":1},{"$f":"(AM18*100)+(AO18*10)+(AQ18*1)","v":111},{"$f":"AR18","v":111},{"$f":"RANK(AS18,$AR$12:$AR$29,1)","v":1}]
[null,{"$f":"IF(B18<>\"\",VLOOKUP(B18,ClubduJoueur,2,FALSE),\"\")","v":""}]
[null,{"$f":"IF(B18<>\"\",VLOOKUP(B18,ClubduJoueur,3,FALSE),\"\")","v":""},null,null,{"$f":"IF(E18>0,C18/E18,\"\")","v":""},null,null,{"$f":"IF(H18>0,F18/H18,\"\")","v":""},null,null,null,null,null,{"$f":"IF(N18>0,L18/N18,\"\")","v":""},null,null,{"$f":"IF(Q18>0,O18/Q18,\"\")","v":""},null,null,{"$f":"IF(T18>0,R18/T18,\"\")","v":""},null,null,null,null,null,null,null,null,null,null,null,{"$f":"IF(D19>1,E20,0)","v":0},{"$f":"IF(G19>1,H20,0)","v":0},{"$f":"IF(M19>1,N20,0)","v":0},{"$f":"IF(P19>1,Q20,0)","v":0},{"$f":"IF(S19>1,T20,0)","v":0}]
[4,null,null,null,{"$f":"N12","v":0},null,null,{"$f":"N15","v":0},null,null,{"$f":"N18","v":0},"l",null,null,null,null,null,null,null,null,{"$f":"SUM(C21+F21+I21+O21+R21)","v":0},{"$f":"SUM(E21+H21+K21+Q21+T21)","v":0},{"$f":"MAX(C23,F23,I23,O23,R23)","v":0},{"$f":"IF(V21>0,U21/V21,0)","v":0},{"$f":"MAX(AF23:AJ23)","v":0},{"$f":"SUM(D22+G22+J22+P22+S22)","v":0},{"$f":"IF(B21<>\"\",AT21,\"\")","v":""},null,{"$f":"IFERROR(VLOOKUP(AA21,points_ranking,2,FALSE),0)","v":0},{"$f":"Z21+AB21+AC21","v":0},null,null,null,null,null,null,null,{"$f":"Z21","v":0},{"$f":"RANK(AL21,$Z$12:$Z$29,0)","v":1},{"$f":"X21","v":0},{"$f":"RANK(X21,$X$12:$X$29)","v":1},{"$f":"Y21","v":0},{"$f":"RANK(AP21,Y21:Y38)","v":1},{"$f":"(AM21*100)+(AO21*10)+(AQ21*1)","v":111},{"$f":"AR21","v":111},{"$f":"RANK(AS21,$AR$12:$AR$29,1)","v":1}]
[null,{"$f":"IF(B21<>\"\",VLOOKUP(B21,ClubduJoueur,2,FALSE),\"\")","v":""}]
[null,{"$f":"IF(B21<>\"\",VLOOKUP(B21,ClubduJoueur,3,FALSE),\"\")","v":""},null,null,{"$f":"IF(E21>0,C21/E21,\"\")","v":""},null,null,{"$f":"IF(H21>0,F21/H21,\"\")","v":""},null,null,{"$f":"IF(K21>0,I21/K21,\"\")","v":""},null,null,null,null,null,{"$f":"IF(Q21>0,O21/Q21,\"\")","v":""},null,null,{"$f":"IF(T21>0,R21/T21,\"\")","v":""},null,null,null,null,null,null,null,null,null,null,null,{"$f":"IF(D22>1,E23,0)","v":0},{"$f":"IF(G22>1,H23,0)","v":0},{"$f":"IF(J22>1,K23,0)","v":0},{"$f":"IF(P22>1,Q23,0)","v":0},{"$f":"IF(S22>1,T23,0)","v":0}]
[5,null,null,null,{"$f":"Q12","v":0},null,null,{"$f":"Q15","v":0},null,null,{"$f":"Q18","v":0},null,null,{"$f":"Q21","v":0},"l",null,null,null,null,null,{"$f":"SUM(C24+F24+I24+L24+R24)","v":0},{"$f":"SUM(E24+H24+K24+N24+T24)","v":0},{"$f":"MAX(C26,F26,I26,L26,R26)","v":0},{"$f":"IF(V24>0,U24/V24,0)","v":0},{"$f":"MAX(AF26:AJ26)","v":0},{"$f":"SUM(D25+G25+J25+M25+S25)","v":0},{"$f":"IF(B24<>\"\",AT24,\"\")","v":""},null,{"$f":"IFERROR(VLOOKUP(AA24,points_ranking,2,FALSE),0)","v":0},{"$f":"Z24+AB24+AC24","v":0},null,null,null,null,null,null,null,{"$f":"Z24","v":0},{"$f":"RANK(AL24,$Z$12:$Z$29,0)","v":1},{"$f":"X24","v":0},{"$f":"RANK(X24,$X$12:$X$29)","v":1},{"$f":"Y24","v":0},{"$f":"RANK(AP24,Y24:Y41)","v":1},{"$f":"(AM24*100)+(AO24*10)+(AQ24*1)","v":111},{"$f":"AR24","v":111},{"$f":"RANK(AS24,$AR$12:$AR$29,1)","v":1}]
[null,{"$f":"IF(B24<>\"\",VLOOKUP(B24,ClubduJoueur,2,FALSE),\"\")","v":""}]
[null,{"$f":"IF(B24<>\"\",VLOOKUP(B24,ClubduJoueur,3,FALSE),\"\")","v":""},null,null,{"$f":"IF(E24>0,C24/E24,\"\")","v":""},null,null,{"$f":"IF(H24>0,F24/H24,\"\")","v":""},null,null,{"$f":"IF(K24>0,I24/K24,\"\")","v":""},null,null,{"$f":"IF(N24>0,L24/N24,\"\")","v":""},null,null,null,null,null,{"$f":"IF(T24>0,R24/T24,\"\")","v":""},null,null,null,null,null,null,null,null,null,null,null,{"$f":"IF(D25>1,E26,0)","v":0},{"$f":"IF(G25>1,H26,0)","v":0},{"$f":"IF(J25>1,K26,0)","v":0},{"$f":"IF(M25>1,N26,0)","v":0},{"$f":"IF(S25>1,T26,0)","v":0}]
[6,null,null,null,{"$f":"T12","v":0},null,null,{"$f":"T15","v":0},null,null,{"$f":"T18","v":0},null,null,{"$f":"T21","v":0},null,null,{"$f":"T24","v":0},"l",null,null,{"$f":"SUM(C27+F27+I27+L27+O27)","v":0},{"$f":"SUM(E27+H27+K27+N27+Q27)","v":0},{"$f":"MAX(C29,F29,I29,L29,O29)","v":0},{"$f":"IF(V27>0,U27/V27,0)","v":0},{"$f":"MAX(AF29:AJ29)","v":0},{"$f":"SUM(D28+G28+J28+M28+P28)","v":0},{"$f":"IF(B27<>\"\",AT27,\"\")","v":""},null,{"$f":"IFERROR(VLOOKUP(AA27,points_ranking,2,FALSE),0)","v":0},{"$f":"Z27+AB27+AC27","v":0},null,null,null,null,null,null,null,{"$f":"Z27","v":0},{"$f":"RANK(AL27,$Z$12:$Z$29,0)","v":1},{"$f":"X27","v":0},{"$f":"RANK(X27,$X$12:$X$29)","v":1},{"$f":"Y27","v":0},{"$f":"RANK(AP27,Y27:Y44)","v":1},{"$f":"(AM27*100)+(AO27*10)+(AQ27*1)","v":111},{"$f":"AR27","v":111},{"$f":"RANK(AS27,$AR$12:$AR$29,1)","v":1}]
[null,{"$f":"IF(B27<>\"\",VLOOKUP(B27,ClubduJoueur,2,FALSE),\"\")","v":""}]
[null,{"$f":"IF(B27<>\"\",VLOOKUP(B27,ClubduJoueur,3,FALSE),\"\")","v":""},null,null,{"$f":"IF(E27>0,C27/E27,\"\")","v":""},null,null,{"$f":"IF(H27>0,F27/H27,\"\")","v":""},null,null,{"$f":"IF(K27>0,I27/K27,\"\")","v":""},null,null,{"$f":"IF(N27>0,L27/N27,\"\")","v":""},null,null,{"$f":"IF(Q27>0,O27/Q27,\"\")","v":""},null,null,null,null,null,null,null,null,null,null,null,null,null,null,{"$f":"IF(D28>1,E29,0)","v":0},{"$f":"IF(G28>1,H29,0)","v":0},{"$f":"IF(J28>1,K29,0)","v":0},{"$f":"IF(M28>1,N29,0)","v":0},{"$f":"IF(P28>1,Q29,0)","v":0}]
["Version A.FERHAT","Signatures",null,null,null,null,null,null,null,null,null,null,null,null,null,null,null,null,null,null,"Directeur de jeu :"]
["Vs.1",null,null,null,null,null,null,null,null,null,null,null,null,null,null,null,null,null,null,null,"Signature :"]
[{"$f":"TODAY()","v":"2026-03-22"}]
[null,"Version A.FERHAT","ATTENTION : Un joueur forfait ne doit pas figurer sur cette feuille.Les tours de jeu ne seraient plus conformes.",null,null,null,null,null,null,null,null,null,null,null,null,null,null,null,null,null,null,null,null,null,null,null,null,null,null,null,null,"Points de ranking"]
[null,"Vs.1"]
[null,{"$f":"TODAY()","v":"2026-03-22"},null,null,null,null,null,null,null,null,null,null,null,null,null,null,null,null,null,null,null,null,null,null,null,null,null,null,null,null,null,1,22]
[null,null,null,null,null,null,null,null,null,null,null,null,null,null,null,null,null,null,null,null,null,null,null,null,null,null,null,null,null,null,null,2,19]
[null,null,null,null,null,null,null,null,null,null,null,null,null,null,null,null,null,null,null,null,null,null,null,null,null,null,null,null,null,null,null,3,16]
[null,null,null,null,null,null,null,null,null,null,null,null,null,null,null,null,null,null,null,null,null,null,null,null,null,null,null,null,null,null,null,4,14]
[null,null,null,null,null,null,null,null,null,null,null,null,null,null,null,null,null,null,null,null,null,null,null,null,null,null,null,null,null,null,null,5,12]
[null,null,null,null,null,null,null,null,null,null,null,null,null,null,null,null,null,null,null,null,null,null,null,null,null,null,null,null,null,null,null,6,11]

{"sheet":"Tours de jeu","index":3,"n_rows":72,"n_cols":28,"rows_kept":72,"cut":false,"hidden":false,"merged":[[1,3,3,4],[45,3,48,3],[5,12,5,15],[6,13,6,14],[7,13,7,14],[17,3,18,3],[8,13,8,14],[9,3,9,4],[5,3,5,6],[9,13,9,14],[14,12,15,12],[14,3,15,3],[20,3,21,3],[23,3,23,4],[25,3,28,3],[35,6,36,6],[0,0,0,17],[0,26,0,27],[23,20,23,21],[23,23,23,25],[40,12,43,12],[20,12,21,12],[1,17,1,21],[30,3,33,3],[35,3,38,3],[40,3,43,3],[1,26,1,27],[1,23,1,25],[12,3,12,4],[6,4,6,5],[8,4,8,5],[7,4,7,5],[50,4,51,6],[50,15,51,17],[49,22,49,25],[61,22,61,25],[10,12,10,13],[35,12,38,12],[23,12,23,13],[25,12,28,12],[30,12,33,12],[17,12,18,12],[45,12,48,12],[12,12,12,13],[25,4,26,4],[25,6,26,6],[26,8,27,8],[36,8,37,8],[37,6,38,6],[37,4,38,4],[35,4,36,4],[32,6,33,6],[32,4,33,4],[30,6,31,6],[30,4,31,4],[27,4,28,4],[27,6,28,6],[31,8,32,8],[47,4,48,4],[47,6,48,6],[46,8,47,8],[45,6,46,6],[45,4,46,4],[42,4,43,4],[42,6,43,6],[40,6,41,6],[41,8,42,8],[40,4,41,4],[47,17,48,17],[47,15,48,15],[47,13,48,13],[45,17,46,17],[45,15,46,15],[45,13,46,13],[42,13,43,13],[42,15,43,15],[42,17,43,17],[40,17,41,17],[40,15,41,15],[40,13,41,13],[37,13,38,13],[37,15,38,15],[37,17,38,17],[35,17,36,17],[35,15,36,15],[35,13,36,13],[32,13,33,13],[32,15,33,15],[32,17,33,17],[30,17,31,17],[30,15,31,15],[30,13,31,13],[2,7,2,9],[27,13,28,13],[27,15,28,15],[27,17,28,17],[25,17,26,17],[25,15,26,15],[25,13,26,13]]}
["Compétitions disputées sous forme de poule - Organisation des tours de jeu",null,null,null,null,null,null,null,null,null,null,null,null,null,null,null,null,null,null,null,null,null,null,null,null,null,"Les clubs"]
[null,null,null,{"$error":"#VALUE!"}]
[null,null,null,null,null,null,null,"Nombre de joueurs engagés",null,null,null,null,{"$f":"COUNTA('Poule de 6'!B12,'Poule de 6'!B15,'Poule de 6'!B18,'Poule de 6'!B21,'Poule de 6'!B24,'Poule de 6'!B27)","v":0}]
[]
[]
[null,null,null,"Liste des joueurs engagés",null,null,null,null,null,null,null,null,"Liste des joueurs engagés"]
[null,{"$f":"IF(C7=1,\"joueur_1\",\"\")","v":"joueur_1"},{"$f":"IF(OR(E7=E8,E7=E9),1,\"\")","v":1},1,{"$f":"IF($M$3=3,'Poule de 6'!B13,\"\")","v":""},null,{"$f":"IF($M$3=3,'Poule de 6'!B12,\"\")","v":""},null,null,null,{"$f":"RANK(L7,$L$7:$L$10,1)","v":1},{"$f":"IF(OR(N7=N8,N7=N9,N7=N10),1,11)","v":1},1,{"$f":"IF($M$3=4,'Poule de 6'!B13,\"\")","v":""},null,{"$f":"IF($M$3=4,'Poule de 6'!B12,\"\")","v":""}]
[null,{"$f":"IF(C8=2,IF(B7=\"\",\"joueur_1\",\"joueur_2\"),\"\")","v":"joueur_2"},{"$f":"IF(OR(E8=E7,E8=E9),2,\"\")","v":2},2,{"$f":"IF($M$3=3,'Poule de 6'!B16,\"\")","v":""},null,{"$f":"IF($M$3=3,'Poule de 6'!B15,\"\")","v":""},null,null,null,{"$f":"RANK(L8,$L$7:$L$10,1)","v":2},{"$f":"IF(OR(N8=N9,N8=N10,N8=N7),2,12)","v":2},2,{"$f":"IF($M$3=4,'Poule de 6'!B16,\"\")","v":""},null,{"$f":"IF($M$3=4,'Poule de 6'!B15,\"\")","v":""}]
[null,{"$f":"IF(C9=3,\"joueur_2\",\"\")","v":"joueur_2"},{"$f":"IF(OR(E9=E7,E9=E8),3,\"\")","v":3},3,{"$f":"IF($M$3=3,'Poule de 6'!B19,\"\")","v":""},null,{"$f":"IF($M$3=3,'Poule de 6'!B18,\"\")","v":""},null,null,null,{"$f":"RANK(L9,$L$7:$L$10,1)","v":3},{"$f":"IF(OR(N9=N10,N9=N8,N9=N7),3,13)","v":3},3,{"$f":"IF($M$3=4,'Poule de 6'!B19,\"\")","v":""},null,{"$f":"IF($M$3=4,'Poule de 6'!B18,\"\")","v":""}]
[null,null,null,"Joueurs d'un même club",null,null,{"$f":"COUNTIF(C7:C9,\">0\")","v":3},null,null,null,{"$f":"RANK(L10,$L$7:$L$10,1)","v":4},{"$f":"IF(OR(N10=N7,N10=N8,N10=N9),4,14)","v":4},4,{"$f":"IF($M$3=4,'Poule de 6'!B22,\"\")","v":""},null,{"$f":"IF($M$3=4,'Poule de 6'!B21,\"\")","v":""}]
[null,null,null,null,null,null,null,null,null,null,null,null,"Joueurs d'un même club",null,null,{"$f":"COUNTIF(L7:L10,\"<10\")","v":4}]
[]
[null,null,null,"Poule de 3 joueurs",null,null,null,null,null,null,null,null,"Poule de 4 joueurs",null,null,null,null,null,null,null,null,null,null,null,null,null,"19061--ACAD.BILLARD ST RAPHAEL","83700 ST RAPHAEL"]
[null,null,null,null,"Billard unique",null,null,null,null,null,null,null,null,"Billard 1",null,"Billard 2",null,null,null,null,null,null,null,null,null,null,"19027--ACADEMIE DE BILLARD DE BOLLENE","84500 BOLLENE"]
[null,null,null,"Tour n°1",{"$f":"IF(AND(M3=3,G10=2),VLOOKUP(\"joueur_1\",joueurs_engages,6,FALSE),G8)","v":""},null,null,null,null,null,null,null,"Tour n°1",{"$f":"IF(AND(M3=4,P11=2),VLOOKUP(1,meme_club_poule_4,6,FALSE),P8)","v":""},null,{"$f":"IF(AND(M3=4,P11=2),VLOOKUP(3,meme_club_poule_4,6,FALSE),P7)","v":""},null,null,null,null,null,null,null,null,null,null,"19055--ACADEMIE DE BILLARD DE MENTON","06500 MENTON"]
[null,null,null,null,{"$f":"IF(AND(M3=3,G10=2),VLOOKUP(\"joueur_2\",joueurs_engages,6,FALSE),G9)","v":""},null,null,null,null,null,null,null,null,{"$f":"IF(AND(M3=4,P11=2),VLOOKUP(2,meme_club_poule_4,6,FALSE),P9)","v":""},null,{"$f":"IF(AND(M3=4,P11=2),VLOOKUP(4,meme_club_poule_4,6,FALSE),P10)","v":""},null,null,null,null,null,null,null,null,null,null,"19001--S. S. A. B. D AIX EN PROVENCE","13100 AIX EN PROVENCE"]
[null,null,null,null,null,null,null,null,null,null,null,null,null,null,null,null,null,null,null,null,null,null,null,null,null,null,"19090--BILLARD AMATEUR ROGNAC","13340 ROGNAC"]
[null,null,null,"Tour n°2",{"$f":"IF(G10<>2,G7,VLOOKUP(\"\",joueurs_engages,6,FALSE))","v":""},null,null,null,null,null,null,null,"Tour n°2",{"$f":"IF(M3=4,\"Perdant billard 1\",\"\")","v":""},null,{"$f":"IF(M3=4,\"Vainqueur billard 1\",\"\")","v":""},null,null,null,null,null,null,null,null,null,null,"19014--BILLARD CLUB AVIGNONNAIS","83560 VINON SUR VERDON"]
[null,null,null,null,{"$f":"IF(M3=3,\"Perdant du tour n° 1\",\"\")","v":""},null,null,null,null,null,null,null,null,{"$f":"IF(M3=4,\"Perdant billard 2\",\"\")","v":""},null,{"$f":"IF(M3=4,\"Vainqueur billard 2\",\"\")","v":""},null,null,null,null,null,null,null,null,null,null,"19007--BILLARD CLUB BERROIS","13130 BERRE L'ETANG"]
[null,null,null,null,null,null,null,null,null,null,null,null,null,null,null,null,null,null,null,null,null,null,null,null,null,null,"19006--BILLARD CLUB CARPENTRASSIEN","84200 CARPENTRAS"]
[null,null,null,"Tour n°3",{"$f":"IF(G10<>2,G7,VLOOKUP(\"\",joueurs_engages,6,FALSE))","v":""},null,null,null,null,null,null,null,"Tour n°3",{"$f":"P7","v":""},null,{"$f":"P10","v":""},null,null,null,null,null,null,null,null,null,null,"19021--BILLARD CLUB CAVAILLONNAIS","84300 CAVAILLON"]
[null,null,null,null,{"$f":"IF(M3=3,\"Gagnant du tour n° 1\",\"\")","v":""},null,null,null,null,null,null,null,null,{"$f":"IF(M3=4,\"Dernier adversaire\",\"\")","v":""},null,{"$f":"IF(M3=4,\"Dernier adversaire\",\"\")","v":""},null,null,null,null,null,null,null,null,null,null,"19008--BRITISH BILLARD CLUB AVIGNON","84000 AVIGNON"]
[null,null,null,null,null,null,null,null,null,null,null,null,null,null,null,null,null,null,null,null,null,null,null,null,null,null,"19019--BILLARD CLUB DE LA BAIE","83240 CAVALAIRE SUR MER"]
[null,null,null,"Poule de 5 joueurs",null,null,null,null,null,null,null,null,"Poule de 6 joueurs",null,null,null,null,null,null,null,"Poule de 5",null,null,"Poule de 6",null,null,"19058--ACADEMIE DE BILLARD DE BARBOSSI MANDELIEU","06210 MANDELIEU LA NAPOULE"]
[null,null,null,null,"Billard 1",null,"Billard 2",null,"Exempt",null,null,null,null,"Billard 1",null,"Billard 2",null,"Billard 3",null,null,"B1","B2",null,"B1","B2","B3","19056--BILLARD CLUB DE NICE","06100 NICE"]
[null,null,null,{"$f":"IF(M3=5,\"Tour n°1\",\"\")","v":""},{"$f":"IF($M$3=5,'Poule de 6'!B18,\"\")","v":""},null,{"$f":"IF(M3=5,'Poule de 6'!B15,\"\")","v":""},null,null,null,null,null,{"$f":"IF(M3=6,\"Tour n°1\",\"\")","v":""},{"$f":"IF($M$3=6,'Poule de 6'!$B$12,\"\")","v":""},null,{"$f":"IF($M$3=6,'Poule de 6'!$B$15,\"\")","v":""},null,{"$f":"IF($M$3=6,'Poule de 6'!$B$18,\"\")","v":""},null,null,"3 / 4","2 / 5",null,1,2,3,"19098--BILLARD CLUB LA FARE","13580 LA FARE LES OLIVIERS"]
[null,null,null,null,null,null,null,null,{"$f":"IF($M$3=5,'Poule de 6'!B12,\"\")","v":""},null,null,null,null,null,null,null,null,null,null,null,null,null,null,6,5,4,"19023--BILLARD CLUB GARDEEN","83130 LA GARDE"]
[null,null,null,null,{"$f":"IF($M$3=5,'Poule de 6'!B21,\"\")","v":""},{"$f":"IF(E27=E29,1,0)","v":1},{"$f":"IF($M$3=5,'Poule de 6'!B24,\"\")","v":""},{"$f":"IF(G27=G29,1,0)","v":1},null,null,null,null,null,{"$f":"IF($M$3=6,'Poule de 6'!$B$27,\"\")","v":""},{"$f":"IF(N27=N29,1,0)","v":1},{"$f":"IF($M$3=6,'Poule de 6'!$B$24,\"\")","v":""},{"$f":"IF(P27=P29,1,0)","v":1},{"$f":"IF($M$3=6,'Poule de 6'!$B$21,\"\")","v":""},{"$f":"IF(R27=R29,1,0)","v":1},{"$f":"SUM(O28,Q28,S28)","v":3},null,null,null,null,null,null,"19016--BILLARD CLUB ORANGEOIS","84100 ORANGE"]
[null,null,null,null,null,null,null,null,{"$f":"SUM(F28,H28)","v":2},null,null,null,null,null,null,null,null,null,null,null,null,null,null,null,null,null,"19017--BILLARD CLUB PHOCEEN","13004 MARSEILLE"]
[null,null,null,null,null,null,null,null,null,null,null,null,null,null,null,null,null,null,null,null,null,null,null,null,null,null,"19059--BILLARD CLUB ROQUEBRUNOIS","83520 ROQUEBRUNE SUR ARGENS"]
[null,null,null,{"$f":"IF(M3=5,\"Tour n°2\",\"\")","v":""},{"$f":"IF(M3=5,'Poule de 6'!B12,\"\")","v":""},null,{"$f":"IF(M3=5,'Poule de 6'!B15,\"\")","v":""},null,null,null,null,null,{"$f":"IF(M3=6,\"Tour n°2\",\"\")","v":""},{"$f":"IF($M$3=6,'Poule de 6'!$B$15,\"\")","v":""},null,{"$f":"IF($M$3=6,'Poule de 6'!$B$27,\"\")","v":""},null,{"$f":"IF($M$3=6,'Poule de 6'!$B$12,\"\")","v":""},null,null,"1 / 5","2 / 3 ",null,2,6,1,"19012--SALON BILLARD CLUB","13300 SALON DE PROVENCE"]
[null,null,null,null,null,null,null,null,{"$f":"IF(M3=5,'Poule de 6'!B21,\"\")","v":""},null,null,null,null,null,null,null,null,null,null,null,null,null,null,3,4,5,"19050--BILLARD CLUB SAUSSETOIS","13960 SAUSSET LES PINS"]
[null,null,null,null,{"$f":"IF($M$3=5,'Poule de 6'!B24,\"\")","v":""},{"$f":"IF(E32=E34,1,0)","v":1},{"$f":"IF($M$3=5,'Poule de 6'!B18,\"\")","v":""},{"$f":"IF(G32=G34,1,0)","v":1},null,null,null,null,null,{"$f":"IF($M$3=6,'Poule de 6'!$B$18,\"\")","v":""},{"$f":"IF(N32=N34,1,0)","v":1},{"$f":"IF($M$3=6,'Poule de 6'!$B$21,\"\")","v":""},{"$f":"IF(P32=P34,1,0)","v":1},{"$f":"IF($M$3=6,'Poule de 6'!$B$24,\"\")","v":""},{"$f":"IF(R32=R34,1,0)","v":1},{"$f":"SUM(O33,Q33,S33)","v":3},null,null,null,null,null,null,"19025--BILLARD CLUB SISTERONNAIS","04200 SISTERON"]
[null,null,null,null,null,null,null,null,{"$f":"SUM(F33,H33)","v":2},null,null,null,null,null,null,null,null,null,null,null,null,null,null,null,null,null,"19106--BILLARD CLUB VINONNAIS","84000 AVIGNON "]
[null,null,null,null,null,null,null,null,null,null,null,null,null,null,null,null,null,null,null,null,null,null,null,null,null,null,"19009--CLUB BILLARD ISTREEN","13800 ISTRES"]
[null,null,null,{"$f":"IF(M3=5,\"Tour n°3\",\"\")","v":""},{"$f":"IF($M$3=5,'Poule de 6'!B18,\"\")","v":""},null,{"$f":"IF(M3=5,'Poule de 6'!B12,\"\")","v":""},null,null,null,null,null,{"$f":"IF(M3=6,\"Tour n°3\",\"\")","v":""},{"$f":"IF($M$3=6,'Poule de 6'!$B$12,\"\")","v":""},null,{"$f":"IF($M$3=6,'Poule de 6'!$B$24,\"\")","v":""},null,{"$f":"IF($M$3=6,'Poule de 6'!$B$27,\"\")","v":""},null,null,"3 / 5","1 / 4",null,1,5,6,"19002--SPORT AMAT.DE BILLARD MARSEILLAIS","13001 MARSEILLE"]
[null,null,null,null,null,null,null,null,{"$f":"IF(M3=5,'Poule de 6'!B15,\"\")","v":""},null,null,null,null,null,null,null,null,null,null,null,null,null,null,4,3,2]
[null,null,null,null,{"$f":"IF($M$3=5,'Poule de 6'!B24,\"\")","v":""},{"$f":"IF(E37=E39,1,0)","v":1},{"$f":"IF(M3=5,'Poule de 6'!B21,\"\")","v":""},{"$f":"IF(G37=G39,1,0)","v":1},null,null,null,null,null,{"$f":"IF($M$3=6,'Poule de 6'!$B$21,\"\")","v":""},{"$f":"IF(N37=N39,1,0)","v":1},{"$f":"IF($M$3=6,'Poule de 6'!$B$18,\"\")","v":""},{"$f":"IF(P37=P39,1,0)","v":1},{"$f":"IF($M$3=6,'Poule de 6'!$B$15,\"\")","v":""},{"$f":"IF(R37=R39,1,0)","v":1},{"$f":"SUM(O38,Q38,S38)","v":3}]
[null,null,null,null,null,null,null,null,{"$f":"SUM(F38,H38)","v":2}]
[]
[null,null,null,{"$f":"IF(M3=5,\"Tour n°4\",\"\")","v":""},{"$f":"IF($M$3=5,'Poule de 6'!B15,\"\")","v":""},null,{"$f":"IF(M3=5,'Poule de 6'!B12,\"\")","v":""},null,null,null,null,null,{"$f":"IF(M3=6,\"Tour n°4\",\"\")","v":""},{"$f":"IF($M$3=6,'Poule de 6'!$B$24,\"\")","v":""},null,{"$f":"IF($M$3=6,'Poule de 6'!$B$12,\"\")","v":""},null,{"$f":"IF($M$3=6,'Poule de 6'!$B$21,\"\")","v":""},null,null,"2 / 4","1 / 3",null,5,1,4]
[null,null,null,null,null,null,null,null,{"$f":"IF(M3=5,'Poule de 6'!B24,\"\")","v":""},null,null,null,null,null,null,null,null,null,null,null,null,null,null,6,3,2]
[null,null,null,null,{"$f":"IF($M$3=5,'Poule de 6'!B21,\"\")","v":""},{"$f":"IF(E42=E44,1,0)","v":1},{"$f":"IF($M$3=5,'Poule de 6'!B18,\"\")","v":""},{"$f":"IF(G42=G44,1,0)","v":1},null,null,null,null,null,{"$f":"IF($M$3=6,'Poule de 6'!$B$27,\"\")","v":""},{"$f":"IF(N42=N44,1,0)","v":1},{"$f":"IF($M$3=6,'Poule de 6'!$B$18,\"\")","v":""},{"$f":"IF(P42=P44,1,0)","v":1},{"$f":"IF($M$3=6,'Poule de 6'!$B$15,\"\")","v":""},{"$f":"IF(R42=R44,1,0)","v":1},{"$f":"SUM(O43,Q43,S43)","v":3}]
[null,null,null,null,null,null,null,null,{"$f":"SUM(F43,H43)","v":2}]
[]
[null,null,null,{"$f":"IF(M3=5,\"Tour n°5\",\"\")","v":""},{"$f":"IF($M$3=5,'Poule de 6'!B12,\"\")","v":""},null,{"$f":"IF(M3=5,'Poule de 6'!B21,\"\")","v":""},null,null,null,null,null,{"$f":"IF(M3=6,\"Tour n°5\",\"\")","v":""},{"$f":"IF($M$3=6,'Poule de 6'!$B$21,\"\")","v":""},null,{"$f":"IF($M$3=6,'Poule de 6'!$B$12,\"\")","v":""},null,{"$f":"IF($M$3=6,'Poule de 6'!$B$18,\"\")","v":""},null,null,"1 / 2","4 / 5",null,4,1,3]
[null,null,null,null,null,null,null,null,{"$f":"IF($M$3=5,'Poule de 6'!B18,\"\")","v":""},null,null,null,null,null,null,null,null,null,null,null,null,null,null,5,2,6]
[null,null,null,null,{"$f":"IF(M3=5,'Poule de 6'!B15,\"\")","v":""},{"$f":"IF(E47=E49,1,0)","v":1},{"$f":"IF($M$3=5,'Poule de 6'!B24,\"\")","v":""},{"$f":"IF(G47=G49,1,0)","v":1},null,null,null,null,null,{"$f":"IF($M$3=6,'Poule de 6'!$B$24,\"\")","v":""},{"$f":"IF(N47=N49,1,0)","v":1},{"$f":"IF($M$3=6,'Poule de 6'!$B$15,\"\")","v":""},{"$f":"IF(P47=P49,1,0)","v":1},{"$f":"IF($M$3=6,'Poule de 6'!$B$27,\"\")","v":""},{"$f":"IF(R47=R49,1,0)","v":1},{"$f":"SUM(O48,Q48,S48)","v":3}]
[null,null,null,null,null,null,null,null,{"$f":"SUM(F48,H48)","v":2}]
[null,null,null,null,null,null,null,null,null,null,null,null,null,null,null,null,null,null,null,null,null,null,"Poule de 5 - Tours de jeu"]
[null,null,null,null,"POULE de 5 - Ordre des tours de jeu",null,null,null,null,null,null,null,null,null,null,"POULE de 6 - Ordre des tours de jeu",null,null,null,null,null,null,{"$f":"IF(Z51<>\"\",RANK(Z51,Z$51:$Z$60,TRUE),\"\")","v":""},1,{"$f":"IF(I29>0,D26,\"\")","v":""},{"$f":"IF(Y51<>\"\",X51,\"\")","v":""}]
[null,null,null,null,null,null,null,null,null,null,null,null,null,null,null,null,null,null,null,null,null,null,{"$f":"IF(Z52<>\"\",RANK(Z52,Z$51:$Z$60,TRUE),\"\")","v":""},2,{"$f":"IF(I34>0,D31,\"\")","v":""},{"$f":"IF(Y52<>\"\",X52,\"\")","v":""}]
[null,null,null,null,1,null,{"$f":"IFERROR(VLOOKUP(1,ordre_des_tours_p5,3,FALSE),\"\")","v":""},null,null,null,null,null,null,null,null,1,null,{"$f":"IFERROR(VLOOKUP(1,ordre_des_tours_p6,3,FALSE),\"\")","v":""},null,null,null,null,{"$f":"IF(Z53<>\"\",RANK(Z53,Z$51:$Z$60,TRUE),\"\")","v":""},3,{"$f":"IF(I39>0,D36,\"\")","v":""},""]
[null,null,null,null,2,null,{"$f":"IFERROR(VLOOKUP(2,ordre_des_tours_p5,3,FALSE),\"\")","v":""},null,null,null,null,null,null,null,null,2,null,{"$f":"IFERROR(VLOOKUP(2,ordre_des_tours_p6,3,FALSE),\"\")","v":""},null,null,null,null,{"$f":"IF(Z54<>\"\",RANK(Z54,Z$51:$Z$60,TRUE),\"\")","v":""},4,{"$f":"IF(I44>0,D41,\"\")","v":""},""]
[null,null,null,null,3,null,{"$f":"IFERROR(VLOOKUP(3,ordre_des_tours_p5,3,FALSE),\"\")","v":""},null,null,null,null,null,null,null,null,3,null,{"$f":"IFERROR(VLOOKUP(3,ordre_des_tours_p6,3,FALSE),\"\")","v":""},null,null,null,null,{"$f":"IF(Z55<>\"\",RANK(Z55,Z$51:$Z$60,TRUE),\"\")","v":""},5,{"$f":"IF(I49>0,D46,\"\")","v":""},""]
[null,null,null,null,4,null,{"$f":"IFERROR(VLOOKUP(4,ordre_des_tours_p5,3,FALSE),\"\")","v":""},null,null,null,null,null,null,null,null,4,null,{"$f":"IFERROR(VLOOKUP(4,ordre_des_tours_p6,3,FALSE),\"\")","v":""},null,null,null,null,{"$f":"IF(Z56<>\"\",RANK(Z56,Z$51:$Z$60,TRUE),\"\")","v":""},6,{"$f":"IF(I29=0,D26,\"\")","v":""},""]
[null,null,null,null,5,null,{"$f":"IFERROR(VLOOKUP(5,ordre_des_tours_p5,3,FALSE),\"\")","v":""},null,null,null,null,null,null,null,null,5,null,{"$f":"IFERROR(VLOOKUP(5,ordre_des_tours_p6,3,FALSE),\"\")","v":""},null,null,null,null,{"$f":"IF(Z57<>\"\",RANK(Z57,Z$51:$Z$60,TRUE),\"\")","v":""},7,{"$f":"IF(I34=0,D31,\"\")","v":""},""]
[null,null,null,null,null,null,null,null,null,null,null,null,null,null,null,null,null,null,null,null,null,null,{"$f":"IF(Z58<>\"\",RANK(Z58,Z$51:$Z$60,TRUE),\"\")","v":""},8,{"$f":"IF(I39=0,D36,\"\")","v":""},""]
[null,null,null,null,null,null,null,null,null,null,null,null,null,null,null,null,null,null,null,null,null,null,{"$f":"IF(Z59<>\"\",RANK(Z59,Z$51:$Z$60,TRUE),\"\")","v":""},9,{"$f":"IF(I44=0,D41,\"\")","v":""},""]
[null,null,null,null,null,null,null,null,null,null,null,null,null,null,null,null,null,null,null,null,null,null,{"$f":"IF(Z60<>\"\",RANK(Z60,Z$51:$Z$60,TRUE),\"\")","v":""},10,{"$f":"IF(I49=0,D46,\"\")","v":""},""]
[]
[null,null,null,null,null,null,null,null,null,null,null,null,null,null,null,null,null,null,null,null,null,null,"Poule de 6 - Tours de jeu"]
[null,null,null,null,null,null,null,null,null,null,null,null,null,null,null,null,null,null,null,null,null,null,{"$f":"IF(Z63<>\"\",RANK(Z63,Z$63:$Z$72,TRUE),\"\")","v":""},1,{"$f":"IF(T28>0,M26,\"\")","v":""},{"$f":"IF(Y63<>\"\",X63,\"\")","v":""}]
[null,null,null,null,null,null,null,null,null,null,null,null,null,null,null,null,null,null,null,null,null,null,{"$f":"IF(Z64<>\"\",RANK(Z64,Z$63:$Z$72,TRUE),\"\")","v":""},2,{"$f":"IF(T33>0,M31,\"\")","v":""},{"$f":"IF(Y64<>\"\",X64,\"\")","v":""}]
[null,null,null,null,null,null,null,null,null,null,null,null,null,null,null,null,null,null,null,null,null,null,{"$f":"IF(Z65<>\"\",RANK(Z65,Z$63:$Z$72,TRUE),\"\")","v":""},3,{"$f":"IF(T38>0,M36,\"\")","v":""},""]
[null,null,null,null,null,null,null,null,null,null,null,null,null,null,null,null,null,null,null,null,null,null,{"$f":"IF(Z66<>\"\",RANK(Z66,Z$63:$Z$72,TRUE),\"\")","v":""},4,{"$f":"IF(T43>0,M41,\"\")","v":""},""]
[null,null,null,null,null,null,null,null,null,null,null,null,null,null,null,null,null,null,null,null,null,null,{"$f":"IF(Z67<>\"\",RANK(Z67,Z$63:$Z$72,TRUE),\"\")","v":""},5,{"$f":"IF(T48>0,M46,\"\")","v":""},""]
[null,null,null,null,null,null,null,null,null,null,null,null,null,null,null,null,null,null,null,null,null,null,{"$f":"IF(Z68<>\"\",RANK(Z68,Z$63:$Z$72,TRUE),\"\")","v":""},6,{"$f":"IF(T28=0,M26,\"\")","v":""},""]
[null,null,null,null,null,null,null,null,null,null,null,null,null,null,null,null,null,null,null,null,null,null,{"$f":"IF(Z69<>\"\",RANK(Z69,Z$63:$Z$72,TRUE),\"\")","v":""},7,{"$f":"IF(T33=0,M31,\"\")","v":""},""]
[null,null,null,null,null,null,null,null,null,null,null,null,null,null,null,null,null,null,null,null,null,null,{"$f":"IF(Z70<>\"\",RANK(Z70,Z$63:$Z$72,TRUE),\"\")","v":""},8,{"$f":"IF(T38=0,M36,\"\")","v":""},""]
[null,null,null,null,null,null,null,null,null,null,null,null,null,null,null,null,null,null,null,null,null,null,{"$f":"IF(Z71<>\"\",RANK(Z71,Z$63:$Z$72,TRUE),\"\")","v":""},9,{"$f":"IF(T43=0,M41,\"\")","v":""},""]
[null,null,null,null,null,null,null,null,null,null,null,null,null,null,null,null,null,null,null,null,null,null,{"$f":"IF(Z72<>\"\",RANK(Z72,Z$63:$Z$72,TRUE),\"\")","v":""},10,{"$f":"IF(T48=0,M46,\"\")","v":""},""]

{"sheet":"Affiche_des_tours","index":4,"n_rows":33,"n_cols":4,"rows_kept":33,"cut":false,"hidden":true,"merged":[[32,0,32,3],[26,0,29,0],[2,1,2,3],[0,0,0,3],[6,0,9,0],[11,0,14,0],[16,0,19,0],[21,0,24,0]]}
[{"$error":"#VALUE!"}]
[]
[null,"TOURS DE JEU"]
[]
[null,"Billard 1","Billard 2","Billard 3"]
[]
["Tour n°1",{"$f":"'Tours de jeu'!N26","v":""},{"$f":"'Tours de jeu'!P26","v":""},{"$f":"'Tours de jeu'!R26","v":""}]
[null,"VS","VS","VS"]
[null,{"$f":"'Tours de jeu'!N28","v":""},{"$f":"'Tours de jeu'!P28","v":""},{"$f":"'Tours de jeu'!R28","v":""}]
[]
[]
["Tour n°2",{"$f":"'Tours de jeu'!N31","v":""},{"$f":"'Tours de jeu'!P31","v":""},{"$f":"'Tours de jeu'!R31","v":""}]
[null,"VS","VS","VS"]
[null,{"$f":"'Tours de jeu'!N33","v":""},{"$f":"'Tours de jeu'!P33","v":""},{"$f":"'Tours de jeu'!R33","v":""}]
[]
[]
["Tour n°3",{"$f":"'Tours de jeu'!N36","v":""},{"$f":"'Tours de jeu'!P36","v":""},{"$f":"'Tours de jeu'!R36","v":""}]
[null,"VS","VS","VS"]
[null,{"$f":"'Tours de jeu'!N38","v":""},{"$f":"'Tours de jeu'!P38","v":""},{"$f":"'Tours de jeu'!R38","v":""}]
[]
[]
["Tour n°4",{"$f":"'Tours de jeu'!N41","v":""},{"$f":"'Tours de jeu'!P41","v":""},{"$f":"'Tours de jeu'!R41","v":""}]
[null,"VS","VS","VS"]
[null,{"$f":"'Tours de jeu'!N43","v":""},{"$f":"'Tours de jeu'!P43","v":""},{"$f":"'Tours de jeu'!R43","v":""}]
[]
[]
["Tour n°5",{"$f":"'Tours de jeu'!N46","v":""},{"$f":"'Tours de jeu'!P46","v":""},{"$f":"'Tours de jeu'!R46","v":""}]
[null,"VS","VS","VS"]
[null,{"$f":"'Tours de jeu'!N48","v":""},{"$f":"'Tours de jeu'!P48","v":""},{"$f":"'Tours de jeu'!R48","v":""}]
[]
[]
[]
["Ce tableau est à renseigner (éventuellement) manuellement"]

{"sheet":"Saisie FFB","index":5,"n_rows":27,"n_cols":13,"rows_kept":27,"cut":false,"hidden":false,"merged":[[4,1,4,2],[4,3,4,7],[0,0,0,12],[2,1,2,2],[2,3,2,7],[3,1,3,2],[3,3,3,7],[1,11,3,12],[9,1,9,6],[9,7,9,12],[6,3,6,7],[26,7,27,7],[5,1,5,2],[5,3,5,7],[6,1,6,2],[7,3,7,7],[7,1,7,2]]}
["Tableau d'aide à la saisie des résultats sur les sites FFB"]
["Compétition",null,null,null,null,null,null,null,null,null,null,{"$error":"#VALUE!"}]
[null,"Lieu :   ",null,{"$f":"'Poule de 6'!H4","v":0}]
[null,"Date :   ",null,{"$f":"'Poule de 6'!O9","v":"2026-03-22"}]
[null,"Mode de jeu :   ",null,{"$f":"'Poule de 6'!W4","v":0}]
[null,"Catégorie :   ",null,{"$f":"'Poule de 6'!W5","v":0}]
[null,"Tour :   ",null,{"$f":"'Poule de 6'!W6","v":0}]
[null,"Format billard :   ",null,{"$f":"'Poule de 6'!W8","v":0}]
[]
[null,"Joueur 1",null,null,null,null,null,"Joueur 2"]
["N° match","Nom","Licence","Points","Reprises","Série","Points de\nmatch","Nom","Licence","Points","Reprises","Série","Points de\nmatch"]
[1,{"$f":"IF('Poule de 6'!B12<>\"\",'Poule de 6'!B12,\"\")","v":""},{"$f":"IFERROR(VLOOKUP(B12,ClubduJoueur,3,FALSE),\"\")","v":""},{"$f":"IF(j1r1<>\"\",j1r1,\"\")","v":""},{"$f":"IF(D12<>\"\",OFFSET(j1r1,0,2,1,1),\"\")","v":""},{"$f":"IF(D12<>\"\",OFFSET(j1r1,2,0,1,1),\"\")","v":""},{"$f":"IF(D12<>\"\",OFFSET(j1r1,1,1,1,1),\"\")","v":""},{"$f":"'Poule de 6'!F11","v":""},{"$f":"IFERROR(VLOOKUP(H12,ClubduJoueur,3,FALSE),\"\")","v":""},{"$f":"IF(j2r1<>\"\",j2r1,\"\")","v":""},{"$f":"IF(J12<>\"\",OFFSET(j2r1,0,2,1,1),\"\")","v":""},{"$f":"IF(J12<>\"\",OFFSET(j2r1,2,0,1,1),\"\")","v":""},{"$f":"IF(J12<>\"\",OFFSET(j2r1,1,1,1,1),\"\")","v":""}]
[2,{"$f":"IF('Poule de 6'!B12<>\"\",'Poule de 6'!B12,\"\")","v":""},"",{"$f":"IF(j1r2<>\"\",j1r2,\"\")","v":""},{"$f":"IF(D13<>\"\",OFFSET(j1r2,0,2,1,1),\"\")","v":""},{"$f":"IF(D13<>\"\",OFFSET(j1r2,2,0,1,1),\"\")","v":""},{"$f":"IF(D13<>\"\",OFFSET(j1r2,1,1,1,1),\"\")","v":""},{"$f":"'Poule de 6'!I11","v":""},"",{"$f":"IF(j3r1<>\"\",j3r1,\"\")","v":""},{"$f":"IF(J13<>\"\",OFFSET(j3r1,0,2,1,1),\"\")","v":""},{"$f":"IF(J13<>\"\",OFFSET(j3r1,2,0,1,1),\"\")","v":""},{"$f":"IF(J13<>\"\",OFFSET(j3r1,1,1,1,1),\"\")","v":""}]
[3,{"$f":"IF('Poule de 6'!B15<>\"\",'Poule de 6'!B15,\"\")","v":""},"",{"$f":"IF(j2r2<>\"\",j2r2,\"\")","v":""},{"$f":"IF(D14<>\"\",OFFSET(j2r2,0,2,1,1),\"\")","v":""},{"$f":"IF(D14<>\"\",OFFSET(j2r2,2,0,1,1),\"\")","v":""},{"$f":"IF(D14<>\"\",OFFSET(j2r2,1,1,1,1),\"\")","v":""},{"$f":"'Poule de 6'!I11","v":""},"",{"$f":"IF(j3r2<>\"\",j3r2,\"\")","v":""},{"$f":"IF(J14<>\"\",OFFSET(j3r2,0,2,1,1),\"\")","v":""},{"$f":"IF(J14<>\"\",OFFSET(j3r2,2,0,1,1),\"\")","v":""},{"$f":"IF(J14<>\"\",OFFSET(j3r2,1,1,1,1),\"\")","v":""}]
[4,{"$f":"IF('Poule de 6'!B21<>\"\",'Poule de 6'!B12,\"\")","v":""},"",{"$f":"IF(j1r3<>\"\",j1r3,\"\")","v":""},{"$f":"IF(D15<>\"\",OFFSET(j1r3,0,2,1,1),\"\")","v":""},{"$f":"IF(D15<>\"\",OFFSET(j1r3,2,0,1,1),\"\")","v":""},{"$f":"IF(D15<>\"\",OFFSET(j1r3,1,1,1,1),\"\")","v":""},{"$f":"IF('Poule de 6'!B21<>\"\",'Poule de 6'!B21,\"\")","v":""},"",{"$f":"IF(j4r1<>\"\",j4r1,\"\")","v":""},{"$f":"IF(J15<>\"\",OFFSET(j4r1,0,2,1,1),\"\")","v":""},{"$f":"IF(J15<>\"\",OFFSET(j4r1,2,0,1,1),\"\")","v":""},{"$f":"IF(J15<>\"\",OFFSET(j4r1,1,1,1,1),\"\")","v":""}]
[5,{"$f":"IF('Poule de 6'!B21<>\"\",'Poule de 6'!B15,\"\")","v":""},"",{"$f":"IF(j2r3<>\"\",j2r3,\"\")","v":""},{"$f":"IF(D16<>\"\",OFFSET(j2r3,0,2,1,1),\"\")","v":""},{"$f":"IF(D16<>\"\",OFFSET(j2r3,2,0,1,1),\"\")","v":""},{"$f":"IF(D16<>\"\",OFFSET(j2r3,1,1,1,1),\"\")","v":""},{"$f":"IF('Poule de 6'!B21<>\"\",'Poule de 6'!B21,\"\")","v":""},"",{"$f":"IF(j4r2<>\"\",j4r2,\"\")","v":""},{"$f":"IF(J16<>\"\",OFFSET(j4r2,0,2,1,1),\"\")","v":""},{"$f":"IF(J16<>\"\",OFFSET(j4r2,2,0,1,1),\"\")","v":""},{"$f":"IF(J16<>\"\",OFFSET(j4r2,1,1,1,1),\"\")","v":""}]
[6,{"$f":"IF('Poule de 6'!B21<>\"\",'Poule de 6'!B18,\"\")","v":""},"",{"$f":"IF(j3r3<>\"\",j3r3,\"\")","v":""},{"$f":"IF(D17<>\"\",OFFSET(j3r3,0,2,1,1),\"\")","v":""},{"$f":"IF(D17<>\"\",OFFSET(j3r3,2,0,1,1),\"\")","v":""},{"$f":"IF(D17<>\"\",OFFSET(j3r3,1,1,1,1),\"\")","v":""},{"$f":"IF('Poule de 6'!B21<>\"\",'Poule de 6'!B21,\"\")","v":""},"",{"$f":"IF(j4r3<>\"\",j4r3,\"\")","v":""},{"$f":"IF(J17<>\"\",OFFSET(j4r3,0,2,1,1),\"\")","v":""},{"$f":"IF(J17<>\"\",OFFSET(j4r3,2,0,1,1),\"\")","v":""},{"$f":"IF(J17<>\"\",OFFSET(j4r3,1,1,1,1),\"\")","v":""}]
[7,{"$f":"IF('Poule de 6'!B24<>\"\",'Poule de 6'!B12,\"\")","v":""},"",{"$f":"IF(j1r4<>\"\",j1r4,\"\")","v":""},{"$f":"IF(D18<>\"\",OFFSET(j1r4,0,2,1,1),\"\")","v":""},{"$f":"IF(D18<>\"\",OFFSET(j1r4,2,0,1,1),\"\")","v":""},{"$f":"IF(D18<>\"\",OFFSET(j1r4,1,1,1,1),\"\")","v":""},{"$f":"IF('Poule de 6'!B24<>\"\",'Poule de 6'!B24,\"\")","v":""},"",{"$f":"IF(j5r1<>\"\",j5r1,\"\")","v":""},{"$f":"IF(J18<>\"\",OFFSET(j5r1,0,2,1,1),\"\")","v":""},{"$f":"IF(J18<>\"\",OFFSET(j5r1,2,0,1,1),\"\")","v":""},{"$f":"IF(J18<>\"\",OFFSET(j5r1,1,1,1,1),\"\")","v":""}]
[8,{"$f":"IF('Poule de 6'!B24<>\"\",'Poule de 6'!B15,\"\")","v":""},"",{"$f":"IF(j2r4<>\"\",j2r4,\"\")","v":""},{"$f":"IF(D19<>\"\",OFFSET(j2r4,0,2,1,1),\"\")","v":""},{"$f":"IF(D19<>\"\",OFFSET(j2r4,2,0,1,1),\"\")","v":""},{"$f":"IF(D19<>\"\",OFFSET(j2r4,1,1,1,1),\"\")","v":""},{"$f":"IF('Poule de 6'!B24<>\"\",'Poule de 6'!B24,\"\")","v":""},"",{"$f":"IF(j5r2<>\"\",j5r2,\"\")","v":""},{"$f":"IF(J19<>\"\",OFFSET(j5r2,0,2,1,1),\"\")","v":""},{"$f":"IF(J19<>\"\",OFFSET(j5r2,2,0,1,1),\"\")","v":""},{"$f":"IF(J19<>\"\",OFFSET(j5r2,1,1,1,1),\"\")","v":""}]
[9,{"$f":"IF('Poule de 6'!B24<>\"\",'Poule de 6'!B18,\"\")","v":""},"",{"$f":"IF(j3r4<>\"\",j3r4,\"\")","v":""},{"$f":"IF(D20<>\"\",OFFSET(j3r4,0,2,1,1),\"\")","v":""},{"$f":"IF(D20<>\"\",OFFSET(j3r4,2,0,1,1),\"\")","v":""},{"$f":"IF(D20<>\"\",OFFSET(j3r4,1,1,1,1),\"\")","v":""},{"$f":"IF('Poule de 6'!B24<>\"\",'Poule de 6'!B24,\"\")","v":""},"",{"$f":"IF(j5r3<>\"\",j5r3,\"\")","v":""},{"$f":"IF(J20<>\"\",OFFSET(j5r3,0,2,1,1),\"\")","v":""},{"$f":"IF(J20<>\"\",OFFSET(j5r3,2,0,1,1),\"\")","v":""},{"$f":"IF(J20<>\"\",OFFSET(j5r3,1,1,1,1),\"\")","v":""}]
[10,{"$f":"IF('Poule de 6'!B24<>\"\",'Poule de 6'!B21,\"\")","v":""},"",{"$f":"IF(j4r4<>\"\",j4r4,\"\")","v":""},{"$f":"IF(D21<>\"\",OFFSET(j4r4,0,2,1,1),\"\")","v":""},{"$f":"IF(D21<>\"\",OFFSET(j4r4,2,0,1,1),\"\")","v":""},{"$f":"IF(D21<>\"\",OFFSET(j4r4,1,1,1,1),\"\")","v":""},{"$f":"IF('Poule de 6'!B24<>\"\",'Poule de 6'!B24,\"\")","v":""},"",{"$f":"IF(j5r4<>\"\",j5r4,\"\")","v":""},{"$f":"IF(J21<>\"\",OFFSET(j5r4,0,2,1,1),\"\")","v":""},{"$f":"IF(J21<>\"\",OFFSET(j5r4,2,0,1,1),\"\")","v":""},{"$f":"IF(J21<>\"\",OFFSET(j5r4,1,1,1,1),\"\")","v":""}]
[11,{"$f":"IF('Poule de 6'!B27<>\"\",'Poule de 6'!B12,\"\")","v":""},"",{"$f":"IF(j1r5<>\"\",j1r5,\"\")","v":""},{"$f":"IF(D22<>\"\",OFFSET(j1r5,0,2,1,1),\"\")","v":""},{"$f":"IF(D22<>\"\",OFFSET(j1r5,2,0,1,1),\"\")","v":""},{"$f":"IF(D22<>\"\",OFFSET(j1r5,1,1,1,1),\"\")","v":""},{"$f":"IF('Poule de 6'!B27<>\"\",'Poule de 6'!B27,\"\")","v":""},"",{"$f":"IF(j6r1<>\"\",j6r1,\"\")","v":""},{"$f":"IF(J22<>\"\",OFFSET(j6r1,0,2,1,1),\"\")","v":""},{"$f":"IF(J22<>\"\",OFFSET(j6r1,2,0,1,1),\"\")","v":""},{"$f":"IF(J22<>\"\",OFFSET(j6r1,1,1,1,1),\"\")","v":""}]
[12,{"$f":"IF('Poule de 6'!B27<>\"\",'Poule de 6'!B15,\"\")","v":""},"",{"$f":"IF(j2r5<>\"\",j2r5,\"\")","v":""},{"$f":"IF(D23<>\"\",OFFSET(j2r5,0,2,1,1),\"\")","v":""},{"$f":"IF(D23<>\"\",OFFSET(j2r5,2,0,1,1),\"\")","v":""},{"$f":"IF(D23<>\"\",OFFSET(j2r5,1,1,1,1),\"\")","v":""},{"$f":"IF('Poule de 6'!B27<>\"\",'Poule de 6'!B27,\"\")","v":""},"",{"$f":"IF(j6r2<>\"\",j6r2,\"\")","v":""},{"$f":"IF(J23<>\"\",OFFSET(j6r2,0,2,1,1),\"\")","v":""},{"$f":"IF(J23<>\"\",OFFSET(j6r2,2,0,1,1),\"\")","v":""},{"$f":"IF(J23<>\"\",OFFSET(j6r2,1,1,1,1),\"\")","v":""}]
[13,{"$f":"IF('Poule de 6'!B27<>\"\",'Poule de 6'!B18,\"\")","v":""},"",{"$f":"IF(j3r5<>\"\",j3r5,\"\")","v":""},{"$f":"IF(D24<>\"\",OFFSET(j3r5,0,2,1,1),\"\")","v":""},{"$f":"IF(D24<>\"\",OFFSET(j3r5,2,0,1,1),\"\")","v":""},{"$f":"IF(D24<>\"\",OFFSET(j3r5,1,1,1,1),\"\")","v":""},{"$f":"IF('Poule de 6'!B27<>\"\",'Poule de 6'!B27,\"\")","v":""},"",{"$f":"IF(j6r3<>\"\",j6r3,\"\")","v":""},{"$f":"IF(J24<>\"\",OFFSET(j6r3,0,2,1,1),\"\")","v":""},{"$f":"IF(J24<>\"\",OFFSET(j6r3,2,0,1,1),\"\")","v":""},{"$f":"IF(J24<>\"\",OFFSET(j6r3,1,1,1,1),\"\")","v":""}]
[14,{"$f":"IF('Poule de 6'!B27<>\"\",'Poule de 6'!B21,\"\")","v":""},"",{"$f":"IF(j4r5<>\"\",j4r5,\"\")","v":""},{"$f":"IF(D25<>\"\",OFFSET(j4r5,0,2,1,1),\"\")","v":""},{"$f":"IF(D25<>\"\",OFFSET(j4r5,2,0,1,1),\"\")","v":""},{"$f":"IF(D25<>\"\",OFFSET(j4r5,1,1,1,1),\"\")","v":""},{"$f":"IF('Poule de 6'!B27<>\"\",'Poule de 6'!B27,\"\")","v":""},"",{"$f":"IF(j6r4<>\"\",j6r4,\"\")","v":""},{"$f":"IF(J25<>\"\",OFFSET(j6r4,0,2,1,1),\"\")","v":""},{"$f":"IF(J25<>\"\",OFFSET(j6r4,2,0,1,1),\"\")","v":""},{"$f":"IF(J25<>\"\",OFFSET(j6r4,1,1,1,1),\"\")","v":""}]
[15,{"$f":"IF('Poule de 6'!B27<>\"\",'Poule de 6'!B24,\"\")","v":""},"",{"$f":"IF(j5r5<>\"\",j5r5,\"\")","v":""},{"$f":"IF(D26<>\"\",OFFSET(j5r5,0,2,1,1),\"\")","v":""},{"$f":"IF(D26<>\"\",OFFSET(j5r5,2,0,1,1),\"\")","v":""},{"$f":"IF(D26<>\"\",OFFSET(j5r5,1,1,1,1),\"\")","v":""},{"$f":"IF('Poule de 6'!B27<>\"\",'Poule de 6'!B27,\"\")","v":""},"",{"$f":"IF(j6r5<>\"\",j6r5,\"\")","v":""},{"$f":"IF(J26<>\"\",OFFSET(j6r5,0,2,1,1),\"\")","v":""},{"$f":"IF(J26<>\"\",OFFSET(j6r5,2,0,1,1),\"\")","v":""},{"$f":"IF(J26<>\"\",OFFSET(j6r5,1,1,1,1),\"\")","v":""}]
["Les données en bleu sont à saisir"]